Workbook

Sheet Dashboard
AN2: Select teams to compare
E4: Scoring | F4: Attack | G4: Defense | H4: Passing | J4: Selecet parameter
B5: =IFERROR(Flag,"Select country") -> GER
J8: Select parameter:
J12: Select parameter: | K12: =Sheet2!AV14 ->  | L12: =Sheet2!AW14 -> 
G17: =Sheet2!AV8 -> Germany | H17: =Sheet2!AW8 -> Average
E18: =Sheet2!AU9 -> Total Goals Scored | G18: =Sheet2!AV9 -> 18 | H18: =Sheet2!AW9 -> 5.1875
E19: =Sheet2!AU10 -> Open Play Goals | G19: =Sheet2!AV10 -> 15 | H19: =Sheet2!AW10 -> 4.40625
E20: =Sheet2!AU11 -> Set Piece Goals | G20: =Sheet2!AV11 -> 3 | H20: =Sheet2!AW11 -> 0.90625
E21: =Sheet2!AU12 -> Penalty Goal | G21: =Sheet2!AV12 -> 1 | H21: =Sheet2!AW12 -> 0.375
E22: =Sheet2!AU13 -> Goal/min | G22: =Sheet2!AV13 -> 38 | H22: =Sheet2!AW13 -> 99.375 | AR22: Tournament average
AL23: Click here for match details
AL24: Click here for individual teams
AL25: Click here for top performances
AF54: vs.
AF56: ="For "&AI60&" match" -> For FRA-GER match
AE57: Final Socre: | AF57: =IFERROR(INDEX(Sheet3!$C$2:$E$65,MATCH(SelMatch,Sheet3!$E$2:$E$65,0),1),"") -> 0-1 | AI57: ="Man of the Match: " &INDEX(Sheet3!$D$3:$E$65,MATCH(SelMatch,Sheet3!$E$3:$E$65,0),1) -> Man of the Match: Mats Hummels
AF58: =IFERROR(INDEX(Sheet3!A2:$E$65,MATCH(SelMatch,Sheet3!$E$2:$E$65,0),1),"") -> 2014-07-04
AF59: ="Stadium: "&IFERROR(INDEX(Sheet3!$A$3:$E$65,MATCH(SelMatch,Sheet3!$E$2:$E$65,0),2),"") -> Stadium: Arena de São Paulo, São Paulo
AF60: Match Stats | AI60: =INDEX(Sheet3!$E$2:$F$65,MATCH(SelMatch,Sheet3!$E$2:$E$65,0),2) -> FRA-GER | AK60: Tournament Avg.
AF61: Shots | AH61: =(INDEX(Sheet3!$E$2:$AI$69,67-2,MATCH(Dashboard!AF61,Sheet3!$E$2:$AI$2,0))) -> 0 | AI61: =IFERROR(INDEX(Sheet3!$E$2:$AI$65,MATCH(SelMatch,Sheet3!$E$2:$E$65,0),MATCH(Dashboard!AF61,Sheet3!$E$2:$AI$2,0)),"") -> 21 | AJ61: =(INDEX(Sheet3!$E$2:$AI$69,67-1,MATCH(Dashboard!AF61,Sheet3!$E$2:$AI$2,0))) -> 26.57142857 | AK61: =INDEX(Sheet3!$E$3:$AI$67,65-2,MATCH(Dashboard!AF61,Sheet3!$E$2:$AI$2,0)) -> 12
AF62: Shots on target (%) | AH62: =(INDEX(Sheet3!$E$2:$AI$69,67-2,MATCH(Dashboard!AF62,Sheet3!$E$2:$AI$2,0))) -> 0 | AI62: =IFERROR(INDEX(Sheet3!$E$2:$AI$65,MATCH(SelMatch,Sheet3!$E$2:$E$65,0),MATCH(Dashboard!AF62,Sheet3!$E$2:$AI$2,0)),"") -> 0.71 | AJ62: =(INDEX(Sheet3!$E$2:$AI$69,67-1,MATCH(Dashboard!AF62,Sheet3!$E$2:$AI$2,0))) -> 0.593015873 | AK62: =INDEX(Sheet3!$E$3:$AI$67,65-2,MATCH(Dashboard!AF62,Sheet3!$E$2:$AI$2,0)) -> 0.5
AF63: Attempts on-target from inside the area | AH63: =(INDEX(Sheet3!$E$2:$AI$69,67-2,MATCH(Dashboard!AF63,Sheet3!$E$2:$AI$2,0))) -> 0 | AI63: =IFERROR(INDEX(Sheet3!$E$2:$AI$65,MATCH(SelMatch,Sheet3!$E$2:$E$65,0),MATCH(Dashboard!AF63,Sheet3!$E$2:$AI$2,0)),"") -> 14 | AJ63: =(INDEX(Sheet3!$E$2:$AI$69,67-1,MATCH(Dashboard!AF63,Sheet3!$E$2:$AI$2,0))) -> 8.349206349 | AK63: =INDEX(Sheet3!$E$3:$AI$67,65-2,MATCH(Dashboard!AF63,Sheet3!$E$2:$AI$2,0)) -> 1
AF64: Attempts on-target from outside the area | AH64: =(INDEX(Sheet3!$E$2:$AI$69,67-2,MATCH(Dashboard!AF64,Sheet3!$E$2:$AI$2,0))) -> 0 | AI64: =IFERROR(INDEX(Sheet3!$E$2:$AI$65,MATCH(SelMatch,Sheet3!$E$2:$E$65,0),MATCH(Dashboard!AF64,Sheet3!$E$2:$AI$2,0)),"") -> 1 | AJ64: =(INDEX(Sheet3!$E$2:$AI$69,67-1,MATCH(Dashboard!AF64,Sheet3!$E$2:$AI$2,0))) -> 7.555555556 | AK64: =INDEX(Sheet3!$E$3:$AI$67,65-2,MATCH(Dashboard!AF64,Sheet3!$E$2:$AI$2,0)) -> 5
AF65: Attempts off-target from inside the area | AH65: =(INDEX(Sheet3!$E$2:$AI$69,67-2,MATCH(Dashboard!AF65,Sheet3!$E$2:$AI$2,0))) -> 0 | AI65: =IFERROR(INDEX(Sheet3!$E$2:$AI$65,MATCH(SelMatch,Sheet3!$E$2:$E$65,0),MATCH(Dashboard!AF65,Sheet3!$E$2:$AI$2,0)),"") -> 4 | AJ65: =(INDEX(Sheet3!$E$2:$AI$69,67-1,MATCH(Dashboard!AF65,Sheet3!$E$2:$AI$2,0))) -> 4.920634921 | AK65: =INDEX(Sheet3!$E$3:$AI$67,65-2,MATCH(Dashboard!AF65,Sheet3!$E$2:$AI$2,0)) -> 3
AF66: Attempts off-target from outside the area | AH66: =(INDEX(Sheet3!$E$2:$AI$69,67-2,MATCH(Dashboard!AF66,Sheet3!$E$2:$AI$2,0))) -> 0 | AI66: =IFERROR(INDEX(Sheet3!$E$2:$AI$65,MATCH(SelMatch,Sheet3!$E$2:$E$65,0),MATCH(Dashboard!AF66,Sheet3!$E$2:$AI$2,0)),"") -> 2 | AJ66: =(INDEX(Sheet3!$E$2:$AI$69,67-1,MATCH(Dashboard!AF66,Sheet3!$E$2:$AI$2,0))) -> 5.746031746 | AK66: =INDEX(Sheet3!$E$3:$AI$67,65-2,MATCH(Dashboard!AF66,Sheet3!$E$2:$AI$2,0)) -> 3
AF67: Goals for | AH67: =(INDEX(Sheet3!$E$2:$AI$69,67-2,MATCH(Dashboard!AF67,Sheet3!$E$2:$AI$2,0))) -> 0 | AI67: =IFERROR(INDEX(Sheet3!$E$2:$AI$65,MATCH(SelMatch,Sheet3!$E$2:$E$65,0),MATCH(Dashboard!AF67,Sheet3!$E$2:$AI$2,0)),"") -> 1 | AJ67: =(INDEX(Sheet3!$E$2:$AI$69,67-1,MATCH(Dashboard!AF67,Sheet3!$E$2:$AI$2,0))) -> 2.714285714 | AK67: =INDEX(Sheet3!$E$3:$AI$67,65-2,MATCH(Dashboard!AF67,Sheet3!$E$2:$AI$2,0)) -> 0
AF68: Goals from inside the area | AH68: =(INDEX(Sheet3!$E$2:$AI$69,67-2,MATCH(Dashboard!AF68,Sheet3!$E$2:$AI$2,0))) -> 0 | AI68: =IFERROR(INDEX(Sheet3!$E$2:$AI$65,MATCH(SelMatch,Sheet3!$E$2:$E$65,0),MATCH(Dashboard!AF68,Sheet3!$E$2:$AI$2,0)),"") -> 1 | AJ68: =(INDEX(Sheet3!$E$2:$AI$69,67-1,MATCH(Dashboard!AF68,Sheet3!$E$2:$AI$2,0))) -> 2.285714286 | AK68: =INDEX(Sheet3!$E$3:$AI$67,65-2,MATCH(Dashboard!AF68,Sheet3!$E$2:$AI$2,0)) -> 0
AF69: Goals from outside the area | AH69: =(INDEX(Sheet3!$E$2:$AI$69,67-2,MATCH(Dashboard!AF69,Sheet3!$E$2:$AI$2,0))) -> 0 | AI69: =IFERROR(INDEX(Sheet3!$E$2:$AI$65,MATCH(SelMatch,Sheet3!$E$2:$E$65,0),MATCH(Dashboard!AF69,Sheet3!$E$2:$AI$2,0)),"") -> 0 | AJ69: =(INDEX(Sheet3!$E$2:$AI$69,67-1,MATCH(Dashboard!AF69,Sheet3!$E$2:$AI$2,0))) -> 0.3492063492 | AK69: =INDEX(Sheet3!$E$3:$AI$67,65-2,MATCH(Dashboard!AF69,Sheet3!$E$2:$AI$2,0)) -> 0
AF70: Own goals For | AH70: =(INDEX(Sheet3!$E$2:$AI$69,67-2,MATCH(Dashboard!AF70,Sheet3!$E$2:$AI$2,0))) -> 0 | AI70: =IFERROR(INDEX(Sheet3!$E$2:$AI$65,MATCH(SelMatch,Sheet3!$E$2:$E$65,0),MATCH(Dashboard!AF70,Sheet3!$E$2:$AI$2,0)),"") -> 0 | AJ70: =(INDEX(Sheet3!$E$2:$AI$69,67-1,MATCH(Dashboard!AF70,Sheet3!$E$2:$AI$2,0))) -> 0.07936507937 | AK70: =INDEX(Sheet3!$E$3:$AI$67,65-2,MATCH(Dashboard!AF70,Sheet3!$E$2:$AI$2,0)) -> 0
AF71: Open Play Goals | AH71: =(INDEX(Sheet3!$E$2:$AI$69,67-2,MATCH(Dashboard!AF71,Sheet3!$E$2:$AI$2,0))) -> 0 | AI71: =IFERROR(INDEX(Sheet3!$E$2:$AI$65,MATCH(SelMatch,Sheet3!$E$2:$E$65,0),MATCH(Dashboard!AF71,Sheet3!$E$2:$AI$2,0)),"") -> 1 | AJ71: =(INDEX(Sheet3!$E$2:$AI$69,67-1,MATCH(Dashboard!AF71,Sheet3!$E$2:$AI$2,0))) -> 2.238095238 | AK71: =INDEX(Sheet3!$E$3:$AI$67,65-2,MATCH(Dashboard!AF71,Sheet3!$E$2:$AI$2,0)) -> 0
AF72: Set Piece Goals | AH72: =(INDEX(Sheet3!$E$2:$AI$69,67-2,MATCH(Dashboard!AF72,Sheet3!$E$2:$AI$2,0))) -> 0 | AI72: =IFERROR(INDEX(Sheet3!$E$2:$AI$65,MATCH(SelMatch,Sheet3!$E$2:$E$65,0),MATCH(Dashboard!AF72,Sheet3!$E$2:$AI$2,0)),"") -> 0 | AJ72: =(INDEX(Sheet3!$E$2:$AI$69,67-1,MATCH(Dashboard!AF72,Sheet3!$E$2:$AI$2,0))) -> 0.4761904762 | AK72: =INDEX(Sheet3!$E$3:$AI$67,65-2,MATCH(Dashboard!AF72,Sheet3!$E$2:$AI$2,0)) -> 0
AF73: Penalty goal | AH73: =(INDEX(Sheet3!$E$2:$AI$69,67-2,MATCH(Dashboard!AF73,Sheet3!$E$2:$AI$2,0))) -> 0 | AI73: =IFERROR(INDEX(Sheet3!$E$2:$AI$65,MATCH(SelMatch,Sheet3!$E$2:$E$65,0),MATCH(Dashboard!AF73,Sheet3!$E$2:$AI$2,0)),"") -> 0 | AJ73: =(INDEX(Sheet3!$E$2:$AI$69,67-1,MATCH(Dashboard!AF73,Sheet3!$E$2:$AI$2,0))) -> 0.1904761905 | AK73: =INDEX(Sheet3!$E$3:$AI$67,65-2,MATCH(Dashboard!AF73,Sheet3!$E$2:$AI$2,0)) -> 0
AF74: Yellow Card | AH74: =(INDEX(Sheet3!$E$2:$AI$69,67-2,MATCH(Dashboard!AF74,Sheet3!$E$2:$AI$2,0))) -> 0 | AI74: =IFERROR(INDEX(Sheet3!$E$2:$AI$65,MATCH(SelMatch,Sheet3!$E$2:$E$65,0),MATCH(Dashboard!AF74,Sheet3!$E$2:$AI$2,0)),"") -> 2 | AJ74: =(INDEX(Sheet3!$E$2:$AI$69,67-1,MATCH(Dashboard!AF74,Sheet3!$E$2:$AI$2,0))) -> 2.825396825 | AK74: =INDEX(Sheet3!$E$3:$AI$67,65-2,MATCH(Dashboard!AF74,Sheet3!$E$2:$AI$2,0)) -> 3
AF75: Second yellow card and red card | AH75: =(INDEX(Sheet3!$E$2:$AI$69,67-2,MATCH(Dashboard!AF75,Sheet3!$E$2:$AI$2,0))) -> 0 | AI75: =IFERROR(INDEX(Sheet3!$E$2:$AI$65,MATCH(SelMatch,Sheet3!$E$2:$E$65,0),MATCH(Dashboard!AF75,Sheet3!$E$2:$AI$2,0)),"") -> 0 | AJ75: =(INDEX(Sheet3!$E$2:$AI$69,67-1,MATCH(Dashboard!AF75,Sheet3!$E$2:$AI$2,0))) -> 0.04761904762 | AK75: =INDEX(Sheet3!$E$3:$AI$67,65-2,MATCH(Dashboard!AF75,Sheet3!$E$2:$AI$2,0)) -> 0
AF76: Red Cards | AH76: =(INDEX(Sheet3!$E$2:$AI$69,67-2,MATCH(Dashboard!AF76,Sheet3!$E$2:$AI$2,0))) -> 0 | AI76: =IFERROR(INDEX(Sheet3!$E$2:$AI$65,MATCH(SelMatch,Sheet3!$E$2:$E$65,0),MATCH(Dashboard!AF76,Sheet3!$E$2:$AI$2,0)),"") -> 0 | AJ76: =(INDEX(Sheet3!$E$2:$AI$69,67-1,MATCH(Dashboard!AF76,Sheet3!$E$2:$AI$2,0))) -> 0.1111111111 | AK76: =INDEX(Sheet3!$E$3:$AI$67,65-2,MATCH(Dashboard!AF76,Sheet3!$E$2:$AI$2,0)) -> 0
AF77: Fouls Committed | AH77: =(INDEX(Sheet3!$E$2:$AI$69,67-2,MATCH(Dashboard!AF77,Sheet3!$E$2:$AI$2,0))) -> 0 | AI77: =IFERROR(INDEX(Sheet3!$E$2:$AI$65,MATCH(SelMatch,Sheet3!$E$2:$E$65,0),MATCH(Dashboard!AF77,Sheet3!$E$2:$AI$2,0)),"") -> 33 | AJ77: =(INDEX(Sheet3!$E$2:$AI$69,67-1,MATCH(Dashboard!AF77,Sheet3!$E$2:$AI$2,0))) -> 30.20634921 | AK77: =INDEX(Sheet3!$E$3:$AI$67,65-2,MATCH(Dashboard!AF77,Sheet3!$E$2:$AI$2,0)) -> 34
AF78: Attacks | AH78: =(INDEX(Sheet3!$E$2:$AI$69,67-2,MATCH(Dashboard!AF78,Sheet3!$E$2:$AI$2,0))) -> 0 | AI78: =IFERROR(INDEX(Sheet3!$E$2:$AI$65,MATCH(SelMatch,Sheet3!$E$2:$E$65,0),MATCH(Dashboard!AF78,Sheet3!$E$2:$AI$2,0)),"") -> 57 | AJ78: =(INDEX(Sheet3!$E$2:$AI$69,67-1,MATCH(Dashboard!AF78,Sheet3!$E$2:$AI$2,0))) -> 78.76190476 | AK78: =INDEX(Sheet3!$E$3:$AI$67,65-2,MATCH(Dashboard!AF78,Sheet3!$E$2:$AI$2,0)) -> 47
AF79: Solo runs into area | AH79: =(INDEX(Sheet3!$E$2:$AI$69,67-2,MATCH(Dashboard!AF79,Sheet3!$E$2:$AI$2,0))) -> 0 | AI79: =IFERROR(INDEX(Sheet3!$E$2:$AI$65,MATCH(SelMatch,Sheet3!$E$2:$E$65,0),MATCH(Dashboard!AF79,Sheet3!$E$2:$AI$2,0)),"") -> 9 | AJ79: =(INDEX(Sheet3!$E$2:$AI$69,67-1,MATCH(Dashboard!AF79,Sheet3!$E$2:$AI$2,0))) -> 5.920634921 | AK79: =INDEX(Sheet3!$E$3:$AI$67,65-2,MATCH(Dashboard!AF79,Sheet3!$E$2:$AI$2,0)) -> 2
AF80: Assists | AH80: =(INDEX(Sheet3!$E$2:$AI$69,67-2,MATCH(Dashboard!AF80,Sheet3!$E$2:$AI$2,0))) -> 0 | AI80: =IFERROR(INDEX(Sheet3!$E$2:$AI$65,MATCH(SelMatch,Sheet3!$E$2:$E$65,0),MATCH(Dashboard!AF80,Sheet3!$E$2:$AI$2,0)),"") -> 1 | AJ80: =(INDEX(Sheet3!$E$2:$AI$69,67-1,MATCH(Dashboard!AF80,Sheet3!$E$2:$AI$2,0))) -> 1.904761905 | AK80: =INDEX(Sheet3!$E$3:$AI$67,65-2,MATCH(Dashboard!AF80,Sheet3!$E$2:$AI$2,0)) -> 0
AF81: Offsides | AH81: =(INDEX(Sheet3!$E$2:$AI$69,67-2,MATCH(Dashboard!AF81,Sheet3!$E$2:$AI$2,0))) -> 0 | AI81: =IFERROR(INDEX(Sheet3!$E$2:$AI$65,MATCH(SelMatch,Sheet3!$E$2:$E$65,0),MATCH(Dashboard!AF81,Sheet3!$E$2:$AI$2,0)),"") -> 3 | AJ81: =(INDEX(Sheet3!$E$2:$AI$69,67-1,MATCH(Dashboard!AF81,Sheet3!$E$2:$AI$2,0))) -> 4.46031746 | AK81: =INDEX(Sheet3!$E$3:$AI$67,65-2,MATCH(Dashboard!AF81,Sheet3!$E$2:$AI$2,0)) -> 4
AF82: Total Passes | AH82: =(INDEX(Sheet3!$E$2:$AI$69,67-2,MATCH(Dashboard!AF82,Sheet3!$E$2:$AI$2,0))) -> 0 | AI82: =IFERROR(INDEX(Sheet3!$E$2:$AI$65,MATCH(SelMatch,Sheet3!$E$2:$E$65,0),MATCH(Dashboard!AF82,Sheet3!$E$2:$AI$2,0)),"") -> 1028 | AJ82: =(INDEX(Sheet3!$E$2:$AI$69,67-1,MATCH(Dashboard!AF82,Sheet3!$E$2:$AI$2,0))) -> 1032.031746 | AK82: =INDEX(Sheet3!$E$3:$AI$67,65-2,MATCH(Dashboard!AF82,Sheet3!$E$2:$AI$2,0)) -> 1020
AF83: Passes Completed | AH83: =(INDEX(Sheet3!$E$2:$AI$69,67-2,MATCH(Dashboard!AF83,Sheet3!$E$2:$AI$2,0))) -> 0 | AI83: =IFERROR(INDEX(Sheet3!$E$2:$AI$65,MATCH(SelMatch,Sheet3!$E$2:$E$65,0),MATCH(Dashboard!AF83,Sheet3!$E$2:$AI$2,0)),"") -> 754 | AJ83: =(INDEX(Sheet3!$E$2:$AI$69,67-1,MATCH(Dashboard!AF83,Sheet3!$E$2:$AI$2,0))) -> 785.7936508 | AK83: =INDEX(Sheet3!$E$3:$AI$67,65-2,MATCH(Dashboard!AF83,Sheet3!$E$2:$AI$2,0)) -> 737
AF84: Passes Completed% | AH84: =(INDEX(Sheet3!$E$2:$AI$69,67-2,MATCH(Dashboard!AF84,Sheet3!$E$2:$AI$2,0))) -> 0 | AI84: =IFERROR(INDEX(Sheet3!$E$2:$AI$65,MATCH(SelMatch,Sheet3!$E$2:$E$65,0),MATCH(Dashboard!AF84,Sheet3!$E$2:$AI$2,0)),"") -> 0.74 | AJ84: =(INDEX(Sheet3!$E$2:$AI$69,67-1,MATCH(Dashboard!AF84,Sheet3!$E$2:$AI$2,0))) -> 0.7633870968 | AK84: =INDEX(Sheet3!$E$3:$AI$67,65-2,MATCH(Dashboard!AF84,Sheet3!$E$2:$AI$2,0)) -> 0.73
AF85: Crosses | AH85: =(INDEX(Sheet3!$E$2:$AI$69,67-2,MATCH(Dashboard!AF85,Sheet3!$E$2:$AI$2,0))) -> 0 | AI85: =IFERROR(INDEX(Sheet3!$E$2:$AI$65,MATCH(SelMatch,Sheet3!$E$2:$E$65,0),MATCH(Dashboard!AF85,Sheet3!$E$2:$AI$2,0)),"") -> 38 | AJ85: =(INDEX(Sheet3!$E$2:$AI$69,67-1,MATCH(Dashboard!AF85,Sheet3!$E$2:$AI$2,0))) -> 39.0952381 | AK85: =INDEX(Sheet3!$E$3:$AI$67,65-2,MATCH(Dashboard!AF85,Sheet3!$E$2:$AI$2,0)) -> 24
AF86: Crosses Completed | AH86: =(INDEX(Sheet3!$E$2:$AI$69,67-2,MATCH(Dashboard!AF86,Sheet3!$E$2:$AI$2,0))) -> 0 | AI86: =IFERROR(INDEX(Sheet3!$E$2:$AI$65,MATCH(SelMatch,Sheet3!$E$2:$E$65,0),MATCH(Dashboard!AF86,Sheet3!$E$2:$AI$2,0)),"") -> 12 | AJ86: =(INDEX(Sheet3!$E$2:$AI$69,67-1,MATCH(Dashboard!AF86,Sheet3!$E$2:$AI$2,0))) -> 9.126984127 | AK86: =INDEX(Sheet3!$E$3:$AI$67,65-2,MATCH(Dashboard!AF86,Sheet3!$E$2:$AI$2,0)) -> 4
AF87: Crosses Completed% | AH87: =(INDEX(Sheet3!$E$2:$AI$69,67-2,MATCH(Dashboard!AF87,Sheet3!$E$2:$AI$2,0))) -> 0 | AI87: =IFERROR(INDEX(Sheet3!$E$2:$AI$65,MATCH(SelMatch,Sheet3!$E$2:$E$65,0),MATCH(Dashboard!AF87,Sheet3!$E$2:$AI$2,0)),"") -> 0.32 | AJ87: =(INDEX(Sheet3!$E$2:$AI$69,67-1,MATCH(Dashboard!AF87,Sheet3!$E$2:$AI$2,0))) -> 0.2436507937 | AK87: =INDEX(Sheet3!$E$3:$AI$67,65-2,MATCH(Dashboard!AF87,Sheet3!$E$2:$AI$2,0)) -> 0.17
AF88: Corners | AH88: =(INDEX(Sheet3!$E$2:$AI$69,67-2,MATCH(Dashboard!AF88,Sheet3!$E$2:$AI$2,0))) -> 0 | AI88: =IFERROR(INDEX(Sheet3!$E$2:$AI$65,MATCH(SelMatch,Sheet3!$E$2:$E$65,0),MATCH(Dashboard!AF88,Sheet3!$E$2:$AI$2,0)),"") -> 8 | AJ88: =(INDEX(Sheet3!$E$2:$AI$69,67-1,MATCH(Dashboard!AF88,Sheet3!$E$2:$AI$2,0))) -> 10.47619048 | AK88: =INDEX(Sheet3!$E$3:$AI$67,65-2,MATCH(Dashboard!AF88,Sheet3!$E$2:$AI$2,0)) -> 10
AF89: Throw-ins | AH89: =(INDEX(Sheet3!$E$2:$AI$69,67-2,MATCH(Dashboard!AF89,Sheet3!$E$2:$AI$2,0))) -> 0 | AI89: =IFERROR(INDEX(Sheet3!$E$2:$AI$65,MATCH(SelMatch,Sheet3!$E$2:$E$65,0),MATCH(Dashboard!AF89,Sheet3!$E$2:$AI$2,0)),"") -> 78 | AJ89: =(INDEX(Sheet3!$E$2:$AI$69,67-1,MATCH(Dashboard!AF89,Sheet3!$E$2:$AI$2,0))) -> 65.01587302 | AK89: =INDEX(Sheet3!$E$3:$AI$67,65-2,MATCH(Dashboard!AF89,Sheet3!$E$2:$AI$2,0)) -> 59
AF92: For back to country analysis, click here
AF93: Click here for top performance
AF94: Click here for team compariosn
C95: Click here for individual team
C96: Click here for team comparison
C97: Click here for match details
B100: Top Goals | M100: Best attack
B101: ="Team: " &INDEX(Sheet2!$E$3:$N$34,MATCH(MAX(Sheet2!$H$3:$H$34),Sheet2!$H$3:$H$34,0),1) -> Team: Germany | M101: ="Team: " &INDEX(Sheet2!$E$3:$N$34,MATCH(MAX(Sheet2!$R$3:$R$34),Sheet2!$R$3:$R$34,0),1) -> Team: Brazil
B102: ="Goals by " &INDEX(Sheet2!$E$3:$N$34,MATCH(MAX(Sheet2!$H$3:$H$34),Sheet2!$H$3:$H$34,0),1) -> Goals by Germany | M102: ="Statistics of " &RIGHT(M101,LEN(M101)-6) -> Statistics of Brazil
B103: Toal goals: | C103: =MAX(Sheet2!$H$3:$H$34) -> 18 | M103: Total Attempts | N103: =SUM(N104:N107) -> 111
B104: Open play | C104: =INDEX(Sheet2!$E$3:$N$34,MATCH(MAX(Sheet2!$H$3:$H$34),Sheet2!$I$3:$I$34,0),9) -> 15 | M104: Goals scored | N104: =Sheet2!BR10 -> 11
B105: Set piece | C105: =INDEX(Sheet2!$E$3:$N$34,MATCH(MAX(Sheet2!$H$3:$H$34),Sheet2!$I$3:$I$34,0),10) -> 3 | M105: Shots bolcked | N105: =Sheet2!BS10 -> 28
B106: Penalty | C106: =INDEX(Sheet2!$E$3:$N$34,MATCH(MAX(Sheet2!$H$3:$H$34),Sheet2!$I$3:$I$34,0),7) -> 1 | M106: Shots saved | N106: =Sheet2!BT10 -> 39
M107: Attempts off target | N107: =Sheet2!BU10 -> 33
B115: Best Defense | M115: Best passing
B116: ="Team: "&Sheet2!BQ17 -> Team: Brazil | M116: ="Team: "&Sheet2!BQ24 -> Team: Germany
B117: ="Attempts by " &Sheet2!BQ17 -> Attempts by Brazil | M117: ="Passing statistics " &Sheet2!BQ24 -> Passing statistics Germany
B118: Total attempts | C118: =SUM(C119:C121) -> 168 | M118: Total passes | N118: =SUM(N119:N121) -> 4157
B119: Tackles | C119: =Sheet2!BR17 -> 141 | M119: Short passes | N119: =Sheet2!BR24 -> 1017
B120: Saves | C120: =Sheet2!BS17 -> 17 | M120: Medium passes | N120: =Sheet2!BS24 -> 2763
B121: Blocks | C121: =Sheet2!BT17 -> 10 | M121: Long passes | N121: =Sheet2!BT24 -> 377

Sheet data dump1 (hidden)
A1: Column1 | B1: Column2 | C1: Column3 | D1: Column4 | E1: Column5 | F1: Column6 | G1: Column7 | H1: Column8
A2: 12 June 2014 | B2: Brazil | C2: 3–1 | D2: Croatia | E2: Arena de São Paulo, São Paulo | F2: =INDEX(Sheet2!$A$36:$B$67,MATCH(Group_A[[#This Row],[Column2]],CountryFlag,0),1) -> BRA | G2: =INDEX(Sheet2!$A$36:$B$67,MATCH(Group_A[[#This Row],[Column4]],CountryFlag,0),1) -> CRO | H2: =CONCATENATE(Group_A[[#This Row],[Column6]],"-",Group_A[[#This Row],[Column7]]) -> BRA-CRO | I2: BEL-USA | J2: 2-1 | K2: 2014-07-01 | L2: Salvador | Q2: Brazil | R2: Colombia | S2: France | T2: Germany | U2: Netherlands | V2: Costa Rica | W2: Argentina | X2: Belgium | Y2: Chile | Z2: Uruguay | AA2: Nigeria | AB2: Algeria | AC2: Mexico | AD2: Greece | AE2: Switzerland | AF2: United States
A3: 13 June 2014 | B3: Mexico | C3: 1–0 | D3: Cameroon | E3: Arena das Dunas, Natal | F3: =INDEX(Sheet2!$A$36:$B$67,MATCH(Group_A[[#This Row],[Column2]],CountryFlag,0),1) -> MEX | G3: =INDEX(Sheet2!$A$36:$B$67,MATCH(Group_A[[#This Row],[Column4]],CountryFlag,0),1) -> CMR | H3: =CONCATENATE(Group_A[[#This Row],[Column6]],"-",Group_A[[#This Row],[Column7]]) -> MEX-CMR | I3: ARG-SUI | J3: 1-0 | K3: 2014-07-01 | L3: São Paulo | P3: Brazil | Y3: Chile
A4: 17 June 2014 | B4: Brazil | C4: 0–0 | D4: Mexico | E4: Estádio Castelão, Fortaleza | F4: =INDEX(Sheet2!$A$36:$B$67,MATCH(Group_A[[#This Row],[Column2]],CountryFlag,0),1) -> BRA | G4: =INDEX(Sheet2!$A$36:$B$67,MATCH(Group_A[[#This Row],[Column4]],CountryFlag,0),1) -> MEX | H4: =CONCATENATE(Group_A[[#This Row],[Column6]],"-",Group_A[[#This Row],[Column7]]) -> BRA-MEX | I4: GER-ALG | J4: 2-1 | K4: 2014-06-30 | L4: Porto Alegre | P4: Colombia | Z4: Uruguay
A5: 18 June 2014 | B5: Cameroon | C5: 0–4 | D5: Croatia | E5: Arena da Amazônia, Manaus | F5: =INDEX(Sheet2!$A$36:$B$67,MATCH(Group_A[[#This Row],[Column2]],CountryFlag,0),1) -> CMR | G5: =INDEX(Sheet2!$A$36:$B$67,MATCH(Group_A[[#This Row],[Column4]],CountryFlag,0),1) -> CRO | H5: =CONCATENATE(Group_A[[#This Row],[Column6]],"-",Group_A[[#This Row],[Column7]]) -> CMR-CRO | I5: CMR-CRO | J5: 0–4 | K5: 18 June 2014 | L5: Arena da Amazônia, Manaus | P5: France | AA5: Nigeria
A6: 23 June 2014 | B6: Cameroon | C6: 1–4 | D6: Brazil | E6: Estádio Nacional Mané Garrincha, Brasília | F6: =INDEX(Sheet2!$A$36:$B$67,MATCH(Group_A[[#This Row],[Column2]],CountryFlag,0),1) -> CMR | G6: =INDEX(Sheet2!$A$36:$B$67,MATCH(Group_A[[#This Row],[Column4]],CountryFlag,0),1) -> BRA | H6: =CONCATENATE(Group_A[[#This Row],[Column6]],"-",Group_A[[#This Row],[Column7]]) -> CMR-BRA | I6: SUI-FRA | J6: 2–5 | K6: 20 June 2014 | L6: Arena Fonte Nova, Salvador | P6: Germany | AB6: Algeria
A7: 23 June 2014 | B7: Croatia | C7: 1–3 | D7: Mexico | E7: Arena Pernambuco, Recife | F7: =INDEX(Sheet2!$A$36:$B$67,MATCH(Group_A[[#This Row],[Column2]],CountryFlag,0),1) -> CRO | G7: =INDEX(Sheet2!$A$36:$B$67,MATCH(Group_A[[#This Row],[Column4]],CountryFlag,0),1) -> MEX | H7: =CONCATENATE(Group_A[[#This Row],[Column6]],"-",Group_A[[#This Row],[Column7]]) -> CRO-MEX | I7: NGA-BIH | J7: 1–0 | K7: 21 June 2014 | L7: Arena Pantanal, Cuiabá | P7: Netherlands | AC7: Mexico
A8: 13 June 2014 | B8: Spain | C8: 1–5 | D8: Netherlands | E8: Arena Fonte Nova, Salvador | F8: =INDEX(Sheet2!$A$36:$B$67,MATCH(Group_A[[#This Row],[Column2]],CountryFlag,0),1) -> ESP | G8: =INDEX(Sheet2!$A$36:$B$67,MATCH(Group_A[[#This Row],[Column4]],CountryFlag,0),1) -> NED | H8: =CONCATENATE(Group_A[[#This Row],[Column6]],"-",Group_A[[#This Row],[Column7]]) -> ESP-NED | I8: POR-GHA | J8: 2–1 | K8: 26 June 2014 | L8: Estádio Nacional Mané Garrincha, Brasília | P8: Costa Rica | AD8: Greece
A9: 13 June 2014 | B9: Chile | C9: 3–1 | D9: Australia | E9: Arena Pantanal, Cuiabá | F9: =INDEX(Sheet2!$A$36:$B$67,MATCH(Group_A[[#This Row],[Column2]],CountryFlag,0),1) -> CHI | G9: =INDEX(Sheet2!$A$36:$B$67,MATCH(Group_A[[#This Row],[Column4]],CountryFlag,0),1) -> AUS | H9: =CONCATENATE(Group_A[[#This Row],[Column6]],"-",Group_A[[#This Row],[Column7]]) -> CHI-AUS | I9: JPN-COL | J9: 1–4 | K9: 24 June 2014 | L9: Arena Pantanal, Cuiabá | P9: Argentina | AE9: Switzerland
A10: 18 June 2014 | B10: Australia | C10: 2–3 | D10: Netherlands | E10: Estádio Beira-Rio, Porto Alegre | F10: =INDEX(Sheet2!$A$36:$B$67,MATCH(Group_A[[#This Row],[Column2]],CountryFlag,0),1) -> AUS | G10: =INDEX(Sheet2!$A$36:$B$67,MATCH(Group_A[[#This Row],[Column4]],CountryFlag,0),1) -> NED | H10: =CONCATENATE(Group_A[[#This Row],[Column6]],"-",Group_A[[#This Row],[Column7]]) -> AUS-NED | I10: BRA-CHI | J10: 1 (3)-1 (2) | K10: 2014-06-28 | L10: Belo Horizonte | P10: Belgium | AF10: United States
A11: 18 June 2014 | B11: Spain | C11: 0–2 | D11: Chile | E11: Estádio do Maracanã, Rio de Janeiro | F11: =INDEX(Sheet2!$A$36:$B$67,MATCH(Group_A[[#This Row],[Column2]],CountryFlag,0),1) -> ESP | G11: =INDEX(Sheet2!$A$36:$B$67,MATCH(Group_A[[#This Row],[Column4]],CountryFlag,0),1) -> CHI | H11: =CONCATENATE(Group_A[[#This Row],[Column6]],"-",Group_A[[#This Row],[Column7]]) -> ESP-CHI | I11: USA-POR | J11: 2–2 | K11: 22 June 2014 | L11: Arena da Amazônia, Manaus | P11: Chile | Q11: Brazil
A12: 23 June 2014 | B12: Australia | C12: 0–3 | D12: Spain | E12: Arena da Baixada, Curitiba | F12: =INDEX(Sheet2!$A$36:$B$67,MATCH(Group_A[[#This Row],[Column2]],CountryFlag,0),1) -> AUS | G12: =INDEX(Sheet2!$A$36:$B$67,MATCH(Group_A[[#This Row],[Column4]],CountryFlag,0),1) -> ESP | H12: =CONCATENATE(Group_A[[#This Row],[Column6]],"-",Group_A[[#This Row],[Column7]]) -> AUS-ESP | I12: KOR-BEL | J12: 0–1 | K12: 26 June 2014 | L12: Arena de São Paulo, São Paulo | P12: Uruguay | R12: Colombia
A13: 23 June 2014 | B13: Netherlands | C13: 2–0 | D13: Chile | E13: Arena de São Paulo, São Paulo | F13: =INDEX(Sheet2!$A$36:$B$67,MATCH(Group_A[[#This Row],[Column2]],CountryFlag,0),1) -> NED | G13: =INDEX(Sheet2!$A$36:$B$67,MATCH(Group_A[[#This Row],[Column4]],CountryFlag,0),1) -> CHI | H13: =CONCATENATE(Group_A[[#This Row],[Column6]],"-",Group_A[[#This Row],[Column7]]) -> NED-CHI | I13: BRA-GER | J13: 1-7 | K13: 2014-07-08 | L13: Belo Horizonte | P13: Nigeria | S13: France
A14: 14 June 2014 | B14: Colombia | C14: 3–0 | D14: Greece | E14: Estádio Mineirão, Belo Horizonte | F14: =INDEX(Sheet2!$A$36:$B$67,MATCH(Group_A[[#This Row],[Column2]],CountryFlag,0),1) -> COL | G14: =INDEX(Sheet2!$A$36:$B$67,MATCH(Group_A[[#This Row],[Column4]],CountryFlag,0),1) -> GRE | H14: =CONCATENATE(Group_A[[#This Row],[Column6]],"-",Group_A[[#This Row],[Column7]]) -> COL-GRE | I14: CMR-BRA | J14: 1–4 | K14: 23 June 2014 | L14: Estádio Nacional Mané Garrincha, Brasília | P14: Algeria | T14: Germany
A15: 14 June 2014 | B15: Ivory Coast | C15: 2–1 | D15: Japan | E15: Arena Pernambuco, Recife | F15: =INDEX(Sheet2!$A$36:$B$67,MATCH(Group_A[[#This Row],[Column2]],CountryFlag,0),1) -> CIV | G15: =INDEX(Sheet2!$A$36:$B$67,MATCH(Group_A[[#This Row],[Column4]],CountryFlag,0),1) -> JPN | H15: =CONCATENATE(Group_A[[#This Row],[Column6]],"-",Group_A[[#This Row],[Column7]]) -> CIV-JPN | I15: GER-GHA | J15: 2–2 | K15: 21 June 2014 | L15: Estádio Castelão, Fortaleza | P15: Mexico | U15: Netherlands
A16: 19 June 2014 | B16: Colombia | C16: 2–1 | D16: Ivory Coast | E16: Estádio Nacional Mané Garrincha, Brasília | F16: =INDEX(Sheet2!$A$36:$B$67,MATCH(Group_A[[#This Row],[Column2]],CountryFlag,0),1) -> COL | G16: =INDEX(Sheet2!$A$36:$B$67,MATCH(Group_A[[#This Row],[Column4]],CountryFlag,0),1) -> CIV | H16: =CONCATENATE(Group_A[[#This Row],[Column6]],"-",Group_A[[#This Row],[Column7]]) -> COL-CIV | I16: ECU-FRA | J16: 0–0 | K16: 25 June 2014 | L16: Estádio do Maracanã, Rio de Janeiro | P16: Greece | V16: Costa Rica
A17: 19 June 2014 | B17: Japan | C17: 0–0 | D17: Greece | E17: Arena das Dunas, Natal | F17: =INDEX(Sheet2!$A$36:$B$67,MATCH(Group_A[[#This Row],[Column2]],CountryFlag,0),1) -> JPN | G17: =INDEX(Sheet2!$A$36:$B$67,MATCH(Group_A[[#This Row],[Column4]],CountryFlag,0),1) -> GRE | H17: =CONCATENATE(Group_A[[#This Row],[Column6]],"-",Group_A[[#This Row],[Column7]]) -> JPN-GRE | I17: ENG-ITA | J17: 1–2 | K17: 14 June 2014 | L17: Arena da Amazônia, Manaus | P17: Switzerland | W17: Argentina
A18: 24 June 2014 | B18: Japan | C18: 1–4 | D18: Colombia | E18: Arena Pantanal, Cuiabá | F18: =INDEX(Sheet2!$A$36:$B$67,MATCH(Group_A[[#This Row],[Column2]],CountryFlag,0),1) -> JPN | G18: =INDEX(Sheet2!$A$36:$B$67,MATCH(Group_A[[#This Row],[Column4]],CountryFlag,0),1) -> COL | H18: =CONCATENATE(Group_A[[#This Row],[Column6]],"-",Group_A[[#This Row],[Column7]]) -> JPN-COL | I18: NGA-ARG | J18: 2–3 | K18: 25 June 2014 | L18: Estádio Beira-Rio, Porto Alegre | P18: United States | X18: Belgium
A19: 24 June 2014 | B19: Greece | C19: 2–1 | D19: Ivory Coast | E19: Estádio Castelão, Fortaleza | F19: =INDEX(Sheet2!$A$36:$B$67,MATCH(Group_A[[#This Row],[Column2]],CountryFlag,0),1) -> GRE | G19: =INDEX(Sheet2!$A$36:$B$67,MATCH(Group_A[[#This Row],[Column4]],CountryFlag,0),1) -> CIV | H19: =CONCATENATE(Group_A[[#This Row],[Column6]],"-",Group_A[[#This Row],[Column7]]) -> GRE-CIV | I19: CRC-GRE | J19: 1 (5)-1 (3) | K19: 2014-06-29 | L19: Recife
A20: 14 June 2014 | B20: Uruguay | C20: 1–3 | D20: Costa Rica | E20: Estádio Castelão, Fortaleza | F20: =INDEX(Sheet2!$A$36:$B$67,MATCH(Group_A[[#This Row],[Column2]],CountryFlag,0),1) -> URU | G20: =INDEX(Sheet2!$A$36:$B$67,MATCH(Group_A[[#This Row],[Column4]],CountryFlag,0),1) -> CRC | H20: =CONCATENATE(Group_A[[#This Row],[Column6]],"-",Group_A[[#This Row],[Column7]]) -> URU-CRC | I20: HON-SUI | J20: 0–3 | K20: 25 June 2014 | L20: Arena da Amazônia, Manaus
A21: 14 June 2014 | B21: England | C21: 1–2 | D21: Italy | E21: Arena da Amazônia, Manaus | F21: =INDEX(Sheet2!$A$36:$B$67,MATCH(Group_A[[#This Row],[Column2]],CountryFlag,0),1) -> ENG | G21: =INDEX(Sheet2!$A$36:$B$67,MATCH(Group_A[[#This Row],[Column4]],CountryFlag,0),1) -> ITA | H21: =CONCATENATE(Group_A[[#This Row],[Column6]],"-",Group_A[[#This Row],[Column7]]) -> ENG-ITA | I21: GHA-USA | J21: 1–2 | K21: 16 June 2014 | L21: Arena das Dunas, Natal
A22: 19 June 2014 | B22: Uruguay | C22: 2–1 | D22: England | E22: Arena de São Paulo, São Paulo | F22: =INDEX(Sheet2!$A$36:$B$67,MATCH(Group_A[[#This Row],[Column2]],CountryFlag,0),1) -> URU | G22: =INDEX(Sheet2!$A$36:$B$67,MATCH(Group_A[[#This Row],[Column4]],CountryFlag,0),1) -> ENG | H22: =CONCATENATE(Group_A[[#This Row],[Column6]],"-",Group_A[[#This Row],[Column7]]) -> URU-ENG | I22: SUI-ECU | J22: 2–1 | K22: 15 June 2014 | L22: Estádio Nacional Mané Garrincha, Brasília
A23: 20 June 2014 | B23: Italy | C23: 0–1 | D23: Costa Rica | E23: Arena Pernambuco, Recife | F23: =INDEX(Sheet2!$A$36:$B$67,MATCH(Group_A[[#This Row],[Column2]],CountryFlag,0),1) -> ITA | G23: =INDEX(Sheet2!$A$36:$B$67,MATCH(Group_A[[#This Row],[Column4]],CountryFlag,0),1) -> CRC | H23: =CONCATENATE(Group_A[[#This Row],[Column6]],"-",Group_A[[#This Row],[Column7]]) -> ITA-CRC | I23: BRA-MEX | J23: 0–0 | K23: 17 June 2014 | L23: Estádio Castelão, Fortaleza
A24: 24 June 2014 | B24: Italy | C24: 0–1 | D24: Uruguay | E24: Arena das Dunas, Natal | F24: =INDEX(Sheet2!$A$36:$B$67,MATCH(Group_A[[#This Row],[Column2]],CountryFlag,0),1) -> ITA | G24: =INDEX(Sheet2!$A$36:$B$67,MATCH(Group_A[[#This Row],[Column4]],CountryFlag,0),1) -> URU | H24: =CONCATENATE(Group_A[[#This Row],[Column6]],"-",Group_A[[#This Row],[Column7]]) -> ITA-URU | I24: GER-POR | J24: 4–0 | K24: 16 June 2014 | L24: Arena Fonte Nova, Salvador
A25: 24 June 2014 | B25: Costa Rica | C25: 0–0 | D25: England | E25: Estádio Mineirão, Belo Horizonte | F25: =INDEX(Sheet2!$A$36:$B$67,MATCH(Group_A[[#This Row],[Column2]],CountryFlag,0),1) -> CRC | G25: =INDEX(Sheet2!$A$36:$B$67,MATCH(Group_A[[#This Row],[Column4]],CountryFlag,0),1) -> ENG | H25: =CONCATENATE(Group_A[[#This Row],[Column6]],"-",Group_A[[#This Row],[Column7]]) -> CRC-ENG | I25: ARG-BIH | J25: 2–1 | K25: 15 June 2014 | L25: Estádio do Maracanã, Rio de Janeiro
A26: 15 June 2014 | B26: Switzerland | C26: 2–1 | D26: Ecuador | E26: Estádio Nacional Mané Garrincha, Brasília | F26: =INDEX(Sheet2!$A$36:$B$67,MATCH(Group_A[[#This Row],[Column2]],CountryFlag,0),1) -> SUI | G26: =INDEX(Sheet2!$A$36:$B$67,MATCH(Group_A[[#This Row],[Column4]],CountryFlag,0),1) -> ECU | H26: =CONCATENATE(Group_A[[#This Row],[Column6]],"-",Group_A[[#This Row],[Column7]]) -> SUI-ECU | I26: ARG-IRN | J26: 1–0 | K26: 21 June 2014 | L26: Estádio Mineirão, Belo Horizonte
A27: 15 June 2014 | B27: France | C27: 3–0 | D27: Honduras | E27: Estádio Beira-Rio, Porto Alegre | F27: =INDEX(Sheet2!$A$36:$B$67,MATCH(Group_A[[#This Row],[Column2]],CountryFlag,0),1) -> FRA | G27: =INDEX(Sheet2!$A$36:$B$67,MATCH(Group_A[[#This Row],[Column4]],CountryFlag,0),1) -> HON | H27: =CONCATENATE(Group_A[[#This Row],[Column6]],"-",Group_A[[#This Row],[Column7]]) -> FRA-HON | I27: COL-CIV | J27: 2–1 | K27: 19 June 2014 | L27: Estádio Nacional Mané Garrincha, Brasília
A28: 20 June 2014 | B28: Switzerland | C28: 2–5 | D28: France | E28: Arena Fonte Nova, Salvador | F28: =INDEX(Sheet2!$A$36:$B$67,MATCH(Group_A[[#This Row],[Column2]],CountryFlag,0),1) -> SUI | G28: =INDEX(Sheet2!$A$36:$B$67,MATCH(Group_A[[#This Row],[Column4]],CountryFlag,0),1) -> FRA | H28: =CONCATENATE(Group_A[[#This Row],[Column6]],"-",Group_A[[#This Row],[Column7]]) -> SUI-FRA | I28: GRE-CIV | J28: 2–1 | K28: 24 June 2014 | L28: Estádio Castelão, Fortaleza
A29: 20 June 2014 | B29: Honduras | C29: 1–2 | D29: Ecuador | E29: Arena da Baixada, Curitiba | F29: =INDEX(Sheet2!$A$36:$B$67,MATCH(Group_A[[#This Row],[Column2]],CountryFlag,0),1) -> HON | G29: =INDEX(Sheet2!$A$36:$B$67,MATCH(Group_A[[#This Row],[Column4]],CountryFlag,0),1) -> ECU | H29: =CONCATENATE(Group_A[[#This Row],[Column6]],"-",Group_A[[#This Row],[Column7]]) -> HON-ECU | I29: CIV-JPN | J29: 2–1 | K29: 14 June 2014 | L29: Arena Pernambuco, Recife
A30: 25 June 2014 | B30: Honduras | C30: 0–3 | D30: Switzerland | E30: Arena da Amazônia, Manaus | F30: =INDEX(Sheet2!$A$36:$B$67,MATCH(Group_A[[#This Row],[Column2]],CountryFlag,0),1) -> HON | G30: =INDEX(Sheet2!$A$36:$B$67,MATCH(Group_A[[#This Row],[Column4]],CountryFlag,0),1) -> SUI | H30: =CONCATENATE(Group_A[[#This Row],[Column6]],"-",Group_A[[#This Row],[Column7]]) -> HON-SUI | I30: NED-MEX | J30: 2-1 | K30: 2014-06-29 | L30: Fortaleza
A31: 25 June 2014 | B31: Ecuador | C31: 0–0 | D31: France | E31: Estádio do Maracanã, Rio de Janeiro | F31: =INDEX(Sheet2!$A$36:$B$67,MATCH(Group_A[[#This Row],[Column2]],CountryFlag,0),1) -> ECU | G31: =INDEX(Sheet2!$A$36:$B$67,MATCH(Group_A[[#This Row],[Column4]],CountryFlag,0),1) -> FRA | H31: =CONCATENATE(Group_A[[#This Row],[Column6]],"-",Group_A[[#This Row],[Column7]]) -> ECU-FRA | I31: NED-CRC | J31: 0 (4)-0 (3) | K31: 2014-07-05 | L31: Salvador
A32: 15 June 2014 | B32: Argentina | C32: 2–1 | D32: Bosnia and Herzegovina | E32: Estádio do Maracanã, Rio de Janeiro | F32: =INDEX(Sheet2!$A$36:$B$67,MATCH(Group_A[[#This Row],[Column2]],CountryFlag,0),1) -> ARG | G32: =INDEX(Sheet2!$A$36:$B$67,MATCH(Group_A[[#This Row],[Column4]],CountryFlag,0),1) -> BIH | H32: =CONCATENATE(Group_A[[#This Row],[Column6]],"-",Group_A[[#This Row],[Column7]]) -> ARG-BIH | I32: COL-URU | J32: 2-0 | K32: 2014-06-28 | L32: Rio de Janeiro
A33: 16 June 2014 | B33: Iran | C33: 0–0 | D33: Nigeria | E33: Arena da Baixada, Curitiba | F33: =INDEX(Sheet2!$A$36:$B$67,MATCH(Group_A[[#This Row],[Column2]],CountryFlag,0),1) -> IRN | G33: =INDEX(Sheet2!$A$36:$B$67,MATCH(Group_A[[#This Row],[Column4]],CountryFlag,0),1) -> NGA | H33: =CONCATENATE(Group_A[[#This Row],[Column6]],"-",Group_A[[#This Row],[Column7]]) -> IRN-NGA | I33: RUS-KOR | J33: 1–1 | K33: 17 June 2014 | L33: Arena Pantanal, Cuiabá
A34: 21 June 2014 | B34: Argentina | C34: 1–0 | D34: Iran | E34: Estádio Mineirão, Belo Horizonte | F34: =INDEX(Sheet2!$A$36:$B$67,MATCH(Group_A[[#This Row],[Column2]],CountryFlag,0),1) -> ARG | G34: =INDEX(Sheet2!$A$36:$B$67,MATCH(Group_A[[#This Row],[Column4]],CountryFlag,0),1) -> IRN | H34: =CONCATENATE(Group_A[[#This Row],[Column6]],"-",Group_A[[#This Row],[Column7]]) -> ARG-IRN | I34: JPN-GRE | J34: 0–0 | K34: 19 June 2014 | L34: Arena das Dunas, Natal
A35: 21 June 2014 | B35: Nigeria | C35: 1–0 | D35: Bosnia and Herzegovina | E35: Arena Pantanal, Cuiabá | F35: =INDEX(Sheet2!$A$36:$B$67,MATCH(Group_A[[#This Row],[Column2]],CountryFlag,0),1) -> NGA | G35: =INDEX(Sheet2!$A$36:$B$67,MATCH(Group_A[[#This Row],[Column4]],CountryFlag,0),1) -> BIH | H35: =CONCATENATE(Group_A[[#This Row],[Column6]],"-",Group_A[[#This Row],[Column7]]) -> NGA-BIH | I35: AUS-NED | J35: 2–3 | K35: 18 June 2014 | L35: Estádio Beira-Rio, Porto Alegre
A36: 25 June 2014 | B36: Nigeria | C36: 2–3 | D36: Argentina | E36: Estádio Beira-Rio, Porto Alegre | F36: =INDEX(Sheet2!$A$36:$B$67,MATCH(Group_A[[#This Row],[Column2]],CountryFlag,0),1) -> NGA | G36: =INDEX(Sheet2!$A$36:$B$67,MATCH(Group_A[[#This Row],[Column4]],CountryFlag,0),1) -> ARG | H36: =CONCATENATE(Group_A[[#This Row],[Column6]],"-",Group_A[[#This Row],[Column7]]) -> NGA-ARG | I36: CHI-AUS | J36: 3–1 | K36: 13 June 2014 | L36: Arena Pantanal, Cuiabá
A37: 25 June 2014 | B37: Bosnia and Herzegovina | C37: 3–1 | D37: Iran | E37: Arena Fonte Nova, Salvador | F37: =INDEX(Sheet2!$A$36:$B$67,MATCH(Group_A[[#This Row],[Column2]],CountryFlag,0),1) -> BIH | G37: =INDEX(Sheet2!$A$36:$B$67,MATCH(Group_A[[#This Row],[Column4]],CountryFlag,0),1) -> IRN | H37: =CONCATENATE(Group_A[[#This Row],[Column6]],"-",Group_A[[#This Row],[Column7]]) -> BIH-IRN | I37: COL-GRE | J37: 3–0 | K37: 14 June 2014 | L37: Estádio Mineirão, Belo Horizonte
A38: 16 June 2014 | B38: Germany | C38: 4–0 | D38: Portugal | E38: Arena Fonte Nova, Salvador | F38: =INDEX(Sheet2!$A$36:$B$67,MATCH(Group_A[[#This Row],[Column2]],CountryFlag,0),1) -> GER | G38: =INDEX(Sheet2!$A$36:$B$67,MATCH(Group_A[[#This Row],[Column4]],CountryFlag,0),1) -> POR | H38: =CONCATENATE(Group_A[[#This Row],[Column6]],"-",Group_A[[#This Row],[Column7]]) -> GER-POR | I38: BEL-RUS | J38: 1–0 | K38: 22 June 2014 | L38: Estádio do Maracanã, Rio de Janeiro
A39: 16 June 2014 | B39: Ghana | C39: 1–2 | D39: United States | E39: Arena das Dunas, Natal | F39: =INDEX(Sheet2!$A$36:$B$67,MATCH(Group_A[[#This Row],[Column2]],CountryFlag,0),1) -> GHA | G39: =INDEX(Sheet2!$A$36:$B$67,MATCH(Group_A[[#This Row],[Column4]],CountryFlag,0),1) -> USA | H39: =CONCATENATE(Group_A[[#This Row],[Column6]],"-",Group_A[[#This Row],[Column7]]) -> GHA-USA | I39: BRA-CRO | J39: 3–1 | K39: 12 June 2014 | L39: Arena de São Paulo, São Paulo
A40: 21 June 2014 | B40: Germany | C40: 2–2 | D40: Ghana | E40: Estádio Castelão, Fortaleza | F40: =INDEX(Sheet2!$A$36:$B$67,MATCH(Group_A[[#This Row],[Column2]],CountryFlag,0),1) -> GER | G40: =INDEX(Sheet2!$A$36:$B$67,MATCH(Group_A[[#This Row],[Column4]],CountryFlag,0),1) -> GHA | H40: =CONCATENATE(Group_A[[#This Row],[Column6]],"-",Group_A[[#This Row],[Column7]]) -> GER-GHA | I40: HON-ECU | J40: 1–2 | K40: 20 June 2014 | L40: Arena da Baixada, Curitiba
A41: 22 June 2014 | B41: United States | C41: 2–2 | D41: Portugal | E41: Arena da Amazônia, Manaus | F41: =INDEX(Sheet2!$A$36:$B$67,MATCH(Group_A[[#This Row],[Column2]],CountryFlag,0),1) -> USA | G41: =INDEX(Sheet2!$A$36:$B$67,MATCH(Group_A[[#This Row],[Column4]],CountryFlag,0),1) -> POR | H41: =CONCATENATE(Group_A[[#This Row],[Column6]],"-",Group_A[[#This Row],[Column7]]) -> USA-POR | I41: KOR-ALG | J41: 2–4 | K41: 22 June 2014 | L41: Estádio Beira-Rio, Porto Alegre
A42: 26 June 2014 | B42: United States | C42: 0–1 | D42: Germany | E42: Arena Pernambuco, Recife | F42: =INDEX(Sheet2!$A$36:$B$67,MATCH(Group_A[[#This Row],[Column2]],CountryFlag,0),1) -> USA | G42: =INDEX(Sheet2!$A$36:$B$67,MATCH(Group_A[[#This Row],[Column4]],CountryFlag,0),1) -> GER | H42: =CONCATENATE(Group_A[[#This Row],[Column6]],"-",Group_A[[#This Row],[Column7]]) -> USA-GER | I42: FRA-HON | J42: 3–0 | K42: 15 June 2014 | L42: Estádio Beira-Rio, Porto Alegre
A43: 26 June 2014 | B43: Portugal | C43: 2–1 | D43: Ghana | E43: Estádio Nacional Mané Garrincha, Brasília | F43: =INDEX(Sheet2!$A$36:$B$67,MATCH(Group_A[[#This Row],[Column2]],CountryFlag,0),1) -> POR | G43: =INDEX(Sheet2!$A$36:$B$67,MATCH(Group_A[[#This Row],[Column4]],CountryFlag,0),1) -> GHA | H43: =CONCATENATE(Group_A[[#This Row],[Column6]],"-",Group_A[[#This Row],[Column7]]) -> POR-GHA | I43: URU-ENG | J43: 2–1 | K43: 19 June 2014 | L43: Arena de São Paulo, São Paulo
A44: 17 June 2014 | B44: Belgium | C44: 2–1 | D44: Algeria | E44: Estádio Mineirão, Belo Horizonte | F44: =INDEX(Sheet2!$A$36:$B$67,MATCH(Group_A[[#This Row],[Column2]],CountryFlag,0),1) -> BEL | G44: =INDEX(Sheet2!$A$36:$B$67,MATCH(Group_A[[#This Row],[Column4]],CountryFlag,0),1) -> ALG | H44: =CONCATENATE(Group_A[[#This Row],[Column6]],"-",Group_A[[#This Row],[Column7]]) -> BEL-ALG | I44: ITA-URU | J44: 0–1 | K44: 24 June 2014 | L44: Arena das Dunas, Natal
A45: 17 June 2014 | B45: Russia | C45: 1–1 | D45: South Korea | E45: Arena Pantanal, Cuiabá | F45: =INDEX(Sheet2!$A$36:$B$67,MATCH(Group_A[[#This Row],[Column2]],CountryFlag,0),1) -> RUS | G45: =INDEX(Sheet2!$A$36:$B$67,MATCH(Group_A[[#This Row],[Column4]],CountryFlag,0),1) -> KOR | H45: =CONCATENATE(Group_A[[#This Row],[Column6]],"-",Group_A[[#This Row],[Column7]]) -> RUS-KOR | I45: BRA-COL | J45: 2-1 | K45: 2014-07-04 | L45: Fortaleza
A46: 22 June 2014 | B46: Belgium | C46: 1–0 | D46: Russia | E46: Estádio do Maracanã, Rio de Janeiro | F46: =INDEX(Sheet2!$A$36:$B$67,MATCH(Group_A[[#This Row],[Column2]],CountryFlag,0),1) -> BEL | G46: =INDEX(Sheet2!$A$36:$B$67,MATCH(Group_A[[#This Row],[Column4]],CountryFlag,0),1) -> RUS | H46: =CONCATENATE(Group_A[[#This Row],[Column6]],"-",Group_A[[#This Row],[Column7]]) -> BEL-RUS | I46: FRA-NGA | J46: 2-0 | K46: 2014-06-30 | L46: Brasília
A47: 22 June 2014 | B47: South Korea | C47: 2–4 | D47: Algeria | E47: Estádio Beira-Rio, Porto Alegre | F47: =INDEX(Sheet2!$A$36:$B$67,MATCH(Group_A[[#This Row],[Column2]],CountryFlag,0),1) -> KOR | G47: =INDEX(Sheet2!$A$36:$B$67,MATCH(Group_A[[#This Row],[Column4]],CountryFlag,0),1) -> ALG | H47: =CONCATENATE(Group_A[[#This Row],[Column6]],"-",Group_A[[#This Row],[Column7]]) -> KOR-ALG | I47: CRO-MEX | J47: 1–3 | K47: 23 June 2014 | L47: Arena Pernambuco, Recife
A48: 26 June 2014 | B48: South Korea | C48: 0–1 | D48: Belgium | E48: Arena de São Paulo, São Paulo | F48: =INDEX(Sheet2!$A$36:$B$67,MATCH(Group_A[[#This Row],[Column2]],CountryFlag,0),1) -> KOR | G48: =INDEX(Sheet2!$A$36:$B$67,MATCH(Group_A[[#This Row],[Column4]],CountryFlag,0),1) -> BEL | H48: =CONCATENATE(Group_A[[#This Row],[Column6]],"-",Group_A[[#This Row],[Column7]]) -> KOR-BEL | I48: ESP-CHI | J48: 0–2 | K48: 18 June 2014 | L48: Estádio do Maracanã, Rio de Janeiro
A49: 26 June 2014 | B49: Algeria | C49: 1–1 | D49: Russia | E49: Arena da Baixada, Curitiba | F49: =INDEX(Sheet2!$A$36:$B$67,MATCH(Group_A[[#This Row],[Column2]],CountryFlag,0),1) -> ALG | G49: =INDEX(Sheet2!$A$36:$B$67,MATCH(Group_A[[#This Row],[Column4]],CountryFlag,0),1) -> RUS | H49: =CONCATENATE(Group_A[[#This Row],[Column6]],"-",Group_A[[#This Row],[Column7]]) -> ALG-RUS | I49: ESP-NED | J49: 1–5 | K49: 13 June 2014 | L49: Arena Fonte Nova, Salvador
A50: 2014-06-28 | B50: Brazil | C50: 1 (3)-1 (2) | D50: Chile | E50: Belo Horizonte | F50: =INDEX(Sheet2!$A$36:$B$67,MATCH(B50,CountryFlag,0),1) -> BRA | G50: =INDEX(Sheet2!$A$36:$B$67,MATCH(D50,CountryFlag,0),1) -> CHI | H50: =CONCATENATE(F50,"-",G50) -> BRA-CHI | I50: URU-CRC | J50: 1–3 | K50: 14 June 2014 | L50: Estádio Castelão, Fortaleza
A51: 2014-06-28 | B51: Colombia | C51: 2-0 | D51: Uruguay | E51: Rio de Janeiro | F51: =INDEX(Sheet2!$A$36:$B$67,MATCH(B51,CountryFlag,0),1) -> COL | G51: =INDEX(Sheet2!$A$36:$B$67,MATCH(D51,CountryFlag,0),1) -> URU | H51: =CONCATENATE(F51,"-",G51) -> COL-URU | I51: FRA-GER | J51: 0-1 | K51: 2014-07-04 | L51: Rio de Janeiro
A52: 2014-06-30 | B52: France | C52: 2-0 | D52: Nigeria | E52: Brasília | F52: =INDEX(Sheet2!$A$36:$B$67,MATCH(B52,CountryFlag,0),1) -> FRA | G52: =INDEX(Sheet2!$A$36:$B$67,MATCH(D52,CountryFlag,0),1) -> NGA | H52: FRA-NGA | I52: NED-CHI | J52: 2–0 | K52: 23 June 2014 | L52: Arena de São Paulo, São Paulo
A53: 2014-06-30 | B53: Germany | C53: 2-1 | D53: Algeria | E53: Porto Alegre | F53: =INDEX(Sheet2!$A$36:$B$67,MATCH(B53,CountryFlag,0),1) -> GER | G53: =INDEX(Sheet2!$A$36:$B$67,MATCH(D53,CountryFlag,0),1) -> ALG | H53: GER-ALG | I53: BIH-IRN | J53: 3–1 | K53: 25 June 2014 | L53: Arena Fonte Nova, Salvador
A54: 2014-06-29 | B54: Netherlands | C54: 2-1 | D54: Mexico | E54: Fortaleza | F54: =INDEX(Sheet2!$A$36:$B$67,MATCH(B54,CountryFlag,0),1) -> NED | G54: =INDEX(Sheet2!$A$36:$B$67,MATCH(D54,CountryFlag,0),1) -> MEX | H54: NED-MEX | I54: ITA-CRC | J54: 0–1 | K54: 20 June 2014 | L54: Arena Pernambuco, Recife
A55: 2014-06-29 | B55: Costa Rica | C55: 1 (5)-1 (3) | D55: Greece | E55: Recife | F55: =INDEX(Sheet2!$A$36:$B$67,MATCH(B55,CountryFlag,0),1) -> CRC | G55: =INDEX(Sheet2!$A$36:$B$67,MATCH(D55,CountryFlag,0),1) -> GRE | H55: CRC-GRE | I55: ARG-BEL | J55: 1-0 | K55: 2014-07-05 | L55: Brasília
A56: 2014-07-01 | B56: Argentina | C56: 1-0 | D56: Switzerland | E56: São Paulo | F56: =INDEX(Sheet2!$A$36:$B$67,MATCH(B56,CountryFlag,0),1) -> ARG | G56: =INDEX(Sheet2!$A$36:$B$67,MATCH(D56,CountryFlag,0),1) -> SUI | H56: ARG-SUI | I56: MEX-CMR | J56: 1–0 | K56: 13 June 2014 | L56: Arena das Dunas, Natal
A57: 2014-07-01 | B57: Belgium | C57: 2-1 | D57: United States | E57: Salvador | F57: =INDEX(Sheet2!$A$36:$B$67,MATCH(B57,CountryFlag,0),1) -> BEL | G57: =INDEX(Sheet2!$A$36:$B$67,MATCH(D57,CountryFlag,0),1) -> USA | H57: BEL-USA | I57: BEL-ALG | J57: 2–1 | K57: 17 June 2014 | L57: Estádio Mineirão, Belo Horizonte
A58: 2014-07-04 | B58: Brazil | C58: 2-1 | D58: Colombia | E58: Fortaleza | F58: =INDEX(Sheet2!$A$36:$B$67,MATCH(B58,CountryFlag,0),1) -> BRA | G58: =INDEX(Sheet2!$A$36:$B$67,MATCH(D58,CountryFlag,0),1) -> COL | H58: BRA-COL | I58: ALG-RUS | J58: 1–1 | K58: 26 June 2014 | L58: Arena da Baixada, Curitiba
A59: 2014-07-04 | B59: France | C59: 0-1 | D59: Germany | E59: Rio de Janeiro | F59: =INDEX(Sheet2!$A$36:$B$67,MATCH(B59,CountryFlag,0),1) -> FRA | G59: =INDEX(Sheet2!$A$36:$B$67,MATCH(D59,CountryFlag,0),1) -> GER | H59: FRA-GER | I59: IRN-NGA | J59: 0–0 | K59: 16 June 2014 | L59: Arena da Baixada, Curitiba
A60: 2014-07-05 | B60: Netherlands | C60: 0 (4)-0 (3) | D60: Costa Rica | E60: Salvador | F60: =INDEX(Sheet2!$A$36:$B$67,MATCH(B60,CountryFlag,0),1) -> NED | G60: =INDEX(Sheet2!$A$36:$B$67,MATCH(D60,CountryFlag,0),1) -> CRC | H60: NED-CRC | I60: USA-GER | J60: 0–1 | K60: 26 June 2014 | L60: Arena Pernambuco, Recife
A61: 2014-07-05 | B61: Argentina | C61: 1-0 | D61: Belgium | E61: Brasília | F61: =INDEX(Sheet2!$A$36:$B$67,MATCH(B61,CountryFlag,0),1) -> ARG | G61: =INDEX(Sheet2!$A$36:$B$67,MATCH(D61,CountryFlag,0),1) -> BEL | H61: ARG-BEL | I61: AUS-ESP | J61: 0–3 | K61: 23 June 2014 | L61: Arena da Baixada, Curitiba
A62: 2014-07-08 | B62: Brazil | C62: 1-7 | D62: Germany | E62: Belo Horizonte | F62: =INDEX(Sheet2!$A$36:$B$67,MATCH(B62,CountryFlag,0),1) -> BRA | G62: =INDEX(Sheet2!$A$36:$B$67,MATCH(D62,CountryFlag,0),1) -> GER | H62: BRA-GER | I62: CRC-ENG | J62: 0–0 | K62: 24 June 2014 | L62: Estádio Mineirão, Belo Horizonte
A63: 2014-07-09 | B63: Netherlands | C63: 0 (2)-0 (4) | D63: Argentina | E63: São Paulo | F63: =INDEX(Sheet2!$A$36:$B$67,MATCH(B63,CountryFlag,0),1) -> NED | G63: =INDEX(Sheet2!$A$36:$B$67,MATCH(D63,CountryFlag,0),1) -> ARG | H63: NED-ARG

Sheet Sheet2
P1: Scoring | S1: Attack | AC1: Defense | AM1: Passing
B2: Current ranking | C2: Coach | F2: Stage | G2: Matches Played | H2: Goals For | I2: Total Goals Scored | J2: Goals Conceded | K2: Penalty Goal | L2: Own Goals For | M2: Open Play Goals | N2: Set Piece Goals | O2: Distance covered | P2: Goal/min | Q2: Goal/attempt | R2: Attempts | S2: Shots saved | T2: Attempt off target | U2: Shots blocked | V2: Goals scored | W2: Dribble into penalty area | X2: Deliveries in penalty area | Y2: Crosses total | Z2: Crosses Completed | AA2: Offsides | AB2: Total attempts | AC2: Tackles | AD2: Blocks | AE2: Saves | AF2: Attempted Clearances | AG2: Completed Clearances | AH2: Recovered Balls | AI2: Tackles | AJ2: Tackles won | AK2: Tackles lost | AL2: Offsides given | AM2: Short Passes Complete | AN2: Medium Passes Complete | AO2: Long Passes Complete | AP2: Total passes complete | AQ2: Crosses | AR2: Throw ins | AV2: Short Passes Complete | BB2: =CHOOSE($AW$16,AU15,AU16,AU17,AU18,AU19,AU20) -> Goal/min | BD2: =$AV$8 & " " &BB2 -> Germany Goal/min | BF2: =CHOOSE($AW$17,AU15,AU16,AU17,AU18,AU19,AU20) -> Set Piece Goals | BH2: =$AV$8 & " " &BF2 -> Germany Set Piece Goals | BJ2: =CHOOSE($AW$18,AU15,AU16,AU17,AU18,AU19,AU20) -> Goals For | BL2: =$AV$8 & " " &BJ2 -> Germany Goals For | BQ2: Top goals | BR2: Open play | BS2: Set piece | BT2: Penalty | BW2: 25 | BY2: 28 | CG2: Top goals | CH2: Open play | CI2: Set piece | CJ2: Penalty
B3: 1 | C3: Joachim Löw | D3: 1 | E3: Germany | F3: Winners | G3: 7 | H3: 18 | I3: 18 | J3: 4 | K3: 1 | L3: 0 | M3: 15 | N3: 3 | O3: 846.8 km | P3: 38 | Q3: 5.4 | R3: =SUM(S3:V3) -> 97 | S3: 29 | T3: 27 | U3: 23 | V3: 18 | W3: 28 | X3: 2 | Y3: 148 | Z3: 40 | AA3: 17 | AB3: =SUM(AC3:AE3) -> 157 | AC3: 110 | AD3: 24 | AE3: 23 | AF3: 104 | AG3: 88 | AH3: 327 | AI3: 110 | AJ3: 31 | AK3: 79 | AL3: 20 | AM3: 1017 | AN3: 2763 | AO3: 377 | AP3: =SUM(AM3:AO3) -> 4157 | AQ3: 148 | AR3: 221 | AU3: Scoring | AV3: =parameterSel -> Scoring | AW3: =MATCH($AV$3,$P$1:$AR$1,0) -> 1 | AX3: =MATCH(AV3,lstParameters,0) -> 1 | AZ3: Germany | BA3: 2 | BB3: =INDEX($E$2:$AR$34,MATCH($AZ3,$E$2:$E$34,0),MATCH(CHOOSE($AW$16,$AU$15,$AU$16,$AU$17,$AU$18,$AU$19,$AU$20),$E$2:$AR$2,0)) -> 38 | BC3: =BB3/MAX($BB$3:$BB$34) -> 0.1407407407 | BD3: =IF(linkedCellFlag=$AZ3,$BC3,NA())/MAX($BC$3:$BC$34) -> 0.1407407407 | BE3: 5 | BF3: =INDEX($E$2:$AR$34,MATCH($AZ3,$E$2:$E$34,0),MATCH(CHOOSE($AW$17,$AU$15,$AU$16,$AU$17,$AU$18,$AU$19,$AU$20),$E$2:$AR$2,0)) -> 3 | BG3: =IF($BF$2="Goal/min",1-BF3/MAX($BF$3:$BF$34),BF3/MAX($BF$3:$BF$34)) -> 1 | BH3: =IF(linkedCellFlag=$AZ3,$BG3,NA())/MAX($BG$3:$BG$34) -> 1 | BI3: 8 | BJ3: =INDEX($E$2:$AR$34,MATCH($AZ3,$E$2:$E$34,0),MATCH(CHOOSE($AW$18,$AU$15,$AU$16,$AU$17,$AU$18,$AU$19,$AU$20),$E$2:$AR$2,0)) -> 18 | BK3: =BJ3/MAX($BJ$3:$BJ$34) -> 1 | BL3: =IF(linkedCellFlag=$AZ3,$BK3,NA())/MAX($BK$3:$BK$34) -> 1 | BN3: 846.8 | BO3: =AP3/G3 -> 593.8571429 | BP3: 1 | BQ3: =INDEX($E$3:$N$34,MATCH(LARGE($I$3:$I$34,BP3),$I$3:$I$34,0),1) -> Germany | BR3: =INDEX($E$3:$N$34,MATCH(BQ3,$E$3:$E$34,0),9) -> 15 | BS3: =INDEX($E$3:$N$34,MATCH(BQ3,$E$3:$E$34,0),10) -> 3 | BT3: =INDEX($E$3:$N$34,MATCH(BQ3,$E$3:$E$34,0),7) -> 1 | BW3: =INDEX(Sheet3!$AN$3:$AN$34,BW2,1) -> Germany | BY3: =INDEX(Sheet3!$AN$3:$AN$34,BY2,1) -> United States | CA3: =BW3 -> Germany | CB3: Tournament average | CC3: =BY3 -> United States | CF3: 1 | CG3: Germany | CH3: 15 | CI3: 3 | CJ3: 1
B4: 4 | C4: José Pékerman (Argentina) | D4: 2 | E4: Colombia | F4: =CHOOSE($G4,"","","Group stage","Round of 16","Quarter finals","Semi finals", "Finals") -> Quarter finals | G4: 5 | H4: 12 | I4: 12 | J4: 4 | K4: 2 | L4: 0 | M4: 9 | N4: 3 | O4: 516.6 km | P4: 38 | Q4: 4.8 | R4: =SUM(S4:V4) -> 57 | S4: 12 | T4: 19 | U4: 16 | V4: 10 | W4: 11 | X4: 3 | Y4: 65 | Z4: 19 | AA4: 10 | AB4: =SUM(AC4:AE4) -> 127 | AC4: 85 | AD4: 22 | AE4: 20 | AF4: 56 | AG4: 47 | AH4: 180 | AI4: 85 | AJ4: 22 | AK4: 63 | AL4: 6 | AM4: 407 | AN4: 902 | AO4: 168 | AP4: =SUM(AM4:AO4) -> 1477 | AQ4: 65 | AR4: 159 | AX4: ="Team: "&linkedCellFlag &" " &CHAR(10) &"Stage: " &INDEX($E$3:$F$34,MATCH(linkedCellFlag,$E$3:$E$34,0),2) &CHAR(10) &"Current Rank: " &INDEX($B$3:$E$34,MATCH(linkedCellFlag,$E$3:$E$34,0),1) &CHAR(10) &"Coach: " &INDEX($B$3:$E$34,MATCH(linkedCellFlag,$E$3:$E$34,0),2) & CHAR(10) &"Distance covered by "&linkedCellFlag&" in " &CHAR(10) &INDEX(Sheet2!$E$3:$G$34,MATCH(linkedCellFlag,Sheet2!$E$3:$E$34,0),3)&" mathces is " &INDEX(Sheet2!$E$3:$O$34,MATCH(linkedCellFlag,Sheet2!$E$3:$E$34,0),COLUMNS(Sheet2!$E$3:$O$3)) -> Team: Germany Stage: Winners Current Rank: 1 Coach: Joachim Löw Distance covered by Germany in 7 mathces is 846.8 km | AZ4: Colombia | BA4: 2 | BB4: =INDEX($E$2:$AR$34,MATCH($AZ4,$E$2:$E$34,0),MATCH(CHOOSE($AW$16,$AU$15,$AU$16,$AU$17,$AU$18,$AU$19,$AU$20),$E$2:$AR$2,0)) -> 38 | BC4: =BB4/MAX($BB$3:$BB$34) -> 0.1407407407 | BE4: 5 | BF4: 3 | BG4: =IF($BF$2="Goal/min",1-BF4/MAX($BF$3:$BF$34),BF4/MAX($BF$3:$BF$34)) -> 1 | BI4: 8 | BJ4: 12 | BK4: =BJ4/MAX($BJ$3:$BJ$34) -> 0.6666666667 | BN4: 516.6 | BO4: =AP4/G4 -> 295.4 | BP4: 2 | BQ4: =INDEX($E$3:$N$34,MATCH(LARGE($I$3:$I$34,BP4),$I$3:$I$34,0),1) -> Netherlands | BR4: =INDEX($E$3:$N$34,MATCH(BQ4,$E$3:$E$34,0),9) -> 13 | BS4: =INDEX($E$3:$N$34,MATCH(BQ4,$E$3:$E$34,0),10) -> 1 | BT4: =INDEX($E$3:$N$34,MATCH(BQ4,$E$3:$E$34,0),7) -> 2 | BW4: =INDEX($E$2:$AR$34,MATCH(BW$3,$E$2:$E$34,0),MATCH($BX4,$E$2:$AR$2,0)) -> 7 | BX4: Matches played | BY4: =INDEX($E$2:$AR$34,MATCH(BY$3,$E$2:$E$34,0),MATCH($BX4,$E$2:$AR$2,0)) -> 4 | BZ4: =7-CA4 -> 0 | CA4: =BW4 -> 7 | CB4: 0 | CC4: 4 | CD4: =7-CA4 -> 0 | CF4: 2 | CG4: Netherlands | CH4: 13 | CI4: 1 | CJ4: 2
B5: 3 | C5: Louis van Gaal | D5: 3 | E5: Netherlands | F5: 3rd place | G5: 7 | H5: 15 | I5: 15 | J5: 4 | K5: 2 | L5: 0 | M5: 13 | N5: 1 | O5: 826.3 km | P5: 46 | Q5: 6 | R5: 90 | S5: 26 | T5: 26 | U5: 23 | V5: 15 | W5: 31 | X5: 7 | Y5: 121 | Z5: 28 | AA5: 27 | AB5: 123 | AC5: 92 | AD5: 18 | AE5: 13 | AF5: 93 | AG5: 81 | AH5: 308 | AI5: 92 | AJ5: 30 | AK5: 57 | AL5: 16 | AM5: 569 | AN5: 2006 | AO5: 425 | AP5: 3000 | AQ5: 121 | AR5: 228 | AU5: =IF($AW$3<3,K2,IF($AW$3<12,U2,IF($AW$3<22,AG2,AO2))) -> Penalty Goal | AV5: =INDEX($E$2:$AR$34,MATCH(linkedCellFlag,$E$2:$E$34,0),MATCH($AU5,$E$2:$AR$2,0)) -> 1 | AZ5: Netherlands | BA5: 2 | BB5: 46 | BC5: 0.1703703704 | BE5: 5 | BF5: 1 | BG5: 0.3333333333 | BI5: 8 | BJ5: 15 | BK5: 0.8333333333 | BN5: 826.3 | BO5: 428.5714286 | BP5: 3 | BQ5: =INDEX($E$3:$N$34,MATCH(LARGE($I$3:$I$34,BP5),$I$3:$I$34,0),1) -> Colombia | BR5: =INDEX($E$3:$N$34,MATCH(BQ5,$E$3:$E$34,0),9) -> 9 | BS5: =INDEX($E$3:$N$34,MATCH(BQ5,$E$3:$E$34,0),10) -> 3 | BT5: =INDEX($E$3:$N$34,MATCH(BQ5,$E$3:$E$34,0),7) -> 2 | BV5: 5.2 | BW5: =INDEX($E$2:$AR$34,MATCH(BW$3,$E$2:$E$34,0),MATCH($BX5,$E$2:$AR$2,0)) -> 18 | BX5: Total goals scored | BY5: =INDEX($E$2:$AR$34,MATCH(BY$3,$E$2:$E$34,0),MATCH($BX5,$E$2:$AR$2,0)) -> 5 | BZ5: =MAX($H$3:$H$34)-CA5 -> 0 | CA5: 18 | CB5: 3 | CC5: 5 | CD5: =MAX($H$3:$H$34)-CC5 -> 13 | CF5: 3 | CG5: Colombia | CH5: 9 | CI5: 3 | CJ5: 2 | CL5: 5
B6: 7 | C6: Luiz Felipe Scolari | D6: 4 | E6: Brazil | F6: 4h place | G6: 7 | H6: 11 | I6: 11 | J6: 11 | K6: 1 | L6: 0 | M6: 8 | N6: 3 | O6: 747.6 km | P6: 60 | Q6: 10.1 | R6: 111 | S6: 33 | T6: 39 | U6: 28 | V6: 11 | W6: 26 | X6: 7 | Y6: 155 | Z6: 36 | AA6: 15 | AB6: 168 | AC6: 141 | AD6: 17 | AE6: 10 | AF6: 93 | AG6: 72 | AH6: 300 | AI6: 141 | AJ6: 48 | AK6: 93 | AL6: 9 | AM6: 727 | AN6: 1688 | AO6: 316 | AP6: 2731 | AQ6: 155 | AR6: 203 | AU6: =IF($AW$3<3,L2,IF($AW$3<12,V2,IF($AW$3<22,AH2,AN2))) -> Own Goals For | AV6: =INDEX($E$2:$AR$34,MATCH(linkedCellFlag,$E$2:$E$34,0),MATCH($AU6,$E$2:$AR$2,0)) -> 0 | AZ6: Brazil | BA6: 2 | BB6: 60 | BC6: 0.2222222222 | BE6: 5 | BF6: 3 | BG6: 1 | BI6: 8 | BJ6: 11 | BK6: 0.6111111111 | BN6: 747.6 | BO6: 390.1428571 | BP6: 4 | BQ6: =INDEX($E$3:$N$34,MATCH(LARGE($I$3:$I$34,BP6),$I$3:$I$34,0),1) -> Brazil | BR6: =INDEX($E$3:$N$34,MATCH(BQ6,$E$3:$E$34,0),9) -> 8 | BS6: =INDEX($E$3:$N$34,MATCH(BQ6,$E$3:$E$34,0),10) -> 3 | BT6: =INDEX($E$3:$N$34,MATCH(BQ6,$E$3:$E$34,0),7) -> 1 | BV6: 1.3 | BW6: =BW5/BW4 -> 2.571428571 | BX6: Goals/match | BY6: =BY5/BY4 -> 1.25 | BZ6: =AVERAGE($H$3:$H$34)-CA6 -> 2.34375 | CA6: 3 | CB6: 1 | CC6: 1 | CD6: =AVERAGE($H$3:$H$34)-CC6 -> 4.34375 | CF6: 4 | CG6: Brazil | CH6: 8 | CI6: 3 | CJ6: 1 | CL6: 1
B7: 10 | C7: Didier Deschamps | D7: 5 | E7: France | F7: Quarter finals | G7: 5 | H7: 10 | I7: 8 | J7: 3 | K7: 1 | L7: 2 | M7: 8 | N7: 2 | O7: 528.4 km | P7: 45 | Q7: 9 | R7: 90 | S7: 28 | T7: 33 | U7: 21 | V7: 8 | W7: 13 | X7: 7 | Y7: 138 | Z7: 43 | AA7: 10 | AB7: 90 | AC7: 65 | AD7: 15 | AE7: 10 | AF7: 50 | AG7: 41 | AH7: 193 | AI7: 65 | AJ7: 20 | AK7: 44 | AL7: 6 | AM7: 590 | AN7: 1360 | AO7: 233 | AP7: 2183 | AQ7: 138 | AR7: 150 | AU7: =IF($AW$3<3,M2,IF($AW$3<12,W2,IF($AW$3<22,AI2,AM2))) -> Open Play Goals | AV7: =INDEX($E$2:$AR$34,MATCH(linkedCellFlag,$E$2:$E$34,0),MATCH($AU7,$E$2:$AR$2,0)) -> 15 | AZ7: France | BA7: 2 | BB7: 45 | BC7: 0.1666666667 | BE7: 5 | BF7: 2 | BG7: 0.6666666667 | BI7: 8 | BJ7: 10 | BK7: 0.5555555556 | BN7: 528.4 | BO7: 436.6 | BP7: 5 | BQ7: =INDEX($E$3:$N$34,MATCH(LARGE($I$3:$I$34,BP7),$I$3:$I$34,0),1) -> France | BR7: =INDEX($E$3:$N$34,MATCH(BQ7,$E$3:$E$34,0),9) -> 8 | BS7: =INDEX($E$3:$N$34,MATCH(BQ7,$E$3:$E$34,0),10) -> 2 | BT7: =INDEX($E$3:$N$34,MATCH(BQ7,$E$3:$E$34,0),7) -> 1 | BV7: =AVERAGE(P3:P34)/10 -> 9.9375 | BW7: =(INDEX($E$2:$AR$34,MATCH(BW$3,$E$2:$E$34,0),MATCH($BX7,$E$2:$AR$2,0)))/10 -> 3.8 | BX7: Goal/min | BY7: =(INDEX($E$2:$AR$34,MATCH(BY$3,$E$2:$E$34,0),MATCH($BX7,$E$2:$AR$2,0)))/10 -> 7.8 | BZ7: =MAX($P$3:$P$34)/10-CA7 -> 23 | CA7: 4 | CB7: 3 | CC7: 8 | CD7: =MAX($P$3:$P$34)/10-CC7 -> 19 | CF7: 5 | CG7: France | CH7: 8 | CI7: 2 | CJ7: 1 | CL7: 10
B8: 2 | C8: Alejandro Sabella | D8: 6 | E8: Argentina | F8: Runner up | G8: 7 | H8: 8 | I8: 7 | J8: 3 | K8: 0 | L8: 1 | M8: 7 | N8: 1 | O8: 821.9 km | P8: 90 | Q8: 13.1 | R8: 105 | S8: 29 | T8: 42 | U8: 27 | V8: 7 | W8: 32 | X8: 5 | Y8: 174 | Z8: 33 | AA8: 6 | AB8: 157 | AC8: 118 | AD8: 20 | AE8: 19 | AF8: 98 | AG8: 85 | AH8: 328 | AI8: 118 | AJ8: 35 | AK8: 81 | AL8: 19 | AM8: 763 | AN8: 2232 | AO8: 349 | AP8: 3344 | AQ8: 174 | AR8: 260 | AV8: =linkedCellFlag&"" -> Germany | AW8: Average | AZ8: Argentina | BA8: 2 | BB8: 90 | BC8: 0.3333333333 | BE8: 5 | BF8: 1 | BG8: 0.3333333333 | BI8: 8 | BJ8: 8 | BK8: 0.4444444444 | BN8: 821.9 | BO8: 477.7142857 | BV8: =AVERAGE(AE3:AE34) -> 12.1875 | BW8: =INDEX($E$2:$AR$34,MATCH(BW$3,$E$2:$E$34,0),MATCH($BX8,$E$2:$AR$2,0)) -> 23 | BX8: Saves | BY8: =INDEX($E$2:$AR$34,MATCH(BY$3,$E$2:$E$34,0),MATCH($BX8,$E$2:$AR$2,0)) -> 19 | BZ8: =MAX($AE$3:$AE$34)-CA8 -> 0 | CA8: 23 | CB8: =BV8 -> 12.1875 | CC8: 19 | CD8: =MAX($AE$3:$AE$34)-CC8 -> 4
B9: 9 | C9: Ottmar Hitzfeld (Germany) | D9: 7 | E9: Switzerland | F9: Round of 16 | G9: 4 | H9: 7 | I9: 7 | J9: 7 | K9: 0 | L9: 0 | M9: 5 | N9: 2 | O9: 472.9 km | P9: 56 | Q9: 9.3 | R9: 65 | S9: 19 | T9: 25 | U9: 14 | V9: 7 | W9: 8 | X9: 5 | Y9: 59 | Z9: 14 | AA9: 5 | AB9: 120 | AC9: 77 | AD9: 21 | AE9: 22 | AF9: 82 | AG9: 60 | AH9: 179 | AI9: 77 | AJ9: 28 | AK9: 43 | AL9: 6 | AM9: 456 | AN9: 976 | AO9: 122 | AP9: 1554 | AQ9: 59 | AR9: 125 | AU9: =IF($AW$3<3,I2,IF($AW$3<12,Y2,IF($AW$3<22,AI2,AQ2))) -> Total Goals Scored | AV9: =IFERROR(INDEX($E$2:$AR$34,MATCH(linkedCellFlag,$E$2:$E$34,0),MATCH(AU9,$E$2:$AR$2,0))," ") -> 18 | AW9: =IFERROR(AVERAGE(INDEX($G$2:$AR$34,,MATCH(AU9,$G$2:$AR$2,0)))," ") -> 5.1875 | AZ9: Switzerland | BA9: 2 | BB9: 56 | BC9: 0.2074074074 | BE9: 5 | BF9: 2 | BG9: 0.6666666667 | BI9: 8 | BJ9: 7 | BK9: 0.3888888889 | BN9: 472.9 | BO9: 388.5 | BQ9: Best attack | BR9: Goals scored | BS9: Shots bolcked | BT9: Shots saved | BU9: Attempts off target | BV9: =AVERAGE(R3:R34)/10 -> 5.271875 | BW9: =INDEX($E$2:$AR$34,MATCH(BW$3,$E$2:$E$34,0),MATCH($BX9,$E$2:$AR$2,0))/10 -> 9.7 | BX9: Attempts | BY9: =INDEX($E$2:$AR$34,MATCH(BY$3,$E$2:$E$34,0),MATCH($BX9,$E$2:$AR$2,0))/10 -> 4.1 | BZ9: =MAX($R$3:$R$34)/10-CA9 -> 1.1 | CA9: 10 | CB9: 5.271875 | CC9: 4 | CD9: =MAX($R$3:$R$34)/10-CC9 -> 7.1
B10: 24 | C10: Vahid Halilhodžić (Bosnia and Herzegovina) | D10: 8 | E10: Algeria | F10: Round of 16 | G10: 4 | H10: 7 | I10: 7 | J10: 7 | K10: 1 | L10: 0 | M10: 4 | N10: 3 | O10: 462.0 km | P10: 56 | Q10: 5.3 | R10: 37 | S10: 15 | T10: 10 | U10: 7 | V10: 5 | W10: 9 | X10: 4 | Y10: 67 | Z10: 13 | AA10: 7 | AB10: 135 | AC10: 97 | AD10: 23 | AE10: 15 | AF10: 82 | AG10: 69 | AH10: 183 | AI10: 97 | AJ10: 22 | AK10: 58 | AL10: 11 | AM10: 332 | AN10: 719 | AO10: 143 | AP10: 1194 | AQ10: 67 | AR10: 146 | AU10: =IF($AW$3<3,M2,IF($AW$3<12,Z2,IF($AW$3<22,AJ2,AR2))) -> Open Play Goals | AV10: 15 | AW10: 4.40625 | AZ10: Algeria | BA10: 2 | BB10: 56 | BC10: 0.2074074074 | BE10: 5 | BF10: 3 | BG10: 1 | BI10: 8 | BJ10: 7 | BK10: 0.3888888889 | BN10: 462 | BO10: 298.5 | BP10: 1 | BQ10: =INDEX($E$3:$V$34,MATCH(LARGE($R$3:$R$34,BP10),$R$3:$R$34,0),1) -> Brazil | BR10: =INDEX($E$3:$V$34,MATCH(LARGE($R$3:$R$34,BP10),$R$3:$R$34,0),18) -> 11 | BS10: =INDEX($E$3:$V$34,MATCH(LARGE($R$3:$R$34,BP10),$R$3:$R$34,0),17) -> 28 | BT10: =INDEX($E$3:$V$34,MATCH(LARGE($R$3:$R$34,BP10),$R$3:$R$34,0),16) -> 39 | BU10: =INDEX($E$3:$V$34,MATCH(LARGE($R$3:$R$34,BP10),$R$3:$R$34,0),15) -> 33 | BV10: =AVERAGE(AP3:AP34)/1000 -> 1.58184375 | BW10: =INDEX($E$2:$AR$34,MATCH(BW$3,$E$2:$E$34,0),MATCH($BX10,$E$2:$AR$2,0))/1000 -> 4.157 | BX10: Total passes complete | BY10: =INDEX($E$2:$AR$34,MATCH(BY$3,$E$2:$E$34,0),MATCH($BX10,$E$2:$AR$2,0))/1000 -> 1.676 | BZ10: =MAX($AP$3:$AP$34)/100-CA10 -> 37.57 | CA10: 4 | CB10: 1.58184375 | CC10: 2 | CD10: =MAX($AP$3:$AP$34)/100-CC10 -> 39.57 | CF10: 1 | CG10: Brazil | CH10: 11 | CI10: 26 | CJ10: 36 | CK10: 31
B11: 12 | C11: Jorge Sampaoli (Argentina) | D11: 9 | E11: Chile | F11: Round of 16 | G11: 4 | H11: 6 | I11: 6 | J11: 4 | K11: 0 | L11: 0 | M11: 6 | N11: 0 | O11: 481.2 km | P11: 65 | Q11: 6.3 | R11: 38 | S11: 7 | T11: 19 | U11: 6 | V11: 6 | W11: 15 | X11: 2 | Y11: 74 | Z11: 17 | AA11: 8 | AB11: 115 | AC11: 83 | AD11: 14 | AE11: 18 | AF11: 74 | AG11: 61 | AH11: 193 | AI11: 83 | AJ11: 19 | AK11: 55 | AL11: 5 | AM11: 359 | AN11: 1235 | AO11: 256 | AP11: 1850 | AQ11: 74 | AR11: 158 | AU11: =IF($AW$3<3,N2,IF($AW$3<12,AA2,IF($AW$3<22,AL2," "))) -> Set Piece Goals | AV11: 3 | AW11: 0.90625 | AZ11: Chile | BA11: 2 | BB11: 65 | BC11: 0.2407407407 | BE11: 5 | BF11: 0 | BG11: 0 | BI11: 8 | BJ11: 6 | BK11: 0.3333333333 | BN11: 481.2 | BO11: 462.5 | BP11: 2 | BQ11: =INDEX($E$3:$V$34,MATCH(LARGE($R$3:$R$34,BP11),$R$3:$R$34,0),1) -> Argentina | BR11: =INDEX($E$3:$V$34,MATCH(LARGE($R$3:$R$34,BP11),$R$3:$R$34,0),18) -> 7 | BS11: =INDEX($E$3:$V$34,MATCH(LARGE($R$3:$R$34,BP11),$R$3:$R$34,0),17) -> 27 | BT11: =INDEX($E$3:$V$34,MATCH(LARGE($R$3:$R$34,BP11),$R$3:$R$34,0),16) -> 42 | BU11: =INDEX($E$3:$V$34,MATCH(LARGE($R$3:$R$34,BP11),$R$3:$R$34,0),15) -> 29 | BW11: 0 | BY11: 0 | BZ11: 0 | CA11: 0 | CB11: 0 | CC11: 0 | CD11: 0 | CF11: 2 | CG11: Argentina | CH11: 6 | CI11: 26 | CJ11: 41 | CK11: 26
B12: 5 | C12: Marc Wilmots | D12: 10 | E12: Belgium | F12: Quarter finals | G12: 5 | H12: 6 | I12: 6 | J12: 3 | K12: 0 | L12: 0 | M12: 6 | N12: 0 | O12: 576.9 km | P12: 80 | Q12: 15.2 | R12: 91 | S12: 30 | T12: 33 | U12: 22 | V12: 6 | W12: 24 | X12: 4 | Y12: 125 | Z12: 26 | AA12: 22 | AB12: 93 | AC12: 61 | AD12: 19 | AE12: 13 | AF12: 59 | AG12: 56 | AH12: 211 | AI12: 61 | AJ12: 15 | AK12: 36 | AL12: 2 | AM12: 472 | AN12: 1261 | AO12: 259 | AP12: 1992 | AQ12: 125 | AR12: 196 | AU12: =IF($AW$3<3,K2,IF($AW$3<12,AC2,IF($AW$3<22,AM2," "))) -> Penalty Goal | AV12: 1 | AW12: 0.375 | AZ12: Belgium | BA12: 2 | BB12: 80 | BC12: 0.2962962963 | BE12: 5 | BF12: 0 | BG12: 0 | BI12: 8 | BJ12: 6 | BK12: 0.3333333333 | BN12: 576.9 | BO12: 398.4 | BP12: 3 | BQ12: Germany | BR12: =INDEX($E$3:$V$34,MATCH(LARGE($R$3:$R$34,BP12),$R$3:$R$34,0),18) -> 18 | BS12: =INDEX($E$3:$V$34,MATCH(LARGE($R$3:$R$34,BP12),$R$3:$R$34,0),17) -> 23 | BT12: =INDEX($E$3:$V$34,MATCH(LARGE($R$3:$R$34,BP12),$R$3:$R$34,0),16) -> 27 | BU12: =INDEX($E$3:$V$34,MATCH(LARGE($R$3:$R$34,BP12),$R$3:$R$34,0),15) -> 29 | BV12: =AVERAGE(LEFT(O3:O34,5))/100 -> 5.769 | BW12: =LEFT(INDEX($E$2:$AR$34,MATCH(BW$3,$E$2:$E$34,0),MATCH($BX12,$E$2:$AR$2,0)),5)/100 -> 8.468 | BX12: Distance covered | BY12: =LEFT(INDEX($E$2:$AR$34,MATCH(BY$3,$E$2:$E$34,0),MATCH($BX12,$E$2:$AR$2,0)),5)/100 -> 4.968 | BZ12: =MAX($BN$3:$BN$34)/100-CA12 -> 0.468 | CA12: 8 | CB12: 5.769 | CC12: 5 | CD12: =MAX($BN$3:$BN$34)/100-CC12 -> 3.468 | CF12: 3 | CG12: Germany | CH12: 16 | CI12: 21 | CJ12: 26 | CK12: 26
B13: 17 | C13: Niko Kovač | D13: 11 | E13: Croatia | F13: Group stage | G13: 3 | H13: 6 | I13: 5 | J13: 6 | K13: 0 | L13: 1 | M13: 5 | N13: 1 | O13: 314.4 km | P13: 54 | Q13: 8.2 | R13: 41 | S13: 10 | T13: 18 | U13: 8 | V13: 5 | W13: 15 | X13: 2 | Y13: 68 | Z13: 19 | AA13: 5 | AB13: 77 | AC13: 59 | AD13: 13 | AE13: 5 | AF13: 35 | AG13: 35 | AH13: 107 | AI13: 59 | AJ13: 16 | AK13: 32 | AL13: 2 | AM13: 237 | AN13: 613 | AO13: 171 | AP13: 1021 | AQ13: 68 | AR13: 110 | AU13: =IF($AW$3<3,P2,IF($AW$3<12,AD2,IF($AW$3<22,AN2," "))) -> Goal/min | AV13: 38 | AW13: 99.375 | AZ13: Croatia | BA13: 2 | BB13: 54 | BC13: 0.2 | BE13: 5 | BF13: 1 | BG13: 0.3333333333 | BI13: 8 | BJ13: 6 | BK13: 0.3333333333 | BN13: 314.4 | BO13: 340.3333333 | BP13: 4 | BQ13: Belgium | BR13: =INDEX($E$3:$V$34,MATCH(LARGE($R$3:$R$34,BP13),$R$3:$R$34,0),18) -> 6 | BS13: =INDEX($E$3:$V$34,MATCH(LARGE($R$3:$R$34,BP13),$R$3:$R$34,0),17) -> 22 | BT13: =INDEX($E$3:$V$34,MATCH(LARGE($R$3:$R$34,BP13),$R$3:$R$34,0),16) -> 33 | BU13: =INDEX($E$3:$V$34,MATCH(LARGE($R$3:$R$34,BP13),$R$3:$R$34,0),15) -> 30 | BV13: =BV12/AVERAGE(7,3) -> 1.1538 | BW13: =BW12/BW4 -> 1.209714286 | BX13: Distance covered per match | BY13: =BY12/BY4 -> 1.242 | BZ13: =AVERAGE($BO$3:$BO$34)/100-CA13 -> 2.882271577 | CA13: 1 | CB13: 1.1538 | CC13: 1 | CD13: =AVERAGE($BO$3:$BO$34)/100-CC13 -> 2.882271577 | CF13: 4 | CG13: Belgium | CH13: 6 | CI13: 21 | CJ13: 31 | CK13: 26
B14: 18 | C14: Miguel Herrera | D14: 12 | E14: Mexico | F14: Round of 16 | G14: 4 | H14: 5 | I14: 5 | J14: 3 | K14: 0 | L14: 0 | M14: 4 | N14: 1 | O14: 425.3 km | P14: 72 | Q14: 9.2 | R14: 46 | S14: 11 | T14: 24 | U14: 6 | V14: 5 | W14: 6 | X14: 4 | Y14: 60 | Z14: 14 | AA14: 7 | AB14: 90 | AC14: 68 | AD14: 12 | AE14: 10 | AF14: 68 | AG14: 52 | AH14: 158 | AI14: 68 | AJ14: 18 | AK14: 49 | AL14: 10 | AM14: 343 | AN14: 888 | AO14: 162 | AP14: 1393 | AQ14: 60 | AR14: 118 | AZ14: Mexico | BA14: 2 | BB14: 72 | BC14: 0.2666666667 | BE14: 5 | BF14: 1 | BG14: 0.3333333333 | BI14: 8 | BJ14: 5 | BK14: 0.2777777778 | BN14: 425.3 | BO14: 348.25 | BP14: 5 | BQ14: Netherlands | BR14: =INDEX($E$3:$V$34,MATCH(LARGE($R$3:$R$34,BP14),$R$3:$R$34,0),18) -> 15 | BS14: =INDEX($E$3:$V$34,MATCH(LARGE($R$3:$R$34,BP14),$R$3:$R$34,0),17) -> 23 | BT14: =INDEX($E$3:$V$34,MATCH(LARGE($R$3:$R$34,BP14),$R$3:$R$34,0),16) -> 26 | BU14: =INDEX($E$3:$V$34,MATCH(LARGE($R$3:$R$34,BP14),$R$3:$R$34,0),15) -> 26 | CF14: 5 | CG14: Netherlands | CH14: 11 | CI14: 21 | CJ14: 26 | CK14: 26
B15: 16 | C15: Jorge Luis Pinto (Columbia) | D15: 13 | E15: Costa Rica | F15: Quarter finals | G15: 5 | H15: 5 | I15: 5 | J15: 2 | K15: 0 | L15: 0 | M15: 4 | N15: 1 | O15: 596.6 km | P15: 102 | Q15: 7.6 | R15: 38 | S15: 20 | T15: 8 | U15: 5 | V15: 5 | W15: 9 | X15: 2 | Y15: 62 | Z15: 12 | AA15: 11 | AB15: 144 | AC15: 104 | AD15: 21 | AE15: 19 | AF15: 81 | AG15: 62 | AH15: 222 | AI15: 104 | AJ15: 29 | AK15: 62 | AL15: 41 | AM15: 435 | AN15: 958 | AO15: 197 | AP15: 1590 | AQ15: 62 | AR15: 169 | AU15: =CHOOSE($AX$3,H2,S2,AC2,AM2) -> Goals For | AZ15: Costa Rica | BA15: 2 | BB15: 102 | BC15: 0.3777777778 | BE15: 5 | BF15: 1 | BG15: 0.3333333333 | BI15: 8 | BJ15: 5 | BK15: 0.2777777778 | BN15: 596.6 | BO15: 318
B16: 15 | C16: Jürgen Klinsmann (Germany) | D16: 14 | E16: United States | F16: Round of 16 | G16: 4 | H16: 5 | I16: 5 | J16: 6 | K16: 0 | L16: 0 | M16: 4 | N16: 1 | O16: 496.8 km | P16: 78 | Q16: 8.2 | R16: 41 | S16: 10 | T16: 14 | U16: 12 | V16: 5 | W16: 8 | X16: 2 | Y16: 64 | Z16: 13 | AA16: 4 | AB16: 128 | AC16: 82 | AD16: 27 | AE16: 19 | AF16: 69 | AG16: 53 | AH16: 146 | AI16: 82 | AJ16: 21 | AK16: 61 | AL16: 18 | AM16: 473 | AN16: 1034 | AO16: 169 | AP16: 1676 | AQ16: 64 | AR16: 150 | AU16: =CHOOSE($AX$3,M2,T2,AD2,AN2) -> Open Play Goals | AW16: 5 | AZ16: United States | BA16: 2 | BB16: 78 | BC16: 0.2888888889 | BE16: 5 | BF16: 1 | BG16: 0.3333333333 | BI16: 8 | BJ16: 5 | BK16: 0.2777777778 | BN16: 496.8 | BO16: 419 | BQ16: Best defence | BR16: Tackles | BS16: Saves | BT16: Blocks
B17: 11 | C17: Paulo Bento | D17: 15 | E17: Portugal | F17: Group stage | G17: 3 | H17: 4 | I17: 3 | J17: 7 | K17: 0 | L17: 1 | M17: 4 | N17: 0 | O17: 323.1 km | P17: 68 | Q17: 13.3 | R17: 53 | S17: 14 | T17: 25 | U17: 11 | V17: 3 | W17: 6 | X17: 1 | Y17: 68 | Z17: 13 | AA17: 5 | AB17: 52 | AC17: 35 | AD17: 10 | AE17: 7 | AF17: 21 | AG17: 14 | AH17: 130 | AI17: 35 | AJ17: 10 | AK17: 25 | AL17: 7 | AM17: 315 | AN17: 839 | AO17: 143 | AP17: 1297 | AQ17: 68 | AR17: 90 | AU17: =CHOOSE($AX$3,N2,U2,AE2,AO2) -> Set Piece Goals | AW17: 3 | AZ17: Portugal | BA17: 2 | BB17: 68 | BC17: 0.2518518519 | BE17: 5 | BF17: 0 | BG17: 0 | BI17: 8 | BJ17: 4 | BK17: 0.2222222222 | BN17: 323.1 | BO17: 432.3333333 | BP17: 1 | BQ17: =INDEX($E$3:$AE$34,MATCH(LARGE($AB$3:$AB$34,BP17),$AB$3:$AB$34,0),1) -> Brazil | BR17: =INDEX($E$3:$AE$34,MATCH(LARGE($AB$3:$AB$34,BP17),$AB$3:$AB$34,0),25) -> 141 | BS17: =INDEX($E$3:$AE$34,MATCH(LARGE($AB$3:$AB$34,BP17),$AB$3:$AB$34,0),26) -> 17 | BT17: =INDEX($E$3:$AE$34,MATCH(LARGE($AB$3:$AB$34,BP17),$AB$3:$AB$34,0),27) -> 10 | CF17: 1 | CG17: Brazil | CH17: 140 | CI17: 10 | CJ17: 10
B18: 25 | C18: Sabri Lamouchi (France) | D18: 16 | E18: Ivory Coast | F18: Group stage | G18: 3 | H18: 4 | I18: 4 | J18: 5 | K18: 0 | L18: 0 | M18: 4 | N18: 0 | O18: 287.4 km | P18: 68 | Q18: 11.8 | R18: 47 | S18: 11 | T18: 17 | U18: 15 | V18: 4 | W18: 18 | X18: 3 | Y18: 62 | Z18: 12 | AA18: 6 | AB18: 72 | AC18: 60 | AD18: 4 | AE18: 8 | AF18: 51 | AG18: 43 | AH18: 107 | AI18: 60 | AJ18: 16 | AK18: 33 | AL18: 5 | AM18: 265 | AN18: 839 | AO18: 111 | AP18: 1215 | AQ18: 62 | AR18: 91 | AU18: =CHOOSE($AX$3,K2,V2,AF2,AQ2) -> Penalty Goal | AW18: 1 | AZ18: Ivory Coast | BA18: 2 | BB18: 68 | BC18: 0.2518518519 | BE18: 5 | BF18: 0 | BG18: 0 | BI18: 8 | BJ18: 4 | BK18: 0.2222222222 | BN18: 287.4 | BO18: 405 | BP18: 2 | BQ18: =INDEX($E$3:$AE$34,MATCH(LARGE($AB$3:$AB$34,BP18),$AB$3:$AB$34,0),1) -> Germany | BR18: =INDEX($E$3:$AE$34,MATCH(LARGE($AB$3:$AB$34,BP18),$AB$3:$AB$34,0),25) -> 110 | BS18: =INDEX($E$3:$AE$34,MATCH(LARGE($AB$3:$AB$34,BP18),$AB$3:$AB$34,0),26) -> 24 | BT18: =INDEX($E$3:$AE$34,MATCH(LARGE($AB$3:$AB$34,BP18),$AB$3:$AB$34,0),27) -> 23 | CF18: 2 | CG18: Germany | CH18: 110 | CI18: 20 | CJ18: 20
B19: 8 | C19: Vicente del Bosque | D19: 17 | E19: Spain | F19: Group stage | G19: 3 | H19: 4 | I19: 4 | J19: 7 | K19: 1 | L19: 0 | M19: 3 | N19: 1 | O19: 325.5 km | P19: 68 | Q19: 8.8 | R19: 35 | S19: 10 | T19: 12 | U19: 9 | V19: 4 | W19: 11 | X19: 5 | Y19: 45 | Z19: 13 | AA19: 12 | AB19: 39 | AC19: 31 | AD19: 1 | AE19: 7 | AF19: 29 | AG19: 25 | AH19: 144 | AI19: 31 | AJ19: 12 | AK19: 16 | AL19: 8 | AM19: 594 | AN19: 964 | AO19: 145 | AP19: 1703 | AQ19: 45 | AR19: 93 | AU19: =CHOOSE($AX$3,P2,W2,AG2,AR2) -> Goal/min | AZ19: Spain | BA19: 2 | BB19: 68 | BC19: 0.2518518519 | BE19: 5 | BF19: 1 | BG19: 0.3333333333 | BI19: 8 | BJ19: 4 | BK19: 0.2222222222 | BN19: 325.5 | BO19: 567.6666667 | BP19: 3 | BQ19: =INDEX($E$3:$AE$34,MATCH(LARGE($AB$3:$AB$34,BP19),$AB$3:$AB$34,0),1) -> Germany | BR19: =INDEX($E$3:$AE$34,MATCH(LARGE($AB$3:$AB$34,BP19),$AB$3:$AB$34,0),25) -> 110 | BS19: =INDEX($E$3:$AE$34,MATCH(LARGE($AB$3:$AB$34,BP19),$AB$3:$AB$34,0),26) -> 24 | BT19: =INDEX($E$3:$AE$34,MATCH(LARGE($AB$3:$AB$34,BP19),$AB$3:$AB$34,0),27) -> 23 | CF19: 3 | CG19: Germany | CH19: 110 | CI19: 20 | CJ19: 20
B20: 6 | C20: Óscar Tabárez | D20: 18 | E20: Uruguay | F20: Round of 16 | G20: 4 | H20: 4 | I20: 4 | J20: 6 | K20: 1 | L20: 0 | M20: 2 | N20: 2 | O20: 419.5 km | P20: 90 | Q20: 12.3 | R20: 51 | S20: 13 | T20: 23 | U20: 11 | V20: 4 | W20: 5 | X20: 3 | Y20: 76 | Z20: 16 | AA20: 11 | AB20: 103 | AC20: 84 | AD20: 10 | AE20: 9 | AF20: 58 | AG20: 47 | AH20: 162 | AI20: 84 | AJ20: 12 | AK20: 46 | AL20: 7 | AM20: 288 | AN20: 789 | AO20: 147 | AP20: 1224 | AQ20: 76 | AR20: 143 | AU20: =CHOOSE($AX$3,Q2,X2,AH2,O2) -> Goal/attempt | AZ20: Uruguay | BA20: 2 | BB20: 90 | BC20: 0.3333333333 | BE20: 5 | BF20: 2 | BG20: 0.6666666667 | BI20: 8 | BJ20: 4 | BK20: 0.2222222222 | BN20: 419.5 | BO20: 306 | BP20: 4 | BQ20: =INDEX($E$3:$AE$34,MATCH(LARGE($AB$3:$AB$34,BP20),$AB$3:$AB$34,0),1) -> Costa Rica | BR20: =INDEX($E$3:$AE$34,MATCH(LARGE($AB$3:$AB$34,BP20),$AB$3:$AB$34,0),25) -> 104 | BS20: =INDEX($E$3:$AE$34,MATCH(LARGE($AB$3:$AB$34,BP20),$AB$3:$AB$34,0),26) -> 21 | BT20: =INDEX($E$3:$AE$34,MATCH(LARGE($AB$3:$AB$34,BP20),$AB$3:$AB$34,0),27) -> 19 | CF20: 4 | CG20: Costa Rica | CH20: 100 | CI20: 20 | CJ20: 10
B21: 19 | C21: Safet Sušić | D21: 19 | E21: Bosnia and Herzegovina | F21: Group stage | G21: 3 | H21: 4 | I21: 4 | J21: 4 | K21: 0 | L21: 0 | M21: 4 | N21: 0 | O21: 337.8 km | P21: 68 | Q21: 11.8 | R21: 46 | S21: 15 | T21: 17 | U21: 10 | V21: 4 | W21: 6 | X21: 1 | Y21: 72 | Z21: 19 | AA21: 6 | AB21: 80 | AC21: 60 | AD21: 13 | AE21: 7 | AF21: 39 | AG21: 28 | AH21: 135 | AI21: 60 | AJ21: 20 | AK21: 38 | AL21: 11 | AM21: 350 | AN21: 926 | AO21: 136 | AP21: 1412 | AQ21: 72 | AR21: 77 | AZ21: Bosnia and Herzegovina | BA21: 2 | BB21: 68 | BC21: 0.2518518519 | BE21: 5 | BF21: 0 | BG21: 0 | BI21: 8 | BJ21: 4 | BK21: 0.2222222222 | BN21: 337.8 | BO21: 470.6666667 | BP21: 5 | BQ21: =INDEX($E$3:$AE$34,MATCH(LARGE($AB$3:$AB$34,BP21),$AB$3:$AB$34,0),1) -> Algeria | BR21: =INDEX($E$3:$AE$34,MATCH(LARGE($AB$3:$AB$34,BP21),$AB$3:$AB$34,0),25) -> 97 | BS21: =INDEX($E$3:$AE$34,MATCH(LARGE($AB$3:$AB$34,BP21),$AB$3:$AB$34,0),26) -> 23 | BT21: =INDEX($E$3:$AE$34,MATCH(LARGE($AB$3:$AB$34,BP21),$AB$3:$AB$34,0),27) -> 15 | CF21: 5 | CG21: Algeria | CH21: 90 | CI21: 20 | CJ21: 10
B22: 38 | C22: James Kwesi Appiah | D22: 20 | E22: Ghana | F22: Group stage | G22: 3 | H22: 4 | I22: 4 | J22: 6 | K22: 0 | L22: 0 | M22: 4 | N22: 0 | O22: 332.8 km | P22: 68 | Q22: 14.8 | R22: 58 | S22: 11 | T22: 35 | U22: 8 | V22: 4 | W22: 7 | X22: 2 | Y22: 60 | Z22: 21 | AA22: 14 | AB22: 49 | AC22: 31 | AD22: 12 | AE22: 6 | AF22: 28 | AG22: 24 | AH22: 140 | AI22: 31 | AJ22: 8 | AK22: 23 | AL22: 2 | AM22: 264 | AN22: 657 | AO22: 144 | AP22: 1065 | AQ22: 60 | AR22: 123 | AZ22: Ghana | BA22: 2 | BB22: 68 | BC22: 0.2518518519 | BE22: 5 | BF22: 0 | BG22: 0 | BI22: 8 | BJ22: 4 | BK22: 0.2222222222 | BN22: 332.8 | BO22: 355
B23: 76 | C23: Ange Postecoglou | D23: 21 | E23: Australia | F23: Group stage | G23: 3 | H23: 3 | I23: 3 | J23: 9 | K23: 1 | L23: 0 | M23: 2 | N23: 1 | O23: 354.3 km | P23: 90 | Q23: 9 | R23: 26 | S23: 5 | T23: 13 | U23: 5 | V23: 3 | W23: 7 | X23: 2 | Y23: 47 | Z23: 11 | AA23: 3 | AB23: 70 | AC23: 47 | AD23: 12 | AE23: 11 | AF23: 32 | AG23: 28 | AH23: 124 | AI23: 47 | AJ23: 9 | AK23: 31 | AL23: 8 | AM23: 231 | AN23: 752 | AO23: 120 | AP23: 1103 | AQ23: 47 | AR23: 101 | AZ23: Australia | BA23: 2 | BB23: 90 | BC23: 0.3333333333 | BE23: 5 | BF23: 1 | BG23: 0.3333333333 | BI23: 8 | BJ23: 3 | BK23: 0.1666666667 | BN23: 354.3 | BO23: 367.6666667 | BQ23: Best passing | BR23: Short passes complete | BS23: Medium passes complete | BT23: Long passes complete
B24: 56 | C24: Hong Myung-Bo | D24: 22 | E24: South Korea | F24: Group stage | G24: 3 | H24: 3 | I24: 3 | J24: 6 | K24: 0 | L24: 0 | M24: 3 | N24: 0 | O24: 333.0 km | P24: 90 | Q24: 12.3 | R24: 37 | S24: 12 | T24: 13 | U24: 9 | V24: 3 | W24: 5 | X24: 0 | Y24: 52 | Z24: 15 | AA24: 2 | AB24: 47 | AC24: 24 | AD24: 12 | AE24: 11 | AF24: 38 | AG24: 32 | AH24: 132 | AI24: 42 | AJ24: 11 | AK24: 31 | AL24: 5 | AM24: 276 | AN24: 714 | AO24: 160 | AP24: 1150 | AQ24: 52 | AR24: 95 | AU24: =INDEX($E$2:$AR$34,MATCH(linkedCellFlag,$E$2:$E$34,0),MATCH(CHOOSE($AX$3,$I$2,$R$2,$AB$2,$AP$2),$E$2:$AR$2,0)) -> 18 | AZ24: South Korea | BA24: 2 | BB24: 90 | BC24: 0.3333333333 | BE24: 5 | BF24: 0 | BG24: 0 | BI24: 8 | BJ24: 3 | BK24: 0.1666666667 | BN24: 333 | BO24: 383.3333333 | BP24: 1 | BQ24: =INDEX($E$3:$AR$34,MATCH(LARGE($AP$3:$AP$34,BP24),$AP$3:$AP$34,0),1) -> Germany | BR24: =INDEX($E$3:$AR$34,MATCH(LARGE($AP$3:$AP$34,BP24),$AP$3:$AP$34,0),35) -> 1017 | BS24: =INDEX($E$3:$AR$34,MATCH(LARGE($AP$3:$AP$34,BP24),$AP$3:$AP$34,0),36) -> 2763 | BT24: =INDEX($E$3:$AR$34,MATCH(LARGE($AP$3:$AP$34,BP24),$AP$3:$AP$34,0),37) -> 377 | CF24: 1 | CG24: Germany | CH24: 933 | CI24: 2733 | CJ24: 333
B25: 34 | C25: Stephen Keshi | D25: 23 | E25: Nigeria | F25: Round of 16 | G25: 4 | H25: 3 | I25: 3 | J25: 5 | K25: 0 | L25: 0 | M25: 3 | N25: 0 | O25: 402.1 km | P25: 120 | Q25: 16.7 | R25: 50 | S25: 16 | T25: 18 | U25: 13 | V25: 3 | W25: 17 | X25: 2 | Y25: 87 | Z25: 14 | AA25: 6 | AB25: 114 | AC25: 83 | AD25: 10 | AE25: 21 | AF25: 74 | AG25: 66 | AH25: 168 | AI25: 83 | AJ25: 22 | AK25: 52 | AL25: 7 | AM25: 296 | AN25: 926 | AO25: 164 | AP25: 1386 | AQ25: 87 | AR25: 119 | AU25: =INDEX($E$2:$AR$34,1,MATCH(CHOOSE($AX$3,$I$2,$R$2,$AB$2,$AP$2),$E$2:$AR$2,0)) -> Total Goals Scored | AZ25: Nigeria | BA25: 2 | BB25: 120 | BC25: 0.4444444444 | BE25: 5 | BF25: 0 | BG25: 0 | BI25: 8 | BJ25: 3 | BK25: 0.1666666667 | BN25: 402.1 | BO25: 346.5 | BP25: 2 | BQ25: =INDEX($E$3:$AR$34,MATCH(LARGE($AP$3:$AP$34,BP25),$AP$3:$AP$34,0),1) -> Argentina | BR25: =INDEX($E$3:$AR$34,MATCH(LARGE($AP$3:$AP$34,BP25),$AP$3:$AP$34,0),35) -> 763 | BS25: =INDEX($E$3:$AR$34,MATCH(LARGE($AP$3:$AP$34,BP25),$AP$3:$AP$34,0),36) -> 2232 | BT25: =INDEX($E$3:$AR$34,MATCH(LARGE($AP$3:$AP$34,BP25),$AP$3:$AP$34,0),37) -> 349 | CF25: 2 | CG25: Argentina | CH25: 733 | CI25: 2133 | CJ25: 333
B26: 13 | C26: Fernando Santos (Portugal) | D26: 24 | E26: Greece | F26: Round of 16 | G26: 4 | H26: 3 | I26: 3 | J26: 5 | K26: 1 | L26: 0 | M26: 2 | N26: 1 | O26: 436.7 km | P26: 130 | Q26: 19.3 | R26: 57 | S26: 17 | T26: 28 | U26: 9 | V26: 3 | W26: 13 | X26: 2 | Y26: 118 | Z26: 19 | AA26: 17 | AB26: 109 | AC26: 84 | AD26: 14 | AE26: 11 | AF26: 54 | AG26: 42 | AH26: 149 | AI26: 84 | AJ26: 26 | AK26: 56 | AL26: 4 | AM26: 310 | AN26: 786 | AO26: 192 | AP26: 1288 | AQ26: 118 | AR26: 101 | AU26: =INDEX($E$2:$AR$34,MATCH(linkedCellFlag,$E$2:$E$34,0),1) -> Germany | AV26: =AU25&": "&AU24 -> Total Goals Scored: 18 | AZ26: Greece | BA26: 2 | BB26: 130 | BC26: 0.4814814815 | BE26: 5 | BF26: 1 | BG26: 0.3333333333 | BI26: 8 | BJ26: 3 | BK26: 0.1666666667 | BN26: 436.7 | BO26: 322 | BP26: 3 | BQ26: =INDEX($E$3:$AR$34,MATCH(LARGE($AP$3:$AP$34,BP26),$AP$3:$AP$34,0),1) -> Netherlands | BR26: 569 | BS26: 2006 | BT26: 425 | CF26: 3 | CG26: Netherlands | CH26: 533 | CI26: 1933 | CJ26: 333
B27: 21 | C27: Reinaldo Rueda (Columbia) | D27: 25 | E27: Ecuador | F27: Group stage | G27: 3 | H27: 3 | I27: 3 | J27: 3 | K27: 0 | L27: 0 | M27: 1 | N27: 2 | O27: 296.3 km | P27: 90 | Q27: 9.7 | R27: 29 | S27: 8 | T27: 11 | U27: 7 | V27: 3 | W27: 10 | X27: 3 | Y27: 46 | Z27: 7 | AA27: 6 | AB27: 77 | AC27: 44 | AD27: 18 | AE27: 15 | AF27: 37 | AG27: 34 | AH27: 125 | AI27: 44 | AJ27: 13 | AK27: 24 | AL27: 3 | AM27: 185 | AN27: 504 | AO27: 110 | AP27: 799 | AQ27: 46 | AR27: 111 | AZ27: Ecuador | BA27: 2 | BB27: 90 | BC27: 0.3333333333 | BE27: 5 | BF27: 2 | BG27: 0.6666666667 | BI27: 8 | BJ27: 3 | BK27: 0.1666666667 | BN27: 296.3 | BO27: 266.3333333 | BP27: 4 | BQ27: =INDEX($E$3:$AR$34,MATCH(LARGE($AP$3:$AP$34,BP27),$AP$3:$AP$34,0),1) -> Brazil | BR27: 727 | BS27: 1688 | BT27: 316 | CF27: 4 | CG27: Brazil | CH27: 633 | CI27: 1633 | CJ27: 233
B28: 14 | C28: Cesare Prandelli | D28: 26 | E28: Italy | F28: Group stage | G28: 3 | H28: 2 | I28: 2 | J28: 3 | K28: 0 | L28: 0 | M28: 2 | N28: 0 | O28: 321.3 km | P28: 135 | Q28: 15.5 | R28: 31 | S28: 15 | T28: 8 | U28: 6 | V28: 2 | W28: 3 | X28: 1 | Y28: 36 | Z28: 6 | AA28: 21 | AB28: 57 | AC28: 37 | AD28: 12 | AE28: 8 | AF28: 33 | AG28: 24 | AH28: 113 | AI28: 37 | AJ28: 11 | AK28: 23 | AL28: 5 | AM28: 424 | AN28: 1039 | AO28: 117 | AP28: 1580 | AQ28: 36 | AR28: 77 | AZ28: Italy | BA28: 2 | BB28: 135 | BC28: 0.5 | BE28: 5 | BF28: 0 | BG28: 0 | BI28: 8 | BJ28: 2 | BK28: 0.1111111111 | BN28: 321.3 | BO28: 526.6666667 | BP28: 5 | BQ28: =INDEX($E$3:$AR$34,MATCH(LARGE($AP$3:$AP$34,BP28),$AP$3:$AP$34,0),1) -> France | BR28: 590 | BS28: 1360 | BT28: 233 | CF28: 5 | CG28: France | CH28: 533 | CI28: 1333 | CJ28: 233
B29: 20 | C29: Roy Hodgson | D29: 27 | E29: England | F29: Group stage | G29: 3 | H29: 2 | I29: 2 | J29: 4 | K29: 0 | L29: 0 | M29: 2 | N29: 0 | O29: 319.0 km | P29: 135 | Q29: 19.5 | R29: 39 | S29: 10 | T29: 20 | U29: 7 | V29: 2 | W29: 10 | X29: 4 | Y29: 70 | Z29: 15 | AA29: 2 | AB29: 43 | AC29: 33 | AD29: 6 | AE29: 4 | AF29: 39 | AG29: 32 | AH29: 112 | AI29: 33 | AJ29: 6 | AK29: 21 | AL29: 13 | AM29: 330 | AN29: 796 | AO29: 130 | AP29: 1256 | AQ29: 70 | AR29: 87 | AZ29: England | BA29: 2 | BB29: 135 | BC29: 0.5 | BE29: 5 | BF29: 0 | BG29: 0 | BI29: 8 | BJ29: 2 | BK29: 0.1111111111 | BN29: 319 | BO29: 418.6666667
B30: 23 | C30: Fabio Capello (Italy) | D30: 28 | E30: Russia | F30: Group stage | G30: 3 | H30: 2 | I30: 2 | J30: 3 | K30: 0 | L30: 0 | M30: 2 | N30: 0 | O30: 347.5 km | P30: 135 | Q30: 19.5 | R30: 40 | S30: 11 | T30: 17 | U30: 10 | V30: 2 | W30: 4 | X30: 2 | Y30: 74 | Z30: 15 | AA30: 3 | AB30: 49 | AC30: 33 | AD30: 6 | AE30: 10 | AF30: 32 | AG30: 29 | AH30: 131 | AI30: 33 | AJ30: 6 | AK30: 27 | AL30: 9 | AM30: 309 | AN30: 754 | AO30: 114 | AP30: 1177 | AQ30: 74 | AR30: 100 | AZ30: Russia | BA30: 2 | BB30: 135 | BC30: 0.5 | BE30: 5 | BF30: 0 | BG30: 0 | BI30: 8 | BJ30: 2 | BK30: 0.1111111111 | BN30: 347.5 | BO30: 392.3333333
B31: 45 | C31: Alberto Zaccheroni (Italy) | D31: 29 | E31: Japan | F31: Group stage | G31: 3 | H31: 2 | I31: 2 | J31: 6 | K31: 0 | L31: 0 | M31: 2 | N31: 0 | O31: 317.5 km | P31: 135 | Q31: 23 | R31: 46 | S31: 13 | T31: 18 | U31: 13 | V31: 2 | W31: 6 | X31: 2 | Y31: 58 | Z31: 13 | AA31: 2 | AB31: 61 | AC31: 44 | AD31: 9 | AE31: 8 | AF31: 23 | AG31: 19 | AH31: 106 | AI31: 44 | AJ31: 9 | AK31: 24 | AL31: 8 | AM31: 347 | AN31: 811 | AO31: 116 | AP31: 1274 | AQ31: 58 | AR31: 90 | AZ31: Japan | BA31: 2 | BB31: 135 | BC31: 0.5 | BE31: 5 | BF31: 0 | BG31: 0 | BI31: 8 | BJ31: 2 | BK31: 0.1111111111 | BN31: 317.5 | BO31: 424.6666667
B32: 40 | C32: Luis Fernando Suárez (Columbia) | D32: 30 | E32: Honduras | F32: Group stage | G32: 3 | H32: 1 | I32: 1 | J32: 8 | K32: 0 | L32: 0 | M32: 1 | N32: 0 | O32: 288.3 km | P32: 270 | Q32: 33 | R32: 33 | S32: 8 | T32: 16 | U32: 8 | V32: 1 | W32: 6 | X32: 2 | Y32: 44 | Z32: 10 | AA32: 3 | AB32: 90 | AC32: 69 | AD32: 11 | AE32: 10 | AF32: 36 | AG32: 32 | AH32: 122 | AI32: 69 | AJ32: 25 | AK32: 41 | AL32: 4 | AM32: 256 | AN32: 668 | AO32: 122 | AP32: 1046 | AQ32: 44 | AR32: 81 | AZ32: Honduras | BA32: 2 | BB32: 270 | BC32: 1 | BE32: 5 | BF32: 0 | BG32: 0 | BI32: 8 | BJ32: 1 | BK32: 0.05555555556 | BN32: 288.3 | BO32: 348.6666667
B33: 49 | C33: Carlos Queiroz (Potugal) | D33: 31 | E33: Iran | F33: Group stage | G33: 3 | H33: 1 | I33: 1 | J33: 4 | K33: 0 | L33: 0 | M33: 1 | N33: 0 | O33: 323.5 km | P33: 270 | Q33: 22 | R33: 22 | S33: 6 | T33: 10 | U33: 5 | V33: 1 | W33: 2 | X33: 2 | Y33: 60 | Z33: 17 | AA33: 10 | AB33: 92 | AC33: 72 | AD33: 12 | AE33: 8 | AF33: 67 | AG33: 56 | AH33: 121 | AI33: 72 | AJ33: 13 | AK33: 50 | AL33: 1 | AM33: 155 | AN33: 363 | AO33: 86 | AP33: 604 | AQ33: 60 | AR33: 104 | AZ33: Iran | BA33: 2 | BB33: 270 | BC33: 1 | BE33: 5 | BF33: 0 | BG33: 0 | BI33: 8 | BJ33: 1 | BK33: 0.05555555556 | BN33: 323.5 | BO33: 201.3333333
B34: 53 | C34: Volker Finke (Germany) | D34: 32 | E34: Cameroon | F34: Group stage | G34: 3 | H34: 1 | I34: 1 | J34: 9 | K34: 0 | L34: 0 | M34: 1 | N34: 0 | O34: 292.0 km | P34: 270 | Q34: 40 | R34: 40 | S34: 2 | T34: 23 | U34: 14 | V34: 1 | W34: 6 | X34: 5 | Y34: 49 | Z34: 15 | AA34: 4 | AB34: 66 | AC34: 38 | AD34: 15 | AE34: 13 | AF34: 41 | AG34: 36 | AH34: 108 | AI34: 38 | AJ34: 8 | AK34: 25 | AL34: 12 | AM34: 240 | AN34: 544 | AO34: 94 | AP34: 878 | AQ34: 49 | AR34: 90 | AZ34: Cameroon | BA34: 2 | BB34: 270 | BC34: 1 | BE34: 5 | BF34: 0 | BG34: 0 | BI34: 8 | BJ34: 1 | BK34: 0.05555555556 | BN34: 292 | BO34: 292.6666667
BA35: 3 | BB35: =AVERAGE(BB3:BB34)/MAX($BB$3:$BB$34) -> 0.3680555556 | BE35: 4 | BF35: =AVERAGE(BF3:BF34)/MAX(BF3:$BF$34) -> 0.3020833333 | BI35: 7 | BJ35: =AVERAGE(BJ3:BJ34) -> 5.34375 | BK35: 0.296875
A36: GER | B36: Germany | E36: Germany | F36: 27 | AZ36: ="Tournament " &BB2 &" average" -> Tournament Goal/min average | BA36: 1 | BB36: =BB35 -> 0.3680555556 | BD36: ="Tournament " &BF2 &" average" -> Tournament Set Piece Goals average | BE36: 6 | BF36: =BF35 -> 0.3020833333 | BH36: ="Tournament " &BJ2 &" average" -> Tournament Goals For average | BI36: 9 | BJ36: =BJ35 -> 5.34375 | BK36: 0.296875
A37: COL | B37: Colombia | E37: =INDEX($A$36:$B$67,MATCH(linkedCellFlag,CountryFlag,0),1) -> GER
A38: NED | B38: Netherlands
A39: BRA | B39: Brazil
A40: FRA | B40: France
A41: ARG | B41: Argentina
A42: SUI | B42: Switzerland
A43: ALG | B43: Algeria
A44: CHI | B44: Chile
A45: BEL | B45: Belgium
A46: CRO | B46: Croatia
A47: MEX | B47: Mexico
A48: CRC | B48: Costa Rica
A49: USA | B49: United States
A50: POR | B50: Portugal
A51: CIV | B51: Ivory Coast
A52: ESP | B52: Spain
A53: URU | B53: Uruguay
A54: BIH | B54: Bosnia and Herzegovina
A55: GHA | B55: Ghana
A56: AUS | B56: Australia
A57: KOR | B57: South Korea
A58: NGA | B58: Nigeria
A59: GRE | B59: Greece
A60: ECU | B60: Ecuador
A61: ITA | B61: Italy
A62: ENG | B62: England
A63: RUS | B63: Russia
A64: JPN | B64: Japan
A65: HON | B65: Honduras
A66: IRN | B66: Iran
A67: CMR | B67: Cameroon

Sheet Sheet3
G1: Shots | M1: Goals scored | T1: Disciplinary | X1: Attacks | AB1: Passes | BU1: Round of 16 | CL1: Quaterfinals | CU1: Semis | CZ1: Finals | DC1: 3rd position
A2: Date | B2: Stadium | C2: Score | D2: MOM | F2: Matches | G2: Shots | H2: Shots on target (%) | I2: Attempts on-target from inside the area | J2: Attempts on-target from outside the area | K2: Attempts off-target from inside the area | L2: Attempts off-target from outside the area | M2: Goals for | N2: Goals from inside the area | O2: Goals from outside the area | P2: Own goals For | Q2: Open Play Goals | R2: Set Piece Goals | S2: Penalty goal | T2: Yellow Card | U2: Second yellow card and red card | V2: Red Cards | W2: Fouls Committed | X2: Attacks | Y2: Solo runs into area | Z2: Assists | AA2: Offsides | AB2: Total Passes | AC2: Passes Completed | AD2: Passes Completed% | AE2: Crosses | AF2: Crosses Completed | AG2: Crosses Completed% | AH2: Corners | AI2: Throw-ins | AK2: =INDEX($AN$2:$AN$34,AL2+1,1) -> Germany | AL2: 25 | AO2: Brazil | AP2: Mexico | AQ2: Croatia | AR2: Cameroon | AS2: Spain | AT2: Chile | AU2: Australia | AV2: Netherlands | AW2: Colombia | AX2: Ivory Coast | AY2: Greece | AZ2: Japan | BA2: Uruguay | BB2: England | BC2: Costa Rica | BD2: Italy | BE2: Switzerland | BF2: France | BG2: Ecuador | BH2: Honduras | BI2: Argentina | BJ2: Iran | BK2: Bosnia and Herzegovina | BL2: Nigeria | BM2: Germany | BN2: Ghana | BO2: Portugal | BP2: United States | BQ2: Belgium | BR2: Russia | BS2: Algeria | BT2: South Korea | BV2: Brazil | BW2: Colombia | BX2: France | BY2: Germany | BZ2: Netherlands | CA2: Costa Rica | CB2: Argentina | CC2: Belgium | CD2: Chile | CE2: Uruguay | CF2: Nigeria | CG2: Algeria | CH2: Mexico | CI2: Greece | CJ2: Switzerland | CK2: United States | CM2: Brazil | CN2: Germany | CO2: Netherlands | CP2: Argentina | CQ2: Colombia | CR2: France | CS2: Costa Rica | CT2: Belgium | CV2: Brazil | CW2: Netherlands | CX2: Germany | CY2: Argentina | DA2: Germany | DB2: Argentina | DD2: Brazil | DE2: Netherlands
A3: 2014-07-01 | B3: Salvador | C3: 2-1 | D3: Tim Howard | E3: =CONCATENATE(MATCH(LEFT(F3,3),$AM$3:$AM$34,0),"-",(MATCH(RIGHT(F3,3),$AM$3:$AM$34,0))) -> 29-28 | F3: BEL-USA | G3: 52 | H3: 0.67 | I3: 20 | J3: 15 | K3: 11 | L3: 6 | M3: 3 | N3: 3 | O3: 0 | P3: 0 | Q3: 3 | R3: 0 | S3: 0 | T3: 2 | U3: 0 | V3: 0 | W3: 38 | X3: 142 | Y3: 14 | Z3: 2 | AA3: 2 | AB3: 1353 | AC3: 1033 | AD3: 0.77 | AE3: 83 | AF3: 22 | AG3: 0.27 | AH3: 23 | AI3: 83 | AK3: 6 | AL3: =IF(MOD($AL$2,4)=0,4,MOD($AL$2,4)) -> 1 | AM3: =INDEX(Sheet2!$A$36:$B$67,MATCH(Sheet3!$AN3,CountryFlag,0),1) -> BRA | AN3: Brazil | AO3: =IFERROR(INDEX($AN$3:$AN$34,IF(AO$2=$AN3," ",IF(ISNUMBER(MATCH(AO$2,GrpA,0)),MATCH(AO$2,$AO$2:$BT$2,0),"")),1),"") ->  | AP3: =IFERROR(INDEX($AN$3:$AN$34,IF(AP$2=$AN3," ",IF(ISNUMBER(MATCH(AP$2,GrpA,0)),MATCH(AP$2,$AO$2:$BT$2,0),"")),1),"") -> Mexico | AQ3: Croatia | AR3: Cameroon | AY3: =IFERROR(INDEX($AN$3:$AN$34,IF(AY$2=$AN3," ",IF(ISNUMBER(MATCH(AY$2,GrpA,0)),MATCH(AY$2,$AO$2:$BT$2,0),"")),1),"") ->  | BI3: =IFERROR(INDEX($AN$3:$AN$34,IF(BI$2=$AN3," ",IF(ISNUMBER(MATCH(BI$2,GrpA,0)),MATCH(BI$2,$AO$2:$BT$2,0),"")),1),"") ->  | BU3: Brazil | CD3: Chile | CL3: Brazil | CQ3: Colombia | CU3: Brazil | CX3: Germany | CZ3: Germany | DB3: Argentina | DC3: Brazil | DE3: Netherlands
A4: 2014-07-01 | B4: São Paulo | C4: 1-0 | D4: Lionel Messi | E4: 21-17 | F4: ARG-SUI | G4: 43 | H4: 0.67 | I4: 13 | J4: 16 | K4: 6 | L4: 8 | M4: 1 | N4: 1 | O4: 0 | P4: 0 | Q4: 1 | R4: 0 | S4: 0 | T4: 5 | U4: 0 | V4: 0 | W4: 47 | X4: 113 | Y4: 9 | Z4: 1 | AA4: 1 | AB4: 1257 | AC4: 922 | AD4: 0.74 | AE4: 75 | AF4: 15 | AG4: 0.2 | AH4: 18 | AI4: 92 | AL4: =IFERROR(CHOOSE($AK$3,AK4,AK5,AK6,AK7,RIGHT(AK8,LEN(AK8)-13),RIGHT(AK9,LEN(AK9)-15),RIGHT(AK10,LEN(AK10)-12),IF(LEFT($AK$11,3)="Fin",RIGHT(AK11,LEN(AK11)-8),RIGHT(AK11,LEN(AK11)-11))),"") -> France | AM4: =INDEX(Sheet2!$A$36:$B$67,MATCH(Sheet3!$AN4,CountryFlag,0),1) -> MEX | AN4: Mexico | AO4: Brazil | AQ4: Croatia | AR4: Cameroon | BU4: Colombia | CE4: Uruguay | CL4: Germany | CR4: France | CU4: Netherlands | CY4: Argentina | CZ4: Argentina | DA4: Germany | DC4: Netherlands | DD4: Brazil | DR4: 52 | DS4: 0.67 | DT4: 20 | DU4: 15 | DV4: 11 | DW4: 6 | DX4: 3 | DY4: 3 | DZ4: 0 | EA4: 0 | EB4: 3 | EC4: 0 | ED4: 0 | EE4: 2 | EF4: 0 | EG4: 0 | EH4: 38 | EI4: 142 | EJ4: 14 | EK4: 2 | EL4: 2 | EM4: 1353 | EN4: 1033 | EO4: 0.77 | EP4: 83 | EQ4: 22 | ER4: 0.27 | ES4: 23 | ET4: 83
A5: 2014-06-30 | B5: Porto Alegre | C5: 2-1 | D5: Raïs M'Bolhi | E5: 25-31 | F5: GER-ALG | G5: 40 | H5: 0.73 | I5: 19 | J5: 10 | K5: 6 | L5: 5 | M5: 3 | N5: 3 | O5: 0 | P5: 0 | Q5: 3 | R5: 0 | S5: 0 | T5: 2 | U5: 0 | V5: 0 | W5: 31 | X5: 75 | Y5: 7 | Z5: 2 | AA5: 8 | AB5: 1444 | AC5: 1103 | AD5: 0.77 | AE5: 51 | AF5: 11 | AG5: 0.22 | AH5: 14 | AI5: 90 | AK5: =CHOOSE($AL$3,INDEX($AN$2:$BT$34,MATCH($AK$2,$AN$2:$AN$34,0),MATCH($AK$2,$AN$2:$BT$2,0)+1),INDEX($AN$2:$BT$34,MATCH($AK$2,$AN$2:$AN$34,0),MATCH($AK$2,$AN$2:$BT$2,0)-1),INDEX($AN$2:$BT$34,MATCH($AK$2,$AN$2:$AN$34,0),MATCH($AK$2,$AN$2:$BT$2,0)-2),INDEX($AN$2:$BT$34,MATCH($AK$2,$AN$2:$AN$34,0),MATCH($AK$2,$AN$2:$BT$2,0)-3)) -> Ghana | AM5: =INDEX(Sheet2!$A$36:$B$67,MATCH(Sheet3!$AN5,CountryFlag,0),1) -> CRO | AN5: Croatia | AO5: Brazil | AP5: Mexico | AR5: Cameroon | BU5: France | CF5: Nigeria | CL5: Netherlands | CS5: Costa Rica | CU5: Germany | CV5: Brazil | DR5: 43 | DS5: 0.67 | DT5: 13 | DU5: 16 | DV5: 6 | DW5: 8 | DX5: 1 | DY5: 1 | DZ5: 0 | EA5: 0 | EB5: 1 | EC5: 0 | ED5: 0 | EE5: 5 | EF5: 0 | EG5: 0 | EH5: 47 | EI5: 113 | EJ5: 9 | EK5: 1 | EL5: 1 | EM5: 1257 | EN5: 922 | EO5: 0.74 | EP5: 75 | EQ5: 15 | ER5: 0.2 | ES5: 18 | ET5: 92
A6: 18 June 2014 | B6: Arena da Amazônia, Manaus | C6: 0–4 | D6: Mario Mandžukić | E6: 4-3 | F6: CMR-CRO | G6: 39 | H6: 0.54 | I6: 13 | J6: 8 | K6: 10 | L6: 8 | M6: 4 | N6: 4 | O6: 0 | P6: 0 | Q6: 3 | R6: 1 | S6: 0 | T6: 1 | U6: 0 | V6: 1 | W6: 20 | X6: 80 | Y6: 10 | Z6: 2 | AA6: 4 | AB6: 850 | AC6: 634 | AD6: 0.75 | AE6: 43 | AF6: 11 | AG6: 0.26 | AH6: 11 | AI6: 68 | AK6: =CHOOSE($AL$3,INDEX($AN$2:$BT$34,MATCH($AK$2,$AN$2:$AN$34,0),MATCH($AK$2,$AN$2:$BT$2,0)+2),INDEX($AN$2:$BT$34,MATCH($AK$2,$AN$2:$AN$34,0),MATCH($AK$2,$AN$2:$BT$2,0)+1),INDEX($AN$2:$BT$34,MATCH($AK$2,$AN$2:$AN$34,0),MATCH($AK$2,$AN$2:$BT$2,0)-1),INDEX($AN$2:$BT$34,MATCH($AK$2,$AN$2:$AN$34,0),MATCH($AK$2,$AN$2:$BT$2,0)-2)) -> Portugal | AM6: =INDEX(Sheet2!$A$36:$B$67,MATCH(Sheet3!$AN6,CountryFlag,0),1) -> CMR | AN6: Cameroon | AO6: Brazil | AP6: Mexico | AQ6: Croatia | BU6: Germany | CG6: Algeria | CL6: Argentina | CT6: Belgium | CU6: Argentina | CW6: Netherlands | DR6: 40 | DS6: 0.73 | DT6: 19 | DU6: 10 | DV6: 6 | DW6: 5 | DX6: 3 | DY6: 3 | DZ6: 0 | EA6: 0 | EB6: 3 | EC6: 0 | ED6: 0 | EE6: 2 | EF6: 0 | EG6: 0 | EH6: 31 | EI6: 75 | EJ6: 7 | EK6: 2 | EL6: 8 | EM6: 1444 | EN6: 1103 | EO6: 0.77 | EP6: 51 | EQ6: 11 | ER6: 0.22 | ES6: 14 | ET6: 90
A7: 20 June 2014 | B7: Arena Fonte Nova, Salvador | C7: 2–5 | D7: Karim Benzema | E7: 17-18 | F7: SUI-FRA | G7: 39 | H7: 0.62 | I7: 13 | J7: 11 | K7: 7 | L7: 8 | M7: 7 | N7: 6 | O7: 1 | P7: 0 | Q7: 5 | R7: 2 | S7: 0 | T7: 1 | U7: 0 | V7: 0 | W7: 28 | X7: 72 | Y7: 6 | Z7: 6 | AA7: 3 | AB7: 1020 | AC7: 804 | AD7: 0.79 | AE7: 25 | AF7: 8 | AG7: 0.32 | AH7: 8 | AI7: 58 | AK7: =CHOOSE($AL$3,INDEX($AN$2:$BT$34,MATCH($AK$2,$AN$2:$AN$34,0),MATCH($AK$2,$AN$2:$BT$2,0)+3),INDEX($AN$2:$BT$34,MATCH($AK$2,$AN$2:$AN$34,0),MATCH($AK$2,$AN$2:$BT$2,0)+2),INDEX($AN$2:$BT$34,MATCH($AK$2,$AN$2:$AN$34,0),MATCH($AK$2,$AN$2:$BT$2,0)+1),INDEX($AN$2:$BT$34,MATCH($AK$2,$AN$2:$AN$34,0),MATCH($AK$2,$AN$2:$BT$2,0)-1)) -> United States | AM7: =INDEX(Sheet2!$A$36:$B$67,MATCH(Sheet3!$AN7,CountryFlag,0),1) -> ESP | AN7: Spain | AO7: =IFERROR(INDEX($AN$3:$AN$34,IF(AO$2=$AN7," ",IF(ISNUMBER(MATCH(AO$2,GrpB,0)),MATCH(AO$2,$AO$2:$BT$2,0),"")),1),"") ->  | AT7: Chile | AU7: Australia | AV7: Netherlands | AY7: =IFERROR(INDEX($AN$3:$AN$34,IF(AY$2=$AN7," ",IF(ISNUMBER(MATCH(AY$2,GrpB,0)),MATCH(AY$2,$AO$2:$BT$2,0),"")),1),"") ->  | BI7: =IFERROR(INDEX($AN$3:$AN$34,IF(BI$2=$AN7," ",IF(ISNUMBER(MATCH(BI$2,GrpB,0)),MATCH(BI$2,$AO$2:$BT$2,0),"")),1),"") ->  | BU7: Netherlands | CH7: Mexico | CL7: Colombia | CM7: Brazil | DR7: 39 | DS7: 0.54 | DT7: 13 | DU7: 8 | DV7: 10 | DW7: 8 | DX7: 4 | DY7: 4 | DZ7: 0 | EA7: 0 | EB7: 3 | EC7: 1 | ED7: 0 | EE7: 1 | EF7: 0 | EG7: 1 | EH7: 20 | EI7: 80 | EJ7: 10 | EK7: 2 | EL7: 4 | EM7: 850 | EN7: 634 | EO7: 0.75 | EP7: 43 | EQ7: 11 | ER7: 0.26 | ES7: 11 | ET7: 68
A8: 21 June 2014 | B8: Arena Pantanal, Cuiabá | C8: 1–0 | D8: Peter Odemwingie | E8: 24-23 | F8: NGA-BIH | G8: 38 | H8: 0.61 | I8: 12 | J8: 11 | K8: 4 | L8: 11 | M8: 1 | N8: 1 | O8: 0 | P8: 0 | Q8: 1 | R8: 0 | S8: 0 | T8: 2 | U8: 0 | V8: 0 | W8: 16 | X8: 98 | Y8: 10 | Z8: 1 | AA8: 5 | AB8: 1020 | AC8: 776 | AD8: 0.77 | AE8: 38 | AF8: 8 | AG8: 0.22 | AH8: 8 | AI8: 59 | AK8: =IF(ISNUMBER(MATCH($AK$2,$BV$2:$CK$2,0)),IF(MATCH($AK$2,$BV$2:$CK$2,0)<9,"Round of 16: " &INDEX($BU$2:$CK$18,MATCH($AK$2,$BU$2:$BU$18,0),MATCH($AK$2,$BU$2:$CK$2,0)+8),"Round of 16: " &INDEX($BU$2:$CK$18,MATCH($AK$2,$BU$2:$BU$18,0),MATCH($AK$2,$BU$2:$CK$2,0)-8)),"") -> Round of 16: Algeria | AM8: =INDEX(Sheet2!$A$36:$B$67,MATCH(Sheet3!$AN8,CountryFlag,0),1) -> CHI | AN8: Chile | AS8: Spain | AU8: Australia | AV8: Netherlands | BU8: Costa Rica | CI8: Greece | CL8: France | CN8: Germany | DR8: 39 | DS8: 0.62 | DT8: 13 | DU8: 11 | DV8: 7 | DW8: 8 | DX8: 7 | DY8: 6 | DZ8: 1 | EA8: 0 | EB8: 5 | EC8: 2 | ED8: 0 | EE8: 1 | EF8: 0 | EG8: 0 | EH8: 28 | EI8: 72 | EJ8: 6 | EK8: 6 | EL8: 3 | EM8: 1020 | EN8: 804 | EO8: 0.79 | EP8: 25 | EQ8: 8 | ER8: 0.32 | ES8: 8 | ET8: 58
A9: 26 June 2014 | B9: Estádio Nacional Mané Garrincha, Brasília | C9: 2–1 | D9: Cristiano Ronaldo | E9: 27-26 | F9: POR-GHA | G9: 37 | H9: 0.43 | I9: 9 | J9: 7 | K9: 9 | L9: 12 | M9: 3 | N9: 2 | O9: 0 | P9: 1 | Q9: 3 | R9: 0 | S9: 0 | T9: 4 | U9: 0 | V9: 0 | W9: 37 | X9: 90 | Y9: 4 | Z9: 1 | AA9: 4 | AB9: 992 | AC9: 703 | AD9: 0.71 | AE9: 46 | AF9: 13 | AG9: 0.29 | AH9: 11 | AI9: 84 | AK9: =IF(ISNUMBER(MATCH($AK$2,$CL$2:$CT$2,0)),IF(MATCH($AK$2,$CL$2:$CT$2,0)<5,"Quarter-finals:" &INDEX($CL$2:$CT$10,MATCH($AK$2,$CL$2:$CL$10,0),MATCH($AK$2,$CL$2:$CT$2,0)+4),"Quarter-finals:" &INDEX($CL$2:$CT$10,MATCH($AK$2,$CL$2:$CL$10,0),MATCH($AK$2,$CL$2:$CT$2,0)-4)),"") -> Quarter-finals:France | AM9: =INDEX(Sheet2!$A$36:$B$67,MATCH(Sheet3!$AN9,CountryFlag,0),1) -> AUS | AN9: Australia | AS9: Spain | AT9: Chile | AV9: Netherlands | BU9: Argentina | CJ9: Switzerland | CL9: Costa Rica | CO9: Netherlands | DR9: 38 | DS9: 0.61 | DT9: 12 | DU9: 11 | DV9: 4 | DW9: 11 | DX9: 1 | DY9: 1 | DZ9: 0 | EA9: 0 | EB9: 1 | EC9: 0 | ED9: 0 | EE9: 2 | EF9: 0 | EG9: 0 | EH9: 16 | EI9: 98 | EJ9: 10 | EK9: 1 | EL9: 5 | EM9: 1020 | EN9: 776 | EO9: 0.77 | EP9: 38 | EQ9: 8 | ER9: 0.22 | ES9: 8 | ET9: 59
A10: 24 June 2014 | B10: Arena Pantanal, Cuiabá | C10: 1–4 | D10: Jackson Martínez | E10: 12-9 | F10: JPN-COL | G10: 36 | H10: 0.61 | I10: 11 | J10: 11 | K10: 6 | L10: 8 | M10: 5 | N10: 4 | O10: 1 | P10: 0 | Q10: 4 | R10: 1 | S10: 1 | T10: 2 | U10: 0 | V10: 0 | W10: 29 | X10: 78 | Y10: 9 | Z10: 4 | AA10: 2 | AB10: 918 | AC10: 645 | AD10: 0.71 | AE10: 19 | AF10: 6 | AG10: 0.32 | AH10: 11 | AI10: 58 | AK10: =IF(ISNUMBER(MATCH($AK$2,$CU$2:$CY$2,0)),IF(MATCH($AK$2,$CU$2:$CY$2,0)<3,"Semi finals:" &INDEX($CU$2:$CY$6,MATCH($AK$2,$CU$2:$CU$6,0),MATCH($AK$2,$CU$2:$CY$2,0)+2),"Semi finals:" &INDEX($CU$2:$CY$6,MATCH($AK$2,$CU$2:$CU$6,0),MATCH($AK$2,$CU$2:$CY$2,0)-2)),"") -> Semi finals:Brazil | AM10: =INDEX(Sheet2!$A$36:$B$67,MATCH(Sheet3!$AN10,CountryFlag,0),1) -> NED | AN10: Netherlands | AS10: Spain | AT10: Chile | AU10: Australia | BU10: Belgium | CK10: United States | CL10: Belgium | CP10: Argentina | DR10: 37 | DS10: 0.43 | DT10: 9 | DU10: 7 | DV10: 9 | DW10: 12 | DX10: 3 | DY10: 2 | DZ10: 0 | EA10: 1 | EB10: 3 | EC10: 0 | ED10: 0 | EE10: 4 | EF10: 0 | EG10: 0 | EH10: 37 | EI10: 90 | EJ10: 4 | EK10: 1 | EL10: 4 | EM10: 992 | EN10: 703 | EO10: 0.71 | EP10: 46 | EQ10: 13 | ER10: 0.29 | ES10: 11 | ET10: 84
A11: 2014-06-28 | B11: Belo Horizonte | C11: 1 (3)-1 (2) | D11: Júlio César | E11: 1-6 | F11: BRA-CHI | G11: 36 | H11: 0.5 | I11: 12 | J11: 6 | K11: 3 | L11: 15 | M11: 2 | N11: 2 | O11: 0 | P11: 0 | Q11: 2 | R11: 0 | S11: 0 | T11: 7 | U11: 0 | V11: 0 | W11: 51 | X11: 115 | Y11: 11 | Z11: 2 | AA11: 5 | AB11: 1167 | AC11: 817 | AD11: 0.71 | AE11: 62 | AF11: 14 | AG11: 0.23 | AH11: 14 | AI11: 87 | AK11: =IF($AK$2=$DA$2,"Finals: " &$DB$3,IF($AK$2=$DB$2,"Finals: " &$DA$2,IF($AK$2=$DD$2,"3rd place: "&DE3,IF($AK$2=$DE$2,"3rd place: "&$DD$4,"")))) -> Finals: Argentina | AM11: =INDEX(Sheet2!$A$36:$B$67,MATCH(Sheet3!$AN11,CountryFlag,0),1) -> COL | AN11: Colombia | AO11: =IFERROR(INDEX($AN$3:$AN$34,IF(AO$2=$AN11," ",IF(ISNUMBER(MATCH(AO$2,GrpC,0)),MATCH(AO$2,$AO$2:$BT$2,0),"")),1),"") ->  | AX11: Ivory Coast | AY11: =IFERROR(INDEX($AN$3:$AN$34,IF(AY$2=$AN11," ",IF(ISNUMBER(MATCH(AY$2,GrpC,0)),MATCH(AY$2,$AO$2:$BT$2,0),"")),1),"") -> Greece | AZ11: Japan | BI11: =IFERROR(INDEX($AN$3:$AN$34,IF(BI$2=$AN11," ",IF(ISNUMBER(MATCH(BI$2,GrpC,0)),MATCH(BI$2,$AO$2:$BT$2,0),"")),1),"") ->  | BU11: Chile | BV11: Brazil | DR11: 36 | DS11: 0.61 | DT11: 11 | DU11: 11 | DV11: 6 | DW11: 8 | DX11: 5 | DY11: 4 | DZ11: 1 | EA11: 0 | EB11: 4 | EC11: 1 | ED11: 1 | EE11: 2 | EF11: 0 | EG11: 0 | EH11: 29 | EI11: 78 | EJ11: 9 | EK11: 4 | EL11: 2 | EM11: 918 | EN11: 645 | EO11: 0.71 | EP11: 19 | EQ11: 6 | ER11: 0.32 | ES11: 11 | ET11: 58
A12: 22 June 2014 | B12: Arena da Amazônia, Manaus | C12: 2–2 | D12: Tim Howard | E12: 28-27 | F12: USA-POR | G12: 35 | H12: 0.54 | I12: 10 | J12: 9 | K12: 6 | L12: 10 | M12: 4 | N12: 3 | O12: 1 | P12: 0 | Q12: 4 | R12: 0 | S12: 0 | T12: 1 | U12: 0 | V12: 0 | W12: 25 | X12: 80 | Y12: 6 | Z12: 2 | AA12: 5 | AB12: 1135 | AC12: 941 | AD12: 0.83 | AE12: 37 | AF12: 5 | AG12: 0.14 | AH12: 10 | AI12: 54 | AM12: =INDEX(Sheet2!$A$36:$B$67,MATCH(Sheet3!$AN12,CountryFlag,0),1) -> CIV | AN12: Ivory Coast | AW12: Colombia | AY12: Greece | AZ12: Japan | BU12: Uruguay | BW12: Colombia | DR12: 36 | DS12: 0.5 | DT12: 12 | DU12: 6 | DV12: 3 | DW12: 15 | DX12: 2 | DY12: 2 | DZ12: 0 | EA12: 0 | EB12: 2 | EC12: 0 | ED12: 0 | EE12: 7 | EF12: 0 | EG12: 0 | EH12: 51 | EI12: 115 | EJ12: 11 | EK12: 2 | EL12: 5 | EM12: 1167 | EN12: 817 | EO12: 0.71 | EP12: 62 | EQ12: 14 | ER12: 0.23 | ES12: 14 | ET12: 87
A13: 26 June 2014 | B13: Arena de São Paulo, São Paulo | C13: 0–1 | D13: Jan Vertonghen | E13: 32-29 | F13: KOR-BEL | G13: 34 | H13: 0.68 | I13: 13 | J13: 10 | K13: 8 | L13: 3 | M13: 1 | N13: 1 | O13: 0 | P13: 0 | Q13: 1 | R13: 0 | S13: 0 | T13: 2 | U13: 0 | V13: 1 | W13: 27 | X13: 89 | Y13: 6 | Z13: 0 | AA13: 5 | AB13: 924 | AC13: 655 | AD13: 0.71 | AE13: 27 | AF13: 8 | AG13: 0.3 | AH13: 11 | AI13: 72 | AM13: =INDEX(Sheet2!$A$36:$B$67,MATCH(Sheet3!$AN13,CountryFlag,0),1) -> GRE | AN13: Greece | AW13: Colombia | AX13: Ivory Coast | AZ13: Japan | BU13: Nigeria | BX13: France | DR13: 35 | DS13: 0.54 | DT13: 10 | DU13: 9 | DV13: 6 | DW13: 10 | DX13: 4 | DY13: 3 | DZ13: 1 | EA13: 0 | EB13: 4 | EC13: 0 | ED13: 0 | EE13: 1 | EF13: 0 | EG13: 0 | EH13: 25 | EI13: 80 | EJ13: 6 | EK13: 2 | EL13: 5 | EM13: 1135 | EN13: 941 | EO13: 0.83 | EP13: 37 | EQ13: 5 | ER13: 0.14 | ES13: 10 | ET13: 54
A14: 2014-07-08 | B14: Belo Horizonte | C14: 1-7 | D14: Toni Kroos | E14: 1-25 | F14: BRA-GER | G14: 32 | H14: 0.78 | I14: 16 | J14: 9 | K14: 4 | L14: 3 | M14: 8 | N14: 8 | O14: 0 | P14: 0 | Q14: 7 | R14: 1 | S14: 0 | T14: 1 | U14: 0 | V14: 0 | W14: 25 | X14: 89 | Y14: 8 | Z14: 7 | AA14: 3 | AB14: 1139 | AC14: 916 | AD14: 0.81 | AE14: 32 | AF14: 5 | AG14: 0.16 | AH14: 12 | AI14: 53 | AM14: =INDEX(Sheet2!$A$36:$B$67,MATCH(Sheet3!$AN14,CountryFlag,0),1) -> JPN | AN14: Japan | AW14: Colombia | AX14: Ivory Coast | AY14: Greece | BU14: Algeria | BY14: Germany | DR14: 34 | DS14: 0.68 | DT14: 13 | DU14: 10 | DV14: 8 | DW14: 3 | DX14: 1 | DY14: 1 | DZ14: 0 | EA14: 0 | EB14: 1 | EC14: 0 | ED14: 0 | EE14: 2 | EF14: 0 | EG14: 1 | EH14: 27 | EI14: 89 | EJ14: 6 | EK14: 0 | EL14: 5 | EM14: 924 | EN14: 655 | EO14: 0.71 | EP14: 27 | EQ14: 8 | ER14: 0.3 | ES14: 11 | ET14: 72
A15: 23 June 2014 | B15: Estádio Nacional Mané Garrincha, Brasília | C15: 1–4 | D15: Neymar | E15: 4-1 | F15: CMR-BRA | G15: 31 | H15: 0.77 | I15: 15 | J15: 9 | K15: 1 | L15: 6 | M15: 5 | N15: 5 | O15: 0 | P15: 0 | Q15: 5 | R15: 0 | S15: 0 | T15: 3 | U15: 0 | V15: 0 | W15: 33 | X15: 69 | Y15: 5 | Z15: 5 | AA15: 4 | AB15: 919 | AC15: 694 | AD15: 0.76 | AE15: 26 | AF15: 7 | AG15: 0.27 | AH15: 13 | AI15: 59 | AJ15: =IF(LEN(SelMatch2)-3=0,4,LEN(SelMatch2)-3) -> 2 | AM15: =INDEX(Sheet2!$A$36:$B$67,MATCH(Sheet3!$AN15,CountryFlag,0),1) -> URU | AN15: Uruguay | AO15: =IFERROR(INDEX($AN$3:$AN$34,IF(AO$2=$AN15," ",IF(ISNUMBER(MATCH(AO$2,GrpD,0)),MATCH(AO$2,$AO$2:$BT$2,0),"")),1),"") ->  | AY15: =IFERROR(INDEX($AN$3:$AN$34,IF(AY$2=$AN15," ",IF(ISNUMBER(MATCH(AY$2,GrpD,0)),MATCH(AY$2,$AO$2:$BT$2,0),"")),1),"") ->  | BB15: England | BC15: Costa Rica | BD15: Italy | BI15: =IFERROR(INDEX($AN$3:$AN$34,IF(BI$2=$AN15," ",IF(ISNUMBER(MATCH(BI$2,GrpD,0)),MATCH(BI$2,$AO$2:$BT$2,0),"")),1),"") ->  | BU15: Mexico | BZ15: Netherlands | DR15: 32 | DS15: 0.78 | DT15: 16 | DU15: 9 | DV15: 4 | DW15: 3 | DX15: 8 | DY15: 8 | DZ15: 0 | EA15: 0 | EB15: 7 | EC15: 1 | ED15: 0 | EE15: 1 | EF15: 0 | EG15: 0 | EH15: 25 | EI15: 89 | EJ15: 8 | EK15: 7 | EL15: 3 | EM15: 1139 | EN15: 916 | EO15: 0.81 | EP15: 32 | EQ15: 5 | ER15: 0.16 | ES15: 12 | ET15: 53
A16: 21 June 2014 | B16: Estádio Castelão, Fortaleza | C16: 2–2 | D16: Mario Götze | E16: 25-26 | F16: GER-GHA | G16: 31 | H16: 0.52 | I16: 8 | J16: 8 | K16: 4 | L16: 11 | M16: 4 | N16: 4 | O16: 0 | P16: 0 | Q16: 4 | R16: 0 | S16: 0 | T16: 1 | U16: 0 | V16: 0 | W16: 28 | X16: 78 | Y16: 12 | Z16: 4 | AA16: 6 | AB16: 1166 | AC16: 919 | AD16: 0.79 | AE16: 38 | AF16: 8 | AG16: 0.22 | AH16: 10 | AI16: 58 | AJ16: =IF(ISNUMBER(MATCH(SelMatch2,$E$3:$E$65,0)),SelMatch2,CHOOSE(AJ15,RIGHT(SelMatch2,LEN(SelMatch2)),RIGHT(SelMatch2,LEN(SelMatch2)-1),RIGHT(SelMatch2,LEN(SelMatch2)),RIGHT(SelMatch2,LEN(SelMatch2)+1))) -> 18-25 | AM16: =INDEX(Sheet2!$A$36:$B$67,MATCH(Sheet3!$AN16,CountryFlag,0),1) -> ENG | AN16: England | BA16: Uruguay | BC16: Costa Rica | BD16: Italy | BU16: Greece | CA16: Costa Rica | DR16: 31 | DS16: 0.77 | DT16: 15 | DU16: 9 | DV16: 1 | DW16: 6 | DX16: 5 | DY16: 5 | DZ16: 0 | EA16: 0 | EB16: 5 | EC16: 0 | ED16: 0 | EE16: 3 | EF16: 0 | EG16: 0 | EH16: 33 | EI16: 69 | EJ16: 5 | EK16: 5 | EL16: 4 | EM16: 919 | EN16: 694 | EO16: 0.76 | EP16: 26 | EQ16: 7 | ER16: 0.27 | ES16: 13 | ET16: 59
A17: 25 June 2014 | B17: Estádio do Maracanã, Rio de Janeiro | C17: 0–0 | D17: Alexander Domínguez | E17: 19-18 | F17: ECU-FRA | G17: 31 | H17: 0.65 | I17: 9 | J17: 11 | K17: 4 | L17: 7 | M17: 0 | N17: 0 | O17: 0 | P17: 0 | Q17: 0 | R17: 0 | S17: 0 | T17: 1 | U17: 0 | V17: 1 | W17: 23 | X17: 85 | Y17: 5 | Z17: 0 | AA17: 2 | AB17: 1006 | AC17: 738 | AD17: 0.74 | AE17: 36 | AF17: 9 | AG17: 0.25 | AH17: 8 | AI17: 66 | AJ17: Selected match | AK17: =CONCATENATE(AL2,"-",MATCH($AL$4,$AN$3:$AN$34,0)) -> 25-18 | AM17: =INDEX(Sheet2!$A$36:$B$67,MATCH(Sheet3!$AN17,CountryFlag,0),1) -> CRC | AN17: Costa Rica | BA17: Uruguay | BB17: England | BD17: Italy | BU17: Switzerland | CB17: Argentina | DR17: 31 | DS17: 0.52 | DT17: 8 | DU17: 8 | DV17: 4 | DW17: 11 | DX17: 4 | DY17: 4 | DZ17: 0 | EA17: 0 | EB17: 4 | EC17: 0 | ED17: 0 | EE17: 1 | EF17: 0 | EG17: 0 | EH17: 28 | EI17: 78 | EJ17: 12 | EK17: 4 | EL17: 6 | EM17: 1166 | EN17: 919 | EO17: 0.79 | EP17: 38 | EQ17: 8 | ER17: 0.22 | ES17: 10 | ET17: 58
A18: 14 June 2014 | B18: Arena da Amazônia, Manaus | C18: 1–2 | D18: Mario Balotelli | E18: 14-16 | F18: ENG-ITA | G18: 30 | H18: 0.43 | I18: 6 | J18: 7 | K18: 3 | L18: 14 | M18: 3 | N18: 2 | O18: 1 | P18: 0 | Q18: 3 | R18: 0 | S18: 0 | T18: 1 | U18: 0 | V18: 0 | W18: 20 | X18: 91 | Y18: 5 | Z18: 3 | AA18: 7 | AB18: 1223 | AC18: 1073 | AD18: 0.88 | AE18: 34 | AF18: 6 | AG18: 0.18 | AH18: 11 | AI18: 48 | AJ18: Selected teams | AK18: =CONCATENATE(AK2," vs.",AL4) -> Germany vs.France | AM18: =INDEX(Sheet2!$A$36:$B$67,MATCH(Sheet3!$AN18,CountryFlag,0),1) -> ITA | AN18: Italy | BA18: Uruguay | BB18: England | BC18: Costa Rica | BU18: United States | CC18: Belgium | DR18: 31 | DS18: 0.65 | DT18: 9 | DU18: 11 | DV18: 4 | DW18: 7 | DX18: 0 | DY18: 0 | DZ18: 0 | EA18: 0 | EB18: 0 | EC18: 0 | ED18: 0 | EE18: 1 | EF18: 0 | EG18: 1 | EH18: 23 | EI18: 85 | EJ18: 5 | EK18: 0 | EL18: 2 | EM18: 1006 | EN18: 738 | EO18: 0.74 | EP18: 36 | EQ18: 9 | ER18: 0.25 | ES18: 8 | ET18: 66
A19: 25 June 2014 | B19: Estádio Beira-Rio, Porto Alegre | C19: 2–3 | D19: Lionel Messi | E19: 24-21 | F19: NGA-ARG | G19: 30 | H19: 0.67 | I19: 11 | J19: 9 | K19: 5 | L19: 5 | M19: 5 | N19: 4 | O19: 1 | P19: 0 | Q19: 4 | R19: 1 | S19: 0 | T19: 2 | U19: 0 | V19: 0 | W19: 23 | X19: 72 | Y19: 5 | Z19: 2 | AA19: 2 | AB19: 1050 | AC19: 787 | AD19: 0.75 | AE19: 28 | AF19: 8 | AG19: 0.29 | AH19: 16 | AI19: 51 | AJ19: =AJ16 -> 18-25 | AK19: =IF(ISNUMBER(MATCH(SelMatch1,$E$3:$E$65,0)),SelMatch1,IF(LEN(SelMatch1)=4,CONCATENATE(RIGHT(SelMatch1,LEN(SelMatch1)-SEARCH("-",SelMatch1)),"-",LEFT(SelMatch1,LEN(SelMatch1)-SEARCH("-",SelMatch1)+1)),CONCATENATE(RIGHT(SelMatch1,LEN(SelMatch1)-SEARCH("-",SelMatch1)),"-",LEFT(SelMatch1,LEN(SelMatch1)-SEARCH("-",SelMatch1))))) -> 18-25 | AM19: =INDEX(Sheet2!$A$36:$B$67,MATCH(Sheet3!$AN19,CountryFlag,0),1) -> SUI | AN19: Switzerland | AO19: =IFERROR(INDEX($AN$3:$AN$34,IF(AO$2=$AN19," ",IF(ISNUMBER(MATCH(AO$2,GrpE,0)),MATCH(AO$2,$AO$2:$BT$2,0),"")),1),"") ->  | AY19: =IFERROR(INDEX($AN$3:$AN$34,IF(AY$2=$AN19," ",IF(ISNUMBER(MATCH(AY$2,GrpE,0)),MATCH(AY$2,$AO$2:$BT$2,0),"")),1),"") ->  | BF19: France | BG19: Ecuador | BH19: Honduras | BI19: =IFERROR(INDEX($AN$3:$AN$34,IF(BI$2=$AN19," ",IF(ISNUMBER(MATCH(BI$2,GrpE,0)),MATCH(BI$2,$AO$2:$BT$2,0),"")),1),"") ->  | DR19: 30 | DS19: 0.43 | DT19: 6 | DU19: 7 | DV19: 3 | DW19: 14 | DX19: 3 | DY19: 2 | DZ19: 1 | EA19: 0 | EB19: 3 | EC19: 0 | ED19: 0 | EE19: 1 | EF19: 0 | EG19: 0 | EH19: 20 | EI19: 91 | EJ19: 5 | EK19: 3 | EL19: 7 | EM19: 1223 | EN19: 1073 | EO19: 0.88 | EP19: 34 | EQ19: 6 | ER19: 0.18 | ES19: 11 | ET19: 48
A20: 2014-06-29 | B20: Recife | C20: 1 (5)-1 (3) | D20: Keylor Navas | E20: 15-11 | F20: CRC-GRE | G20: 30 | H20: 0.5 | I20: 9 | J20: 6 | K20: 10 | L20: 5 | M20: 2 | N20: 1 | O20: 1 | P20: 0 | Q20: 2 | R20: 0 | S20: 0 | T20: 6 | U20: 1 | V20: 0 | W20: 38 | X20: 88 | Y20: 5 | Z20: 1 | AA20: 11 | AB20: 1091 | AC20: 836 | AD20: 0.77 | AE20: 69 | AF20: 13 | AG20: 0.19 | AH20: 14 | AI20: 76 | AJ20: =IF(AK20="Hide help", "Show help", "Hide help") -> Show help | AK20: Hide help | AM20: =INDEX(Sheet2!$A$36:$B$67,MATCH(Sheet3!$AN20,CountryFlag,0),1) -> FRA | AN20: France | BE20: Switzerland | BG20: Ecuador | BH20: Honduras | DR20: 30 | DS20: 0.67 | DT20: 11 | DU20: 9 | DV20: 5 | DW20: 5 | DX20: 5 | DY20: 4 | DZ20: 1 | EA20: 0 | EB20: 4 | EC20: 1 | ED20: 0 | EE20: 2 | EF20: 0 | EG20: 0 | EH20: 23 | EI20: 72 | EJ20: 5 | EK20: 2 | EL20: 2 | EM20: 1050 | EN20: 787 | EO20: 0.75 | EP20: 28 | EQ20: 8 | ER20: 0.29 | ES20: 16 | ET20: 51
A21: 25 June 2014 | B21: Arena da Amazônia, Manaus | C21: 0–3 | D21: Xherdan Shaqiri | E21: 20-17 | F21: HON-SUI | G21: 29 | H21: 0.66 | I21: 12 | J21: 7 | K21: 3 | L21: 7 | M21: 3 | N21: 2 | O21: 1 | P21: 0 | Q21: 3 | R21: 0 | S21: 0 | T21: 1 | U21: 0 | V21: 0 | W21: 35 | X21: 72 | Y21: 8 | Z21: 3 | AA21: 2 | AB21: 981 | AC21: 778 | AD21: 0.8 | AE21: 35 | AF21: 9 | AG21: 0.26 | AH21: 9 | AI21: 55 | AM21: =INDEX(Sheet2!$A$36:$B$67,MATCH(Sheet3!$AN21,CountryFlag,0),1) -> ECU | AN21: Ecuador | BE21: Switzerland | BF21: France | BH21: Honduras | DR21: 30 | DS21: 0.5 | DT21: 9 | DU21: 6 | DV21: 10 | DW21: 5 | DX21: 2 | DY21: 1 | DZ21: 1 | EA21: 0 | EB21: 2 | EC21: 0 | ED21: 0 | EE21: 6 | EF21: 1 | EG21: 0 | EH21: 38 | EI21: 88 | EJ21: 5 | EK21: 1 | EL21: 11 | EM21: 1091 | EN21: 836 | EO21: 0.77 | EP21: 69 | EQ21: 13 | ER21: 0.19 | ES21: 14 | ET21: 76
A22: 16 June 2014 | B22: Arena das Dunas, Natal | C22: 1–2 | D22: Clint Dempsey | E22: 26-28 | F22: GHA-USA | G22: 29 | H22: 0.52 | I22: 8 | J22: 7 | K22: 5 | L22: 9 | M22: 3 | N22: 3 | O22: 0 | P22: 0 | Q22: 2 | R22: 1 | S22: 0 | T22: 2 | U22: 0 | V22: 0 | W22: 22 | X22: 87 | Y22: 1 | Z22: 2 | AA22: 6 | AB22: 1017 | AC22: 726 | AD22: 0.72 | AE22: 31 | AF22: 11 | AG22: 0.36 | AH22: 10 | AI22: 86 | AJ22: - | AK22: =IF(AJ22="+","-","+") -> + | AM22: =INDEX(Sheet2!$A$36:$B$67,MATCH(Sheet3!$AN22,CountryFlag,0),1) -> HON | AN22: Honduras | BE22: Switzerland | BF22: France | BG22: Ecuador | DR22: 29 | DS22: 0.66 | DT22: 12 | DU22: 7 | DV22: 3 | DW22: 7 | DX22: 3 | DY22: 2 | DZ22: 1 | EA22: 0 | EB22: 3 | EC22: 0 | ED22: 0 | EE22: 1 | EF22: 0 | EG22: 0 | EH22: 35 | EI22: 72 | EJ22: 8 | EK22: 3 | EL22: 2 | EM22: 981 | EN22: 778 | EO22: 0.8 | EP22: 35 | EQ22: 9 | ER22: 0.26 | ES22: 9 | ET22: 55
A23: 15 June 2014 | B23: Estádio Nacional Mané Garrincha, Brasília | C23: 2–1 | D23: Xherdan Shaqiri | E23: 17-19 | F23: SUI-ECU | G23: 28 | H23: 0.64 | I23: 7 | J23: 11 | K23: 3 | L23: 7 | M23: 3 | N23: 3 | O23: 0 | P23: 0 | Q23: 1 | R23: 2 | S23: 0 | T23: 2 | U23: 0 | V23: 0 | W23: 24 | X23: 77 | Y23: 3 | Z23: 3 | AA23: 5 | AB23: 959 | AC23: 734 | AD23: 0.77 | AE23: 40 | AF23: 8 | AG23: 0.2 | AH23: 13 | AI23: 69 | AJ23: - | AK23: =IF(AJ23="+","-","+") -> + | AM23: =INDEX(Sheet2!$A$36:$B$67,MATCH(Sheet3!$AN23,CountryFlag,0),1) -> ARG | AN23: Argentina | AO23: =IFERROR(INDEX($AN$3:$AN$34,IF(AO$2=$AN23," ",IF(ISNUMBER(MATCH(AO$2,GrpF,0)),MATCH(AO$2,$AO$2:$BT$2,0),"")),1),"") ->  | AY23: =IFERROR(INDEX($AN$3:$AN$34,IF(AY$2=$AN23," ",IF(ISNUMBER(MATCH(AY$2,GrpF,0)),MATCH(AY$2,$AO$2:$BT$2,0),"")),1),"") ->  | BI23: =IFERROR(INDEX($AN$3:$AN$34,IF(BI$2=$AN23," ",IF(ISNUMBER(MATCH(BI$2,GrpF,0)),MATCH(BI$2,$AO$2:$BT$2,0),"")),1),"") ->  | BJ23: Iran | BK23: Bosnia and Herzegovina | BL23: Nigeria | DR23: 29 | DS23: 0.52 | DT23: 8 | DU23: 7 | DV23: 5 | DW23: 9 | DX23: 3 | DY23: 3 | DZ23: 0 | EA23: 0 | EB23: 2 | EC23: 1 | ED23: 0 | EE23: 2 | EF23: 0 | EG23: 0 | EH23: 22 | EI23: 87 | EJ23: 1 | EK23: 2 | EL23: 6 | EM23: 1017 | EN23: 726 | EO23: 0.72 | EP23: 31 | EQ23: 11 | ER23: 0.36 | ES23: 10 | ET23: 86
A24: 17 June 2014 | B24: Estádio Castelão, Fortaleza | C24: 0–0 | D24: Guillermo Ochoa | E24: 1-2 | F24: BRA-MEX | G24: 27 | H24: 0.41 | I24: 6 | J24: 5 | K24: 3 | L24: 13 | M24: 0 | N24: 0 | O24: 0 | P24: 0 | Q24: 0 | R24: 0 | S24: 0 | T24: 4 | U24: 0 | V24: 0 | W24: 31 | X24: 71 | Y24: 2 | Z24: 0 | AA24: 5 | AB24: 880 | AC24: 651 | AD24: 0.74 | AE24: 42 | AF24: 9 | AG24: 0.22 | AH24: 7 | AI24: 53 | AJ24: - | AK24: =IF(AJ24="+","-","+") -> + | AM24: =INDEX(Sheet2!$A$36:$B$67,MATCH(Sheet3!$AN24,CountryFlag,0),1) -> IRN | AN24: Iran | BI24: Argentina | BK24: Bosnia and Herzegovina | BL24: Nigeria | DR24: 28 | DS24: 0.64 | DT24: 7 | DU24: 11 | DV24: 3 | DW24: 7 | DX24: 3 | DY24: 3 | DZ24: 0 | EA24: 0 | EB24: 1 | EC24: 2 | ED24: 0 | EE24: 2 | EF24: 0 | EG24: 0 | EH24: 24 | EI24: 77 | EJ24: 3 | EK24: 3 | EL24: 5 | EM24: 959 | EN24: 734 | EO24: 0.77 | EP24: 40 | EQ24: 8 | ER24: 0.2 | ES24: 13 | ET24: 69
A25: 16 June 2014 | B25: Arena Fonte Nova, Salvador | C25: 4–0 | D25: Thomas Müller | E25: 25-27 | F25: GER-POR | G25: 27 | H25: 0.67 | I25: 11 | J25: 7 | K25: 5 | L25: 4 | M25: 4 | N25: 4 | O25: 0 | P25: 0 | Q25: 2 | R25: 2 | S25: 1 | T25: 1 | U25: 0 | V25: 1 | W25: 19 | X25: 78 | Y25: 8 | Z25: 2 | AA25: 3 | AB25: 1079 | AC25: 874 | AD25: 0.82 | AE25: 38 | AF25: 7 | AG25: 0.19 | AH25: 10 | AI25: 54 | AJ25: - | AK25: =IF(AJ25="+","-","+") -> + | AM25: =INDEX(Sheet2!$A$36:$B$67,MATCH(Sheet3!$AN25,CountryFlag,0),1) -> BIH | AN25: Bosnia and Herzegovina | BI25: Argentina | BJ25: Iran | BL25: Nigeria | DR25: 27 | DS25: 0.41 | DT25: 6 | DU25: 5 | DV25: 3 | DW25: 13 | DX25: 0 | DY25: 0 | DZ25: 0 | EA25: 0 | EB25: 0 | EC25: 0 | ED25: 0 | EE25: 4 | EF25: 0 | EG25: 0 | EH25: 31 | EI25: 71 | EJ25: 2 | EK25: 0 | EL25: 5 | EM25: 880 | EN25: 651 | EO25: 0.74 | EP25: 42 | EQ25: 9 | ER25: 0.22 | ES25: 7 | ET25: 53
A26: 15 June 2014 | B26: Estádio do Maracanã, Rio de Janeiro | C26: 2–1 | D26: Lionel Messi | E26: 21-23 | F26: ARG-BIH | G26: 27 | H26: 0.59 | I26: 4 | J26: 12 | K26: 4 | L26: 7 | M26: 3 | N26: 1 | O26: 1 | P26: 1 | Q26: 3 | R26: 0 | S26: 0 | T26: 2 | U26: 0 | V26: 0 | W26: 24 | X26: 83 | Y26: 5 | Z26: 2 | AA26: 3 | AB26: 1135 | AC26: 928 | AD26: 82% | AE26: 35 | AF26: 9 | AG26: 0.26 | AH26: 8 | AI26: 61 | AJ26: + | AK26: =IF(AJ26="+","-","+") -> - | AM26: =INDEX(Sheet2!$A$36:$B$67,MATCH(Sheet3!$AN26,CountryFlag,0),1) -> NGA | AN26: Nigeria | BI26: Argentina | BJ26: Iran | BK26: Bosnia and Herzegovina | DR26: 27 | DS26: 0.67 | DT26: 11 | DU26: 7 | DV26: 5 | DW26: 4 | DX26: 4 | DY26: 4 | DZ26: 0 | EA26: 0 | EB26: 2 | EC26: 2 | ED26: 1 | EE26: 1 | EF26: 0 | EG26: 1 | EH26: 19 | EI26: 78 | EJ26: 8 | EK26: 2 | EL26: 3 | EM26: 1079 | EN26: 874 | EO26: 0.82 | EP26: 38 | EQ26: 7 | ER26: 0.19 | ES26: 10 | ET26: 54
A27: 21 June 2014 | B27: Estádio Mineirão, Belo Horizonte | C27: 1–0 | D27: Lionel Messi | E27: 21-22 | F27: ARG-IRN | G27: 27 | H27: 0.48 | I27: 8 | J27: 5 | K27: 7 | L27: 7 | M27: 1 | N27: 0 | O27: 1 | P27: 0 | Q27: 1 | R27: 0 | S27: 0 | T27: 2 | U27: 0 | V27: 0 | W27: 22 | X27: 107 | Y27: 4 | Z27: 1 | AA27: 1 | AB27: 872 | AC27: 646 | AD27: 0.75 | AE27: 57 | AF27: 10 | AG27: 0.18 | AH27: 16 | AI27: 72 | AM27: =INDEX(Sheet2!$A$36:$B$67,MATCH(Sheet3!$AN27,CountryFlag,0),1) -> GER | AN27: Germany | AO27: =IFERROR(INDEX($AN$3:$AN$34,IF(AO$2=$AN27," ",IF(ISNUMBER(MATCH(AO$2,GrpG,0)),MATCH(AO$2,$AO$2:$BT$2,0),"")),1),"") ->  | AY27: =IFERROR(INDEX($AN$3:$AN$34,IF(AY$2=$AN27," ",IF(ISNUMBER(MATCH(AY$2,GrpG,0)),MATCH(AY$2,$AO$2:$BT$2,0),"")),1),"") ->  | BI27: =IFERROR(INDEX($AN$3:$AN$34,IF(BI$2=$AN27," ",IF(ISNUMBER(MATCH(BI$2,GrpG,0)),MATCH(BI$2,$AO$2:$BT$2,0),"")),1),"") ->  | BN27: Ghana | BO27: Portugal | BP27: United States | DR27: 27 | DS27: 0.59 | DT27: 4 | DU27: 12 | DV27: 4 | DW27: 7 | DX27: 3 | DY27: 1 | DZ27: 1 | EA27: 1 | EB27: 3 | EC27: 0 | ED27: 0 | EE27: 2 | EF27: 0 | EG27: 0 | EH27: 24 | EI27: 83 | EJ27: 5 | EK27: 2 | EL27: 3 | EM27: 1135 | EN27: 928 | EO27: 82% | EP27: 35 | EQ27: 9 | ER27: 0.26 | ES27: 8 | ET27: 61
A28: 19 June 2014 | B28: Estádio Nacional Mané Garrincha, Brasília | C28: 2–1 | D28: James Rodríguez | E28: 9-10 | F28: COL-CIV | G28: 26 | H28: 0.77 | I28: 8 | J28: 12 | K28: 3 | L28: 3 | M28: 3 | N28: 2 | O28: 1 | P28: 0 | Q28: 2 | R28: 1 | S28: 0 | T28: 2 | U28: 0 | V28: 0 | W28: 25 | X28: 80 | Y28: 8 | Z28: 2 | AA28: 5 | AB28: 891 | AC28: 669 | AD28: 0.76 | AE28: 40 | AF28: 7 | AG28: 0.18 | AH28: 10 | AI28: 61 | AM28: =INDEX(Sheet2!$A$36:$B$67,MATCH(Sheet3!$AN28,CountryFlag,0),1) -> GHA | AN28: Ghana | BM28: Germany | BO28: Portugal | BP28: United States | DR28: 27 | DS28: 0.48 | DT28: 8 | DU28: 5 | DV28: 7 | DW28: 7 | DX28: 1 | DY28: 0 | DZ28: 1 | EA28: 0 | EB28: 1 | EC28: 0 | ED28: 0 | EE28: 2 | EF28: 0 | EG28: 0 | EH28: 22 | EI28: 107 | EJ28: 4 | EK28: 1 | EL28: 1 | EM28: 872 | EN28: 646 | EO28: 0.75 | EP28: 57 | EQ28: 10 | ER28: 0.18 | ES28: 16 | ET28: 72
A29: 24 June 2014 | B29: Estádio Castelão, Fortaleza | C29: 2–1 | D29: Georgios Samaras | E29: 11-10 | F29: GRE-CIV | G29: 26 | H29: 0.54 | I29: 8 | J29: 6 | K29: 2 | L29: 10 | M29: 3 | N29: 3 | O29: 0 | P29: 0 | Q29: 2 | R29: 1 | S29: 1 | T29: 3 | U29: 0 | V29: 0 | W29: 36 | X29: 74 | Y29: 9 | Z29: 2 | AA29: 2 | AB29: 829 | AC29: 647 | AD29: 0.79 | AE29: 40 | AF29: 3 | AG29: 0.08 | AH29: 11 | AI29: 54 | AM29: =INDEX(Sheet2!$A$36:$B$67,MATCH(Sheet3!$AN29,CountryFlag,0),1) -> POR | AN29: Portugal | BM29: Germany | BN29: Ghana | BP29: United States | DR29: 26 | DS29: 0.77 | DT29: 8 | DU29: 12 | DV29: 3 | DW29: 3 | DX29: 3 | DY29: 2 | DZ29: 1 | EA29: 0 | EB29: 2 | EC29: 1 | ED29: 0 | EE29: 2 | EF29: 0 | EG29: 0 | EH29: 25 | EI29: 80 | EJ29: 8 | EK29: 2 | EL29: 5 | EM29: 891 | EN29: 669 | EO29: 0.76 | EP29: 40 | EQ29: 7 | ER29: 0.18 | ES29: 10 | ET29: 61
A30: 14 June 2014 | B30: Arena Pernambuco, Recife | C30: 2–1 | D30: Yaya Touré | E30: 10-12 | F30: CIV-JPN | G30: 26 | H30: 0.5 | I30: 8 | J30: 7 | K30: 5 | L30: 6 | M30: 3 | N30: 3 | O30: 0 | P30: 0 | Q30: 3 | R30: 0 | S30: 0 | T30: 4 | U30: 0 | V30: 0 | W30: 25 | X30: 67 | Y30: 6 | Z30: 3 | AA30: 4 | AB30: 1024 | AC30: 780 | AD30: 0.77 | AE30: 32 | AF30: 10 | AG30: 0.32 | AH30: 13 | AI30: 58 | AM30: =INDEX(Sheet2!$A$36:$B$67,MATCH(Sheet3!$AN30,CountryFlag,0),1) -> USA | AN30: United States | BM30: Germany | BN30: Ghana | BO30: Portugal | DR30: 26 | DS30: 0.54 | DT30: 8 | DU30: 6 | DV30: 2 | DW30: 10 | DX30: 3 | DY30: 3 | DZ30: 0 | EA30: 0 | EB30: 2 | EC30: 1 | ED30: 1 | EE30: 3 | EF30: 0 | EG30: 0 | EH30: 36 | EI30: 74 | EJ30: 9 | EK30: 2 | EL30: 2 | EM30: 829 | EN30: 647 | EO30: 0.79 | EP30: 40 | EQ30: 3 | ER30: 0.08 | ES30: 11 | ET30: 54
A31: 2014-06-29 | B31: Fortaleza | C31: 2-1 | D31: Guillermo Ochoa | E31: 8-2 | F31: NED-MEX | G31: 26 | H31: 0.58 | I31: 6 | J31: 9 | K31: 4 | L31: 7 | M31: 3 | N31: 1 | O31: 2 | P31: 0 | Q31: 2 | R31: 1 | S31: 1 | T31: 3 | U31: 0 | V31: 0 | W31: 20 | X31: 77 | Y31: 5 | Z31: 1 | AA31: 2 | AB31: 999 | AC31: 772 | AD31: 0.78 | AE31: 38 | AF31: 6 | AG31: 0.16 | AH31: 12 | AI31: 63 | AM31: =INDEX(Sheet2!$A$36:$B$67,MATCH(Sheet3!$AN31,CountryFlag,0),1) -> BEL | AN31: Belgium | AO31: =IFERROR(INDEX($AN$3:$AN$34,IF(AO$2=$AN31," ",IF(ISNUMBER(MATCH(AO$2,GrpH,0)),MATCH(AO$2,$AO$2:$BT$2,0),"")),1),"") ->  | AY31: =IFERROR(INDEX($AN$3:$AN$34,IF(AY$2=$AN31," ",IF(ISNUMBER(MATCH(AY$2,GrpH,0)),MATCH(AY$2,$AO$2:$BT$2,0),"")),1),"") ->  | BI31: =IFERROR(INDEX($AN$3:$AN$34,IF(BI$2=$AN31," ",IF(ISNUMBER(MATCH(BI$2,GrpH,0)),MATCH(BI$2,$AO$2:$BT$2,0),"")),1),"") ->  | BR31: Russia | BS31: Algeria | BT31: South Korea | DR31: 26 | DS31: 0.5 | DT31: 8 | DU31: 7 | DV31: 5 | DW31: 6 | DX31: 3 | DY31: 3 | DZ31: 0 | EA31: 0 | EB31: 3 | EC31: 0 | ED31: 0 | EE31: 4 | EF31: 0 | EG31: 0 | EH31: 25 | EI31: 67 | EJ31: 6 | EK31: 3 | EL31: 4 | EM31: 1024 | EN31: 780 | EO31: 0.77 | EP31: 32 | EQ31: 10 | ER31: 0.32 | ES31: 13 | ET31: 58
A32: 2014-07-05 | B32: Salvador | C32: 0 (4)-0 (3) | D32: Keylor Navas | E32: 8-15 | F32: NED-CRC | G32: 26 | H32: 0.69 | I32: 11 | J32: 7 | K32: 5 | L32: 3 | M32: 0 | N32: 0 | O32: 0 | P32: 0 | Q32: 0 | R32: 0 | S32: 0 | T32: 6 | U32: 0 | V32: 0 | W32: 28 | X32: 102 | Y32: 12 | Z32: 0 | AA32: 15 | AB32: 1277 | AC32: 977 | AD32: 0.77 | AE32: 42 | AF32: 10 | AG32: 0.24 | AH32: 12 | AI32: 74 | AM32: =INDEX(Sheet2!$A$36:$B$67,MATCH(Sheet3!$AN32,CountryFlag,0),1) -> RUS | AN32: Russia | BQ32: Belgium | BS32: Algeria | BT32: South Korea | DR32: 26 | DS32: 0.58 | DT32: 6 | DU32: 9 | DV32: 4 | DW32: 7 | DX32: 3 | DY32: 1 | DZ32: 2 | EA32: 0 | EB32: 2 | EC32: 1 | ED32: 1 | EE32: 3 | EF32: 0 | EG32: 0 | EH32: 20 | EI32: 77 | EJ32: 5 | EK32: 1 | EL32: 2 | EM32: 999 | EN32: 772 | EO32: 0.78 | EP32: 38 | EQ32: 6 | ER32: 0.16 | ES32: 12 | ET32: 63
A33: 2014-06-28 | B33: Rio de Janeiro | C33: 2-0 | D33: James Rodríguez | E33: 9-13 | F33: COL-URU | G33: 26 | H33: 0.65 | I33: 6 | J33: 11 | K33: 5 | L33: 4 | M33: 2 | N33: 1 | O33: 1 | P33: 0 | Q33: 2 | R33: 0 | S33: 0 | T33: 3 | U33: 0 | V33: 0 | W33: 36 | X33: 59 | Y33: 2 | Z33: 2 | AA33: 2 | AB33: 899 | AC33: 668 | AD33: 0.75 | AE33: 34 | AF33: 8 | AG33: 0.24 | AH33: 8 | AI33: 69 | AM33: =INDEX(Sheet2!$A$36:$B$67,MATCH(Sheet3!$AN33,CountryFlag,0),1) -> ALG | AN33: Algeria | BQ33: Belgium | BR33: Russia | BT33: South Korea | DR33: 26 | DS33: 0.69 | DT33: 11 | DU33: 7 | DV33: 5 | DW33: 3 | DX33: 0 | DY33: 0 | DZ33: 0 | EA33: 0 | EB33: 0 | EC33: 0 | ED33: 0 | EE33: 6 | EF33: 0 | EG33: 0 | EH33: 28 | EI33: 102 | EJ33: 12 | EK33: 0 | EL33: 15 | EM33: 1277 | EN33: 977 | EO33: 0.77 | EP33: 42 | EQ33: 10 | ER33: 0.24 | ES33: 12 | ET33: 74
A34: 17 June 2014 | B34: Arena Pantanal, Cuiabá | C34: 1–1 | D34: Son Heung-min | E34: 30-32 | F34: RUS-KOR | G34: 26 | H34: 0.62 | I34: 3 | J34: 13 | K34: 6 | L34: 4 | M34: 2 | N34: 1 | O34: 1 | P34: 0 | Q34: 2 | R34: 0 | S34: 0 | T34: 4 | U34: 0 | V34: 0 | W34: 22 | X34: 82 | Y34: 1 | Z34: 1 | AA34: 0 | AB34: 1092 | AC34: 834 | AD34: 0.77 | AE34: 40 | AF34: 9 | AG34: 0.23 | AH34: 8 | AI34: 64 | AM34: =INDEX(Sheet2!$A$36:$B$67,MATCH(Sheet3!$AN34,CountryFlag,0),1) -> KOR | AN34: South Korea | BQ34: Belgium | BR34: Russia | BS34: Algeria | DR34: 26 | DS34: 0.65 | DT34: 6 | DU34: 11 | DV34: 5 | DW34: 4 | DX34: 2 | DY34: 1 | DZ34: 1 | EA34: 0 | EB34: 2 | EC34: 0 | ED34: 0 | EE34: 3 | EF34: 0 | EG34: 0 | EH34: 36 | EI34: 59 | EJ34: 2 | EK34: 2 | EL34: 2 | EM34: 899 | EN34: 668 | EO34: 0.75 | EP34: 34 | EQ34: 8 | ER34: 0.24 | ES34: 8 | ET34: 69
A35: 19 June 2014 | B35: Arena das Dunas, Natal | C35: 0–0 | D35: Keisuke Honda | E35: =CONCATENATE(MATCH(LEFT(F35,3),$AM$3:$AM$34,0),"-",(MATCH(RIGHT(F35,3),$AM$3:$AM$34,0))) -> 12-11 | F35: JPN-GRE | G35: 25 | H35: 0.64 | I35: 4 | J35: 12 | K35: 6 | L35: 3 | M35: 0 | N35: 0 | O35: 0 | P35: 0 | Q35: 0 | R35: 0 | S35: 0 | T35: 3 | U35: 1 | V35: 0 | W35: 41 | X35: 87 | Y35: 5 | Z35: 0 | AA35: 4 | AB35: 905 | AC35: 714 | AD35: 0.79 | AE35: 53 | AF35: 9 | AG35: 0.17 | AH35: 12 | AI35: 47 | DR35: 26 | DS35: 0.62 | DT35: 3 | DU35: 13 | DV35: 6 | DW35: 4 | DX35: 2 | DY35: 1 | DZ35: 1 | EA35: 0 | EB35: 2 | EC35: 0 | ED35: 0 | EE35: 4 | EF35: 0 | EG35: 0 | EH35: 22 | EI35: 82 | EJ35: 1 | EK35: 1 | EL35: 0 | EM35: 1092 | EN35: 834 | EO35: 0.77 | EP35: 40 | EQ35: 9 | ER35: 0.23 | ES35: 8 | ET35: 64
A36: 18 June 2014 | B36: Estádio Beira-Rio, Porto Alegre | C36: 2–3 | D36: Arjen Robben | E36: 7-8 | F36: AUS-NED | G36: 25 | H36: 0.88 | I36: 13 | J36: 9 | K36: 3 | L36: 0 | M36: 5 | N36: 4 | O36: 1 | P36: 0 | Q36: 4 | R36: 1 | S36: 1 | T36: 2 | U36: 0 | V36: 0 | W36: 43 | X36: 70 | Y36: 9 | Z36: 3 | AA36: 2 | AB36: 996 | AC36: 760 | AD36: 0.77 | AE36: 27 | AF36: 5 | AG36: 0.19 | AH36: 5 | AI36: 60 | DR36: 25 | DS36: 0.64 | DT36: 4 | DU36: 12 | DV36: 6 | DW36: 3 | DX36: 0 | DY36: 0 | DZ36: 0 | EA36: 0 | EB36: 0 | EC36: 0 | ED36: 0 | EE36: 3 | EF36: 1 | EG36: 0 | EH36: 41 | EI36: 87 | EJ36: 5 | EK36: 0 | EL36: 4 | EM36: 905 | EN36: 714 | EO36: 0.79 | EP36: 53 | EQ36: 9 | ER36: 0.17 | ES36: 12 | ET36: 47
A37: 13 June 2014 | B37: Arena Pantanal, Cuiabá | C37: 3–1 | D37: Alexis Sánchez | E37: 6-7 | F37: CHI-AUS | G37: 24 | H37: 0.63 | I37: 12 | J37: 3 | K37: 5 | L37: 4 | M37: 4 | N37: 3 | O37: 1 | P37: 0 | Q37: 4 | R37: 0 | S37: 0 | T37: 4 | U37: 0 | V37: 0 | W37: 27 | X37: 74 | Y37: 9 | Z37: 3 | AA37: 2 | AB37: 1163 | AC37: 939 | AD37: 0.81 | AE37: 33 | AF37: 11 | AG37: 0.34 | AH37: 4 | AI37: 69 | DR37: 25 | DS37: 0.88 | DT37: 13 | DU37: 9 | DV37: 3 | DW37: 0 | DX37: 5 | DY37: 4 | DZ37: 1 | EA37: 0 | EB37: 4 | EC37: 1 | ED37: 1 | EE37: 2 | EF37: 0 | EG37: 0 | EH37: 43 | EI37: 70 | EJ37: 9 | EK37: 3 | EL37: 2 | EM37: 996 | EN37: 760 | EO37: 0.77 | EP37: 27 | EQ37: 5 | ER37: 0.19 | ES37: 5 | ET37: 60
A38: 14 June 2014 | B38: Estádio Mineirão, Belo Horizonte | C38: 3–0 | D38: James Rodríguez | E38: 9-11 | F38: COL-GRE | G38: 24 | H38: 0.63 | I38: 4 | J38: 11 | K38: 6 | L38: 3 | M38: 3 | N38: 3 | O38: 0 | P38: 0 | Q38: 3 | R38: 0 | S38: 0 | T38: 3 | U38: 0 | V38: 0 | W38: 33 | X38: 89 | Y38: 5 | Z38: 3 | AA38: 4 | AB38: 931 | AC38: 705 | AD38: 0.76 | AE38: 31 | AF38: 10 | AG38: 0.33 | AH38: 8 | AI38: 61 | DR38: 24 | DS38: 0.63 | DT38: 12 | DU38: 3 | DV38: 5 | DW38: 4 | DX38: 4 | DY38: 3 | DZ38: 1 | EA38: 0 | EB38: 4 | EC38: 0 | ED38: 0 | EE38: 4 | EF38: 0 | EG38: 0 | EH38: 27 | EI38: 74 | EJ38: 9 | EK38: 3 | EL38: 2 | EM38: 1163 | EN38: 939 | EO38: 0.81 | EP38: 33 | EQ38: 11 | ER38: 0.34 | ES38: 4 | ET38: 69
A39: 22 June 2014 | B39: Estádio do Maracanã, Rio de Janeiro | C39: 1–0 | D39: Eden Hazard | E39: 29-30 | F39: BEL-RUS | G39: 24 | H39: 0.54 | I39: 5 | J39: 8 | K39: 6 | L39: 5 | M39: 1 | N39: 1 | O39: 0 | P39: 0 | Q39: 1 | R39: 0 | S39: 0 | T39: 3 | U39: 0 | V39: 0 | W39: 23 | X39: 87 | Y39: 10 | Z39: 1 | AA39: 7 | AB39: 970 | AC39: 684 | AD39: 0.71 | AE39: 42 | AF39: 8 | AG39: 0.2 | AH39: 13 | AI39: 73 | DR39: 24 | DS39: 0.63 | DT39: 4 | DU39: 11 | DV39: 6 | DW39: 3 | DX39: 3 | DY39: 3 | DZ39: 0 | EA39: 0 | EB39: 3 | EC39: 0 | ED39: 0 | EE39: 3 | EF39: 0 | EG39: 0 | EH39: 33 | EI39: 89 | EJ39: 5 | EK39: 3 | EL39: 4 | EM39: 931 | EN39: 705 | EO39: 0.76 | EP39: 31 | EQ39: 10 | ER39: 0.33 | ES39: 8 | ET39: 61
A40: 12 June 2014 | B40: Arena de São Paulo, São Paulo | C40: 3–1 | D40: Neymar | E40: 1-3 | F40: BRA-CRO | G40: 24 | H40: 0.54 | I40: 5 | J40: 8 | K40: 7 | L40: 4 | M40: 4 | N40: 1 | O40: 2 | P40: 1 | Q40: 3 | R40: 1 | S40: 1 | T40: 4 | U40: 0 | V40: 0 | W40: 26 | X40: 86 | Y40: 6 | Z40: 1 | AA40: 1 | AB40: 976 | AC40: 717 | AD40: 0.74 | AE40: 34 | AF40: 9 | AG40: 0.27 | AH40: 10 | AI40: 80 | DR40: 24 | DS40: 0.54 | DT40: 5 | DU40: 8 | DV40: 6 | DW40: 5 | DX40: 1 | DY40: 1 | DZ40: 0 | EA40: 0 | EB40: 1 | EC40: 0 | ED40: 0 | EE40: 3 | EF40: 0 | EG40: 0 | EH40: 23 | EI40: 87 | EJ40: 10 | EK40: 1 | EL40: 7 | EM40: 970 | EN40: 684 | EO40: 0.71 | EP40: 42 | EQ40: 8 | ER40: 0.2 | ES40: 13 | ET40: 73
A41: 20 June 2014 | B41: Arena da Baixada, Curitiba | C41: 1–2 | D41: Enner Valencia | E41: 20-19 | F41: HON-ECU | G41: 24 | H41: 0.58 | I41: 4 | J41: 10 | K41: 4 | L41: 6 | M41: 3 | N41: 3 | O41: 0 | P41: 0 | Q41: 2 | R41: 1 | S41: 0 | T41: 5 | U41: 0 | V41: 0 | W41: 32 | X41: 83 | Y41: 5 | Z41: 3 | AA41: 2 | AB41: 868 | AC41: 602 | AD41: 0.7 | AE41: 36 | AF41: 7 | AG41: 0.2 | AH41: 16 | AI41: 61 | DR41: 24 | DS41: 0.54 | DT41: 5 | DU41: 8 | DV41: 7 | DW41: 4 | DX41: 4 | DY41: 1 | DZ41: 2 | EA41: 1 | EB41: 3 | EC41: 1 | ED41: 1 | EE41: 4 | EF41: 0 | EG41: 0 | EH41: 26 | EI41: 86 | EJ41: 6 | EK41: 1 | EL41: 1 | EM41: 976 | EN41: 717 | EO41: 0.74 | EP41: 34 | EQ41: 9 | ER41: 0.27 | ES41: 10 | ET41: 80
A42: 22 June 2014 | B42: Estádio Beira-Rio, Porto Alegre | C42: 2–4 | D42: Islam Slimani | E42: 32-31 | F42: KOR-ALG | G42: 24 | H42: 0.58 | I42: 11 | J42: 3 | K42: 7 | L42: 3 | M42: 6 | N42: 6 | O42: 0 | P42: 0 | Q42: 5 | R42: 1 | S42: 0 | T42: 3 | U42: 0 | V42: 0 | W42: 29 | X42: 79 | Y42: 4 | Z42: 6 | AA42: 2 | AB42: 949 | AC42: 687 | AD42: 0.73 | AE42: 46 | AF42: 15 | AG42: 0.33 | AH42: 12 | AI42: 70 | DR42: 24 | DS42: 0.58 | DT42: 4 | DU42: 10 | DV42: 4 | DW42: 6 | DX42: 3 | DY42: 3 | DZ42: 0 | EA42: 0 | EB42: 2 | EC42: 1 | ED42: 0 | EE42: 5 | EF42: 0 | EG42: 0 | EH42: 32 | EI42: 83 | EJ42: 5 | EK42: 3 | EL42: 2 | EM42: 868 | EN42: 602 | EO42: 0.7 | EP42: 36 | EQ42: 7 | ER42: 0.2 | ES42: 16 | ET42: 61
A43: 15 June 2014 | B43: Estádio Beira-Rio, Porto Alegre | C43: 3–0 | D43: Karim Benzema | E43: 18-20 | F43: FRA-HON | G43: 24 | H43: 0.5 | I43: 8 | J43: 4 | K43: 7 | L43: 5 | M43: 3 | N43: 2 | O43: 0 | P43: 1 | Q43: 2 | R43: 1 | S43: 1 | T43: 5 | U43: 1 | V43: 0 | W43: 27 | X43: 64 | Y43: 4 | Z43: 0 | AA43: 3 | AB43: 1064 | AC43: 875 | AD43: 0.83 | AE43: 38 | AF43: 10 | AG43: 0.27 | AH43: 8 | AI43: 50 | DR43: 24 | DS43: 0.58 | DT43: 11 | DU43: 3 | DV43: 7 | DW43: 3 | DX43: 6 | DY43: 6 | DZ43: 0 | EA43: 0 | EB43: 5 | EC43: 1 | ED43: 0 | EE43: 3 | EF43: 0 | EG43: 0 | EH43: 29 | EI43: 79 | EJ43: 4 | EK43: 6 | EL43: 2 | EM43: 949 | EN43: 687 | EO43: 0.73 | EP43: 46 | EQ43: 15 | ER43: 0.33 | ES43: 12 | ET43: 70
A44: 19 June 2014 | B44: Arena de São Paulo, São Paulo | C44: 2–1 | D44: Luis Suárez | E44: 13-14 | F44: URU-ENG | G44: 23 | H44: 0.61 | I44: 7 | J44: 7 | K44: 5 | L44: 4 | M44: 3 | N44: 3 | O44: 0 | P44: 0 | Q44: 3 | R44: 0 | S44: 0 | T44: 2 | U44: 0 | V44: 0 | W44: 29 | X44: 77 | Y44: 6 | Z44: 2 | AA44: 4 | AB44: 868 | AC44: 600 | AD44: 0.7 | AE44: 49 | AF44: 10 | AG44: 0.21 | AH44: 13 | AI44: 75 | DR44: 24 | DS44: 0.5 | DT44: 8 | DU44: 4 | DV44: 7 | DW44: 5 | DX44: 3 | DY44: 2 | DZ44: 0 | EA44: 1 | EB44: 2 | EC44: 1 | ED44: 1 | EE44: 5 | EF44: 1 | EG44: 0 | EH44: 27 | EI44: 64 | EJ44: 4 | EK44: 0 | EL44: 3 | EM44: 1064 | EN44: 875 | EO44: 0.83 | EP44: 38 | EQ44: 10 | ER44: 0.27 | ES44: 8 | ET44: 50
A45: 24 June 2014 | B45: Arena das Dunas, Natal | C45: 0–1 | D45: Gianluigi Buffon | E45: 16-13 | F45: ITA-URU | G45: 23 | H45: 0.61 | I45: 4 | J45: 10 | K45: 3 | L45: 6 | M45: 1 | N45: 1 | O45: 0 | P45: 0 | Q45: 0 | R45: 1 | S45: 0 | T45: 4 | U45: 0 | V45: 1 | W45: 39 | X45: 73 | Y45: 2 | Z45: 1 | AA45: 4 | AB45: 1014 | AC45: 775 | AD45: 0.77 | AE45: 42 | AF45: 8 | AG45: 0.2 | AH45: 6 | AI45: 67 | DR45: 23 | DS45: 0.61 | DT45: 7 | DU45: 7 | DV45: 5 | DW45: 4 | DX45: 3 | DY45: 3 | DZ45: 0 | EA45: 0 | EB45: 3 | EC45: 0 | ED45: 0 | EE45: 2 | EF45: 0 | EG45: 0 | EH45: 29 | EI45: 77 | EJ45: 6 | EK45: 2 | EL45: 4 | EM45: 868 | EN45: 600 | EO45: 0.7 | EP45: 49 | EQ45: 10 | ER45: 0.21 | ES45: 13 | ET45: 75
A46: 2014-07-04 | B46: Fortaleza | C46: 2-1 | D46: David Luiz | E46: 1-9 | F46: BRA-COL | G46: 23 | H46: 0.48 | I46: 5 | J46: 6 | K46: 5 | L46: 7 | M46: 3 | N46: 2 | O46: 1 | P46: 0 | Q46: 0 | R46: 3 | S46: 1 | T46: 4 | U46: 0 | V46: 0 | W46: 54 | X46: 70 | Y46: 2 | Z46: 1 | AA46: 3 | AB46: 737 | AC46: 518 | AD46: 0.71 | AE46: 33 | AF46: 9 | AG46: 0.28 | AH46: 10 | AI46: 56 | DR46: 23 | DS46: 0.61 | DT46: 4 | DU46: 10 | DV46: 3 | DW46: 6 | DX46: 1 | DY46: 1 | DZ46: 0 | EA46: 0 | EB46: 0 | EC46: 1 | ED46: 0 | EE46: 4 | EF46: 0 | EG46: 1 | EH46: 39 | EI46: 73 | EJ46: 2 | EK46: 1 | EL46: 4 | EM46: 1014 | EN46: 775 | EO46: 0.77 | EP46: 42 | EQ46: 8 | ER46: 0.2 | ES46: 6 | ET46: 67
A47: 2014-06-30 | B47: Brasília | C47: 2-0 | D47: Paul Pogba | E47: 18-24 | F47: FRA-NGA | G47: 23 | H47: 0.65 | I47: 9 | J47: 6 | K47: 3 | L47: 5 | M47: 2 | N47: 1 | O47: 0 | P47: 1 | Q47: 2 | R47: 0 | S47: 0 | T47: 1 | U47: 0 | V47: 0 | W47: 27 | X47: 78 | Y47: 2 | Z47: 0 | AA47: 5 | AB47: 869 | AC47: 655 | AD47: 0.76 | AE47: 64 | AF47: 11 | AG47: 0.18 | AH47: 21 | AI47: 55 | DR47: 23 | DS47: 0.48 | DT47: 5 | DU47: 6 | DV47: 5 | DW47: 7 | DX47: 3 | DY47: 2 | DZ47: 1 | EA47: 0 | EB47: 0 | EC47: 3 | ED47: 1 | EE47: 4 | EF47: 0 | EG47: 0 | EH47: 54 | EI47: 70 | EJ47: 2 | EK47: 1 | EL47: 3 | EM47: 737 | EN47: 518 | EO47: 0.71 | EP47: 33 | EQ47: 9 | ER47: 0.28 | ES47: 10 | ET47: 56
A48: 23 June 2014 | B48: Arena Pernambuco, Recife | C48: 1–3 | D48: Rafael Márquez | E48: 3-2 | F48: CRO-MEX | G48: 22 | H48: 0.55 | I48: 10 | J48: 2 | K48: 4 | L48: 6 | M48: 4 | N48: 4 | O48: 0 | P48: 0 | Q48: 3 | R48: 1 | S48: 0 | T48: 3 | U48: 0 | V48: 1 | W48: 30 | X48: 74 | Y48: 6 | Z48: 4 | AA48: 2 | AB48: 940 | AC48: 675 | AD48: 0.72 | AE48: 47 | AF48: 15 | AG48: 0.32 | AH48: 16 | AI48: 56 | DR48: 23 | DS48: 0.65 | DT48: 9 | DU48: 6 | DV48: 3 | DW48: 5 | DX48: 2 | DY48: 1 | DZ48: 0 | EA48: 1 | EB48: 2 | EC48: 0 | ED48: 0 | EE48: 1 | EF48: 0 | EG48: 0 | EH48: 27 | EI48: 78 | EJ48: 2 | EK48: 0 | EL48: 5 | EM48: 869 | EN48: 655 | EO48: 0.76 | EP48: 64 | EQ48: 11 | ER48: 0.18 | ES48: 21 | ET48: 55
A49: 18 June 2014 | B49: Estádio do Maracanã, Rio de Janeiro | C49: 0–2 | D49: Eduardo Vargas | E49: 5-6 | F49: ESP-CHI | G49: 22 | H49: 0.59 | I49: 7 | J49: 6 | K49: 8 | L49: 1 | M49: 2 | N49: 2 | O49: 0 | P49: 0 | Q49: 2 | R49: 0 | S49: 0 | T49: 3 | U49: 0 | V49: 0 | W49: 29 | X49: 68 | Y49: 6 | Z49: 1 | AA49: 3 | AB49: 1169 | AC49: 911 | AD49: 0.78 | AE49: 31 | AF49: 10 | AG49: 0.33 | AH49: 8 | AI49: 81 | DR49: 22 | DS49: 0.55 | DT49: 10 | DU49: 2 | DV49: 4 | DW49: 6 | DX49: 4 | DY49: 4 | DZ49: 0 | EA49: 0 | EB49: 3 | EC49: 1 | ED49: 0 | EE49: 3 | EF49: 0 | EG49: 1 | EH49: 30 | EI49: 74 | EJ49: 6 | EK49: 4 | EL49: 2 | EM49: 940 | EN49: 675 | EO49: 0.72 | EP49: 47 | EQ49: 15 | ER49: 0.32 | ES49: 16 | ET49: 56
A50: 13 June 2014 | B50: Arena Fonte Nova, Salvador | C50: 1–5 | D50: Robin van Persie | E50: =CONCATENATE(MATCH(LEFT(F50,3),$AM$3:$AM$34,0),"-",(MATCH(RIGHT(F50,3),$AM$3:$AM$34,0))) -> 5-8 | F50: ESP-NED | G50: 22 | H50: 0.77 | I50: 11 | J50: 6 | K50: 3 | L50: 2 | M50: 6 | N50: 6 | O50: 0 | P50: 0 | Q50: 5 | R50: 1 | S50: 1 | T50: 4 | U50: 0 | V50: 0 | W50: 23 | X50: 73 | Y50: 8 | Z50: 2 | AA50: 10 | AB50: 1105 | AC50: 884 | AD50: 0.8 | AE50: 16 | AF50: 7 | AG50: 0.44 | AH50: 5 | AI50: 52 | DR50: 22 | DS50: 0.59 | DT50: 7 | DU50: 6 | DV50: 8 | DW50: 1 | DX50: 2 | DY50: 2 | DZ50: 0 | EA50: 0 | EB50: 2 | EC50: 0 | ED50: 0 | EE50: 3 | EF50: 0 | EG50: 0 | EH50: 29 | EI50: 68 | EJ50: 6 | EK50: 1 | EL50: 3 | EM50: 1169 | EN50: 911 | EO50: 0.78 | EP50: 31 | EQ50: 10 | ER50: 0.33 | ES50: 8 | ET50: 81
A51: 14 June 2014 | B51: Estádio Castelão, Fortaleza | C51: 1–3 | D51: Joel Campbell | E51: 13-15 | F51: URU-CRC | G51: 21 | H51: 0.43 | I51: 6 | J51: 3 | K51: 6 | L51: 6 | M51: 4 | N51: 3 | O51: 1 | P51: 0 | Q51: 2 | R51: 2 | S51: 1 | T51: 3 | U51: 0 | V51: 1 | W51: 38 | X51: 57 | Y51: 2 | Z51: 3 | AA51: 8 | AB51: 956 | AC51: 700 | AD51: 0.74 | AE51: 32 | AF51: 6 | AG51: 0.19 | AH51: 11 | AI51: 72 | DR51: 22 | DS51: 0.77 | DT51: 11 | DU51: 6 | DV51: 3 | DW51: 2 | DX51: 6 | DY51: 6 | DZ51: 0 | EA51: 0 | EB51: 5 | EC51: 1 | ED51: 1 | EE51: 4 | EF51: 0 | EG51: 0 | EH51: 23 | EI51: 73 | EJ51: 8 | EK51: 2 | EL51: 10 | EM51: 1105 | EN51: 884 | EO51: 0.8 | EP51: 16 | EQ51: 7 | ER51: 0.44 | ES51: 5 | ET51: 52
A52: 2014-07-04 | B52: Rio de Janeiro | C52: 0-1 | D52: Mats Hummels | E52: 18-25 | F52: FRA-GER | G52: 21 | H52: 0.71 | I52: 14 | J52: 1 | K52: 4 | L52: 2 | M52: 1 | N52: 1 | O52: 0 | P52: 0 | Q52: 1 | R52: 0 | S52: 0 | T52: 2 | U52: 0 | V52: 0 | W52: 33 | X52: 57 | Y52: 9 | Z52: 1 | AA52: 3 | AB52: 1028 | AC52: 754 | AD52: 0.74 | AE52: 38 | AF52: 12 | AG52: 0.32 | AH52: 8 | AI52: 78 | DR52: 21 | DS52: 0.43 | DT52: 6 | DU52: 3 | DV52: 6 | DW52: 6 | DX52: 4 | DY52: 3 | DZ52: 1 | EA52: 0 | EB52: 2 | EC52: 2 | ED52: 1 | EE52: 3 | EF52: 0 | EG52: 1 | EH52: 38 | EI52: 57 | EJ52: 2 | EK52: 3 | EL52: 8 | EM52: 956 | EN52: 700 | EO52: 0.74 | EP52: 32 | EQ52: 6 | ER52: 0.19 | ES52: 11 | ET52: 72
A53: 23 June 2014 | B53: Arena de São Paulo, São Paulo | C53: 2–0 | D53: Arjen Robben | E53: 8-6 | F53: NED-CHI | G53: 20 | H53: 0.45 | I53: 5 | J53: 4 | K53: 7 | L53: 4 | M53: 2 | N53: 2 | O53: 0 | P53: 0 | Q53: 2 | R53: 0 | S53: 0 | T53: 2 | U53: 0 | V53: 0 | W53: 39 | X53: 60 | Y53: 5 | Z53: 2 | AA53: 3 | AB53: 926 | AC53: 676 | AD53: 0.74 | AE53: 38 | AF53: 13 | AG53: 0.35 | AH53: 9 | AI53: 71 | DR53: 21 | DS53: 0.71 | DT53: 14 | DU53: 1 | DV53: 4 | DW53: 2 | DX53: 1 | DY53: 1 | DZ53: 0 | EA53: 0 | EB53: 1 | EC53: 0 | ED53: 0 | EE53: 2 | EF53: 0 | EG53: 0 | EH53: 33 | EI53: 57 | EJ53: 9 | EK53: 1 | EL53: 3 | EM53: 1028 | EN53: 754 | EO53: 0.74 | EP53: 38 | EQ53: 12 | ER53: 0.32 | ES53: 8 | ET53: 78
A54: 25 June 2014 | B54: Arena Fonte Nova, Salvador | C54: 3–1 | D54: Edin Džeko | E54: 23-22 | F54: BIH-IRN | G54: 20 | H54: 0.7 | I54: 9 | J54: 5 | K54: 4 | L54: 2 | M54: 4 | N54: 3 | O54: 1 | P54: 0 | Q54: 4 | R54: 0 | S54: 0 | T54: 2 | U54: 0 | V54: 0 | W54: 37 | X54: 68 | Y54: 4 | Z54: 4 | AA54: 9 | AB54: 1069 | AC54: 819 | AD54: 0.77 | AE54: 53 | AF54: 13 | AG54: 0.25 | AH54: 11 | AI54: 50 | DR54: 20 | DS54: 0.45 | DT54: 5 | DU54: 4 | DV54: 7 | DW54: 4 | DX54: 2 | DY54: 2 | DZ54: 0 | EA54: 0 | EB54: 2 | EC54: 0 | ED54: 0 | EE54: 2 | EF54: 0 | EG54: 0 | EH54: 39 | EI54: 60 | EJ54: 5 | EK54: 2 | EL54: 3 | EM54: 926 | EN54: 676 | EO54: 0.74 | EP54: 38 | EQ54: 13 | ER54: 0.35 | ES54: 9 | ET54: 71
A55: 20 June 2014 | B55: Arena Pernambuco, Recife | C55: 0–1 | D55: Bryan Ruiz | E55: 16-15 | F55: ITA-CRC | G55: 20 | H55: 0.6 | I55: 2 | J55: 10 | K55: 5 | L55: 3 | M55: 1 | N55: 1 | O55: 0 | P55: 0 | Q55: 1 | R55: 0 | S55: 0 | T55: 2 | U55: 0 | V55: 0 | W55: 34 | X55: 64 | Y55: 5 | Z55: 1 | AA55: 14 | AB55: 1018 | AC55: 826 | AD55: 0.82 | AE55: 19 | AF55: 7 | AG55: 0.37 | AH55: 9 | AI55: 42 | DR55: 20 | DS55: 0.7 | DT55: 9 | DU55: 5 | DV55: 4 | DW55: 2 | DX55: 4 | DY55: 3 | DZ55: 1 | EA55: 0 | EB55: 4 | EC55: 0 | ED55: 0 | EE55: 2 | EF55: 0 | EG55: 0 | EH55: 37 | EI55: 68 | EJ55: 4 | EK55: 4 | EL55: 9 | EM55: 1069 | EN55: 819 | EO55: 0.77 | EP55: 53 | EQ55: 13 | ER55: 0.25 | ES55: 11 | ET55: 50
A56: 2014-07-05 | B56: Brasília | C56: 1-0 | D56: Gonzalo Higuaín | E56: 21-29 | F56: ARG-BEL | G56: 20 | H56: 0.55 | I56: 5 | J56: 6 | K56: 3 | L56: 6 | M56: 1 | N56: 1 | O56: 0 | P56: 0 | Q56: 1 | R56: 0 | S56: 0 | T56: 3 | U56: 0 | V56: 0 | W56: 25 | X56: 79 | Y56: 7 | Z56: 0 | AA56: 7 | AB56: 919 | AC56: 677 | AD56: 0.74 | AE56: 35 | AF56: 9 | AG56: 0.26 | AH56: 7 | AI56: 82 | DR56: 20 | DS56: 0.6 | DT56: 2 | DU56: 10 | DV56: 5 | DW56: 3 | DX56: 1 | DY56: 1 | DZ56: 0 | EA56: 0 | EB56: 1 | EC56: 0 | ED56: 0 | EE56: 2 | EF56: 0 | EG56: 0 | EH56: 34 | EI56: 64 | EJ56: 5 | EK56: 1 | EL56: 14 | EM56: 1018 | EN56: 826 | EO56: 0.82 | EP56: 19 | EQ56: 7 | ER56: 0.37 | ES56: 9 | ET56: 42
A57: 13 June 2014 | B57: Arena das Dunas, Natal | C57: 1–0 | D57: Giovani dos Santos | E57: 2-4 | F57: MEX-CMR | G57: 19 | H57: 0.47 | I57: 5 | J57: 4 | K57: 4 | L57: 6 | M57: 1 | N57: 1 | O57: 0 | P57: 0 | Q57: 1 | R57: 0 | S57: 0 | T57: 2 | U57: 0 | V57: 0 | W57: 23 | X57: 77 | Y57: 4 | Z57: 0 | AA57: 8 | AB57: 989 | AC57: 768 | AD57: 0.78 | AE57: 37 | AF57: 11 | AG57: 0.3 | AH57: 7 | AI57: 69 | DR57: 20 | DS57: 0.55 | DT57: 5 | DU57: 6 | DV57: 3 | DW57: 6 | DX57: 1 | DY57: 1 | DZ57: 0 | EA57: 0 | EB57: 1 | EC57: 0 | ED57: 0 | EE57: 3 | EF57: 0 | EG57: 0 | EH57: 25 | EI57: 79 | EJ57: 7 | EK57: 0 | EL57: 7 | EM57: 919 | EN57: 677 | EO57: 0.74 | EP57: 35 | EQ57: 9 | ER57: 0.26 | ES57: 7 | ET57: 82
A58: 17 June 2014 | B58: Estádio Mineirão, Belo Horizonte | C58: 2–1 | D58: Kevin De Bruyne | E58: 29-31 | F58: BEL-ALG | G58: 19 | H58: 0.58 | I58: 5 | J58: 6 | K58: 4 | L58: 4 | M58: 3 | N58: 3 | O58: 0 | P58: 0 | Q58: 2 | R58: 1 | S58: 1 | T58: 2 | U58: 0 | V58: 0 | W58: 38 | X58: 56 | Y58: 3 | Z58: 2 | AA58: 3 | AB58: 1001 | AC58: 753 | AD58: 0.76 | AE58: 33 | AF58: 6 | AG58: 0.19 | AH58: 9 | AI58: 59 | DR58: 19 | DS58: 0.47 | DT58: 5 | DU58: 4 | DV58: 4 | DW58: 6 | DX58: 1 | DY58: 1 | DZ58: 0 | EA58: 0 | EB58: 1 | EC58: 0 | ED58: 0 | EE58: 2 | EF58: 0 | EG58: 0 | EH58: 23 | EI58: 77 | EJ58: 4 | EK58: 0 | EL58: 8 | EM58: 989 | EN58: 768 | EO58: 0.78 | EP58: 37 | EQ58: 11 | ER58: 0.3 | ES58: 7 | ET58: 69
A59: 26 June 2014 | B59: Arena da Baixada, Curitiba | C59: 1–1 | D59: Islam Slimani | E59: 31-30 | F59: ALG-RUS | G59: 18 | H59: 0.72 | I59: 9 | J59: 4 | K59: 2 | L59: 3 | M59: 2 | N59: 2 | O59: 0 | P59: 0 | Q59: 1 | R59: 1 | S59: 0 | T59: 5 | U59: 0 | V59: 0 | W59: 29 | X59: 83 | Y59: 6 | Z59: 2 | AA59: 5 | AB59: 1053 | AC59: 762 | AD59: 0.73 | AE59: 40 | AF59: 8 | AG59: 0.2 | AH59: 7 | AI59: 65 | DR59: 19 | DS59: 0.58 | DT59: 5 | DU59: 6 | DV59: 4 | DW59: 4 | DX59: 3 | DY59: 3 | DZ59: 0 | EA59: 0 | EB59: 2 | EC59: 1 | ED59: 1 | EE59: 2 | EF59: 0 | EG59: 0 | EH59: 38 | EI59: 56 | EJ59: 3 | EK59: 2 | EL59: 3 | EM59: 1001 | EN59: 753 | EO59: 0.76 | EP59: 33 | EQ59: 6 | ER59: 0.19 | ES59: 9 | ET59: 59
A60: 16 June 2014 | B60: Arena da Baixada, Curitiba | C60: 0–0 | D60: John Obi Mikel | E60: 22-24 | F60: IRN-NGA | G60: 17 | H60: 0.53 | I60: 2 | J60: 7 | K60: 2 | L60: 6 | M60: 0 | N60: 0 | O60: 0 | P60: 0 | Q60: 0 | R60: 0 | S60: 0 | T60: 1 | U60: 0 | V60: 0 | W60: 34 | X60: 68 | Y60: 6 | Z60: 0 | AA60: 1 | AB60: 911 | AC60: 656 | AD60: 0.73 | AE60: 49 | AF60: 12 | AG60: 0.25 | AH60: 9 | AI60: 65 | DR60: 18 | DS60: 0.72 | DT60: 9 | DU60: 4 | DV60: 2 | DW60: 3 | DX60: 2 | DY60: 2 | DZ60: 0 | EA60: 0 | EB60: 1 | EC60: 1 | ED60: 0 | EE60: 5 | EF60: 0 | EG60: 0 | EH60: 29 | EI60: 83 | EJ60: 6 | EK60: 2 | EL60: 5 | EM60: 1053 | EN60: 762 | EO60: 0.73 | EP60: 40 | EQ60: 8 | ER60: 0.2 | ES60: 7 | ET60: 65
A61: 26 June 2014 | B61: Arena Pernambuco, Recife | C61: 0–1 | D61: Thomas Müller | E61: 28-25 | F61: USA-GER | G61: 17 | H61: 0.59 | I61: 3 | J61: 7 | K61: 5 | L61: 2 | M61: 1 | N61: 0 | O61: 1 | P61: 0 | Q61: 1 | R61: 0 | S61: 0 | T61: 3 | U61: 0 | V61: 0 | W61: 24 | X61: 70 | Y61: 1 | Z61: 0 | AA61: 9 | AB61: 1277 | AC61: 1088 | AD61: 0.86 | AE61: 34 | AF61: 8 | AG61: 0.24 | AH61: 5 | AI61: 55 | DR61: 17 | DS61: 0.53 | DT61: 2 | DU61: 7 | DV61: 2 | DW61: 6 | DX61: 0 | DY61: 0 | DZ61: 0 | EA61: 0 | EB61: 0 | EC61: 0 | ED61: 0 | EE61: 1 | EF61: 0 | EG61: 0 | EH61: 34 | EI61: 68 | EJ61: 6 | EK61: 0 | EL61: 1 | EM61: 911 | EN61: 656 | EO61: 0.73 | EP61: 49 | EQ61: 12 | ER61: 0.25 | ES61: 9 | ET61: 65
A62: 23 June 2014 | B62: Arena da Baixada, Curitiba | C62: 0–3 | D62: David Villa | E62: 7-5 | F62: AUS-ESP | G62: 15 | H62: 0.53 | I62: 7 | J62: 1 | K62: 0 | L62: 7 | M62: 3 | N62: 3 | O62: 0 | P62: 0 | Q62: 3 | R62: 0 | S62: 0 | T62: 3 | U62: 0 | V62: 0 | W62: 23 | X62: 63 | Y62: 5 | Z62: 3 | AA62: 7 | AB62: 1211 | AC62: 961 | AD62: 0.8 | AE62: 25 | AF62: 2 | AG62: 0.08 | AH62: 8 | AI62: 61 | DR62: 17 | DS62: 0.59 | DT62: 3 | DU62: 7 | DV62: 5 | DW62: 2 | DX62: 1 | DY62: 0 | DZ62: 1 | EA62: 0 | EB62: 1 | EC62: 0 | ED62: 0 | EE62: 3 | EF62: 0 | EG62: 0 | EH62: 24 | EI62: 70 | EJ62: 1 | EK62: 0 | EL62: 9 | EM62: 1277 | EN62: 1088 | EO62: 0.86 | EP62: 34 | EQ62: 8 | ER62: 0.24 | ES62: 5 | ET62: 55
A63: 2014-07-12 | B63: Brasília | C63: 0–3 | D63: Arjen Robben | E63: 1-8 | F63: BRA-NED | G63: 19 | H63: 0.53 | I63: 4 | J63: 6 | K63: 6 | L63: 3 | M63: 3 | N63: 3 | O63: 0 | P63: 0 | Q63: 2 | R63: 1 | S63: 1 | T63: 5 | U63: 0 | V63: 0 | W63: 36 | X63: 67 | Y63: 10 | Z63: 1 | AA63: 3 | AB63: 1007 | AC63: 795 | AD63: 0.79 | AE63: 30 | AF63: 5 | AG63: 0.17 | AH63: 5 | AI63: 55
A64: 2014-07-13 | C64: 1-0 | D64: Mario Gotze | E64: 25-21 | F64: GER-ARG | G64: 20 | H64: 0.45 | I64: 5 | J64: 4 | K64: 6 | L64: 5 | M64: 1 | N64: 1 | O64: 0 | P64: 0 | Q64: 1 | R64: 0 | S64: 0 | T64: 4 | U64: 0 | V64: 0 | W64: 36 | X64: 94 | Y64: 4 | Z64: 1 | AA64: 5 | AB64: 1501 | AC64: 1152 | AD64: 0.77 | AE64: 41 | AF64: 12 | AG64: 0.3 | AH64: 8 | AI64: 91
A65: 24 June 2014 | B65: Estádio Mineirão, Belo Horizonte | C65: 0–0 | D65: Keylor Navas | E65: 15-14 | F65: CRC-ENG | G65: 12 | H65: 0.5 | I65: 1 | J65: 5 | K65: 3 | L65: 3 | M65: 0 | N65: 0 | O65: 0 | P65: 0 | Q65: 0 | R65: 0 | S65: 0 | T65: 3 | U65: 0 | V65: 0 | W65: 34 | X65: 47 | Y65: 2 | Z65: 0 | AA65: 4 | AB65: 1020 | AC65: 737 | AD65: 0.73 | AE65: 24 | AF65: 4 | AG65: 0.17 | AH65: 10 | AI65: 59 | DR65: 15 | DS65: 0.53 | DT65: 7 | DU65: 1 | DV65: 0 | DW65: 7 | DX65: 3 | DY65: 3 | DZ65: 0 | EA65: 0 | EB65: 3 | EC65: 0 | ED65: 0 | EE65: 3 | EF65: 0 | EG65: 0 | EH65: 23 | EI65: 63 | EJ65: 5 | EK65: 3 | EL65: 7 | EM65: 1211 | EN65: 961 | EO65: 0.8 | EP65: 25 | EQ65: 2 | ER65: 0.08 | ES65: 8 | ET65: 61
DR66: 12 | DS66: 0.5 | DT66: 1 | DU66: 5 | DV66: 3 | DW66: 3 | DX66: 0 | DY66: 0 | DZ66: 0 | EA66: 0 | EB66: 0 | EC66: 0 | ED66: 0 | EE66: 3 | EF66: 0 | EG66: 0 | EH66: 34 | EI66: 47 | EJ66: 2 | EK66: 0 | EL66: 4 | EM66: 1020 | EN66: 737 | EO66: 0.73 | EP66: 24 | EQ66: 4 | ER66: 0.17 | ES66: 10 | ET66: 59
G67: =AVERAGE(G3:G65) -> 26.57142857 | H67: 0.593015873 | I67: 8.349206349 | J67: 7.555555556 | K67: 4.920634921 | L67: 5.746031746 | M67: 2.714285714 | N67: 2.285714286 | O67: 0.3492063492 | P67: 0.07936507937 | Q67: 2.238095238 | R67: 0.4761904762 | S67: 0.1904761905 | T67: 2.825396825 | U67: 0.04761904762 | V67: 0.1111111111 | W67: 30.20634921 | X67: 78.76190476 | Y67: 5.920634921 | Z67: 1.904761905 | AA67: 4.46031746 | AB67: 1032.031746 | AC67: 785.7936508 | AD67: 0.7633870968 | AE67: 39.0952381 | AF67: 9.126984127 | AG67: 0.2436507937 | AH67: 10.47619048 | AI67: 65.01587302
G68: =MAX(G3:G65) -> 52 | H68: 0.88 | I68: 20 | J68: 16 | K68: 11 | L68: 15 | M68: 8 | N68: 8 | O68: 2 | P68: 1 | Q68: 7 | R68: 3 | S68: 1 | T68: 7 | U68: 1 | V68: 1 | W68: 54 | X68: 142 | Y68: 14 | Z68: 7 | AA68: 15 | AB68: 1501 | AC68: 1152 | AD68: 0.88 | AE68: 83 | AF68: 22 | AG68: 0.44 | AH68: 23 | AI68: 92
G69: =MIN(G3:G65) -> 12 | H69: =MIN(H3:H65) -> 0.41 | I69: 1 | J69: 1 | K69: 0 | L69: 0 | M69: 0 | N69: 0 | O69: 0 | P69: 0 | Q69: 0 | R69: 0 | S69: 0 | T69: 1 | U69: 0 | V69: 0 | W69: 16 | X69: 47 | Y69: 1 | Z69: 0 | AA69: 0 | AB69: 737 | AC69: 518 | AD69: 0.7 | AE69: 16 | AF69: 2 | AG69: 0.08 | AH69: 4 | AI69: 42
